Workbook

Sheet Forside 2018
A1: Resultatliste Oslo Cup 2017
A2: Etter 8 av 8 renn
A5: - Oslo Cup arrangeres av Oslo Skikrets i samarbeid med IRS, Heming, Ready, Njård, HSIL og Kjelsås
A6: - 8 renn, arrangert av de samarbeidende klubbene, inngår i Oslo Cup
A7: - Det konkurreres i separate årsklasser, J11, G11, J12 og G12
A8: - Sammenlagtresultatene beregnes med World Cup poeng + deltakerpoeng.
A9: - De fire beste resultatene er tellende sammenlagt, men alle deltakerpoengene teller med i totalresultatet
A10: - Premiering av de tre beste sammenlagt i hver klasse
A13: Poengsystem:
A14: - World Cup poeng for plasseringer (100 poeng for seier, 80 for andre plass osv).
A15: - De fire beste resultatene er tellende i sammendraget
A16: - Det gis 5 deltakerpoeng pr. renn, uanhengig av resultat og om resultatet er tellende i sammendraget
A19: Forklaring på overskriften i resultatlistene:
A20: - Plass = plassering i rennet
A21: - Res. = resultatpoeng etter World Cup skala
A22: - Del. = deltakerpoeng, 5 poeng for deltakelse
A23: - Tot. = totalpoeng for rennet, sum av resultatpoeng og deltakerpoeng
A24: - Resultater/poeng som ikke er tellende for de som har kjørt flere enn fire renn er markert/skravert med grått

Sheet J11 2018
A1: Resultatliste Oslo Cup 2018 - Jenter 11 år
A2: ='Forside 2018'!A2 -> Etter 8 av 8 renn
H3: IRS Rennet | I3: Ljan Rennet | J3: Njård Rennet | K3: Ready Rennet | L3: Telenor Arena Cup | M3: Euro-tecfarten | N3: Oslo Alpinfestival SL | O3: Oslo Alpinfestival SSL | R3: IRS Rennet | S3: Ljan Rennet | T3: Njård Rennet | U3: Ready Rennet | V3: Telenor Arena Cup | W3: Euro-tecfarten | X3: Oslo Alpinfestival SL | Y3: Oslo Alpinfestival SSL | AA3: --------IRS Rennet---------- | AF3: ----------Ljan Rennet--------- | AK3: --------Njård Rennet---------- | AP3: --------Ready Rennet--------- | AU3: -----Telenor Arena Cup---- | AZ3: ------Euro-tecfarten-------- | BE3: ---Oslo Alpinfestival SL--- | BJ3: ---Oslo Alpinfestival SSL---
F4: Antall | H4: 2018-02-03 | I4: 2018-02-04 | J4: 2018-02-10 | K4: 2018-02-11 | L4: 2018-02-14 | M4: 2018-02-28 | N4: 2018-03-03 | O4: 2018-03-04 | Q4: Poeng | R4: 2018-02-03 | S4: 2018-02-04 | T4: 2018-02-10 | U4: 2018-02-11 | V4: 2018-02-14 | W4: 2018-02-28 | X4: 2018-03-03 | Y4: 2018-03-04 | AB4: --------Poeng-------- | AG4: --------Poeng-------- | AL4: -------Poeng--------- | AQ4: -------Poeng--------- | AV4: -------Poeng--------- | BA4: -------Poeng--------- | BF4: -------Poeng--------- | BK4: -------Poeng--------- | BQ4: Løpere med | BR4: Løpere med | BS4: Løpere med | BT4: Løpere med | BU4: Løpere med | BV4: Løpere med | BW4: Løpere med | BX4: Løpere med
A5: Plass | B5: Etternavn | C5: Fornavn | D5: Klubb | E5: Poeng | F5: renn | H5: ------------------------------Plassering i rennene--------------------------------- | Q5: brutto | R5: ----------------Resultatpoeng hvis mer enn 4 renn---------------- | AA5: Plass | AB5: Res. | AC5: Del. | AD5: Tot. | AF5: Plass | AG5: Res. | AH5: Del. | AI5: Tot. | AK5: Plass | AL5: Res. | AM5: Del. | AN5: Tot. | AP5: Plass | AQ5: Res. | AR5: Del. | AS5: Tot. | AU5: Plass | AV5: Res. | AW5: Del. | AX5: Tot. | AZ5: Plass | BA5: Res. | BB5: Del. | BC5: Tot. | BE5: Plass | BF5: Res. | BG5: Del. | BH5: Tot. | BJ5: Plass | BK5: Res. | BL5: Del. | BM5: Tot. | BO5: Plass | BP5: Poeng | BQ5: 8 renn | BR5: 7 renn | BS5: 6 renn | BT5: 5 renn | BU5: 4 renn | BV5: 3 renn | BW5: 2 renn | BX5: kun 1 renn
A6: =IF(E6<E5,BO6,A5) -> 1 | B6: Sande | C6: Malene Louise Gaunt | D6: Heming | E6: =IF(F6<=4,Q6,(Q6-SUM(SMALL(R6:Y6,{1;2;3;4})))) -> 405 | F6: =(IF(AC6=5,1,0)+IF(AH6=5,1,0)+IF(AM6=5,1,0)+IF(AR6=5,1,0)+IF(AW6=5,1,0)+IF(BB6=5,1,0)+IF(BG6=5,1,0)+IF(BL6=5,1,0)) -> 5 | H6: =IF(AA6="","",AA6) ->  | I6: =IF(AF6="","",AF6) ->  | J6: =IF(AK6="","",AK6) -> 1 | K6: =IF(AP6="","",AP6) -> 1 | L6: =IF(AU6="","",AU6) -> 2 | M6: =IF(AZ6="","",AZ6) ->  | N6: =IF(BE6="","",BE6) -> 4 | O6: =IF(BJ6="","",BJ6) -> 1 | Q6: =AD6+AI6+AN6+AS6+AX6+BC6+BH6+BM6 -> 455 | R6: =IF($F6>=5,IF(AB6="","",AB6),"") -> 0 | S6: =IF($F6>=5,IF(AG6="","",AG6),"") -> 0 | T6: =IF($F6>=5,IF(AL6="","",AL6),"") -> 100 | U6: =IF($F6>=5,IF(AQ6="","",AQ6),"") -> 100 | V6: =IF($F6>=5,IF(AV6="","",AV6),"") -> 80 | W6: =IF($F6>=5,IF(BA6="","",BA6),"") -> 0 | X6: =IF($F6>=5,IF(BF6="","",BF6),"") -> 50 | Y6: =IF($F6>=5,IF(BK6="","",BK6),"") -> 100 | AB6: =IF(ISNUMBER(AA6),(VLOOKUP(AA6,$BO$6:$BP$50,2)),0) -> 0 | AC6: =IF(AA6<>"",5,0) -> 0 | AD6: =AB6+AC6 -> 0 | AG6: =IF(ISNUMBER(AF6),(VLOOKUP(AF6,$BO$6:$BP$50,2)),0) -> 0 | AH6: =IF(AF6<>"",5,0) -> 0 | AI6: =AG6+AH6 -> 0 | AK6: 1 | AL6: =IF(ISNUMBER(AK6),(VLOOKUP(AK6,$BO$6:$BP$50,2)),0) -> 100 | AM6: =IF(AK6<>"",5,0) -> 5 | AN6: =AL6+AM6 -> 105 | AP6: 1 | AQ6: =IF(ISNUMBER(AP6),(VLOOKUP(AP6,$BO$6:$BP$50,2)),0) -> 100 | AR6: =IF(AP6<>"",5,0) -> 5 | AS6: =AQ6+AR6 -> 105 | AU6: 2 | AV6: =IF(ISNUMBER(AU6),(VLOOKUP(AU6,$BO$6:$BP$50,2)),0) -> 80 | AW6: =IF(AU6<>"",5,0) -> 5 | AX6: =AV6+AW6 -> 85 | BA6: =IF(ISNUMBER(AZ6),(VLOOKUP(AZ6,$BO$6:$BP$50,2)),0) -> 0 | BB6: =IF(AZ6<>"",5,0) -> 0 | BC6: =BA6+BB6 -> 0 | BE6: 4 | BF6: =IF(ISNUMBER(BE6),(VLOOKUP(BE6,$BO$6:$BP$50,2)),0) -> 50 | BG6: =IF(BE6<>"",5,0) -> 5 | BH6: =BF6+BG6 -> 55 | BJ6: 1 | BK6: =IF(ISNUMBER(BJ6),(VLOOKUP(BJ6,$BO$6:$BP$50,2)),0) -> 100 | BL6: =IF(BJ6<>"",5,0) -> 5 | BM6: =BK6+BL6 -> 105 | BO6: 1 | BP6: 100 | BQ6: =IF($F6=8,1,0) -> 0 | BR6: =IF($F6=7,1,0) -> 0 | BS6: =IF($F6=6,1,0) -> 0 | BT6: =IF($F6=5,1,0) -> 1 | BU6: =IF($F6=4,1,0) -> 0 | BV6: =IF($F6=3,1,0) -> 0 | BW6: =IF($F6=2,1,0) -> 0 | BX6: =IF($F6=1,1,0) -> 0
A7: 2 | B7: Grobstok | C7: Emilie Smedsrud | D7: Ready | E7: =IF(F7<=4,Q7,(Q7-SUM(SMALL(R7:Y7,{1;2;3;4})))) -> 390 | F7: 6 | J7: 2 | K7: 2 | L7: 1 | M7: 1 | N7: dnf | O7: 2 | Q7: 470 | R7: 0 | S7: 0 | T7: 80 | U7: 80 | V7: 100 | W7: 100 | X7: 0 | Y7: 80 | AB7: 0 | AC7: 0 | AD7: 0 | AG7: 0 | AH7: 0 | AI7: 0 | AK7: 2 | AL7: 80 | AM7: 5 | AN7: 85 | AP7: 2 | AQ7: 80 | AR7: 5 | AS7: 85 | AU7: 1 | AV7: 100 | AW7: 5 | AX7: 105 | AZ7: 1 | BA7: 100 | BB7: 5 | BC7: 105 | BE7: dnf | BF7: 0 | BG7: 5 | BH7: 5 | BJ7: 2 | BK7: 80 | BL7: 5 | BM7: 85 | BO7: 2 | BP7: 80 | BQ7: =IF($F7=8,1,0) -> 0 | BR7: 0 | BS7: 1 | BT7: 0 | BU7: 0 | BV7: 0 | BW7: 0 | BX7: 0
A8: 3 | B8: Grøndalen | C8: Eira Marie | D8: Ljan | E8: =IF(F8<=4,Q8,(Q8-SUM(SMALL(R8:Y8,{1;2;3;4})))) -> 350 | F8: 8 | H8: 2 | I8: 2 | J8: 8 | K8: 5 | L8: 13 | M8: 4 | N8: 1 | O8: 5 | Q8: 492 | R8: 80 | S8: 80 | T8: 32 | U8: 45 | V8: 20 | W8: 50 | X8: 100 | Y8: 45 | AA8: 2 | AB8: 80 | AC8: 5 | AD8: 85 | AF8: 2 | AG8: 80 | AH8: 5 | AI8: 85 | AK8: 8 | AL8: 32 | AM8: 5 | AN8: 37 | AP8: 5 | AQ8: 45 | AR8: 5 | AS8: 50 | AU8: 13 | AV8: 20 | AW8: 5 | AX8: 25 | AZ8: 4 | BA8: 50 | BB8: 5 | BC8: 55 | BE8: 1 | BF8: 100 | BG8: 5 | BH8: 105 | BJ8: 5 | BK8: 45 | BL8: 5 | BM8: 50 | BO8: 3 | BP8: 60 | BQ8: 1 | BR8: 0 | BS8: 0 | BT8: 0 | BU8: 0 | BV8: 0 | BW8: 0 | BX8: 0
A9: 4 | B9: Schei | C9: Julie Haakaas | D9: IRS | E9: =IF(F9<=4,Q9,(Q9-SUM(SMALL(R9:Y9,{1;2;3;4})))) -> 335 | F9: 7 | H9: 1 | I9: 1 | J9: 4 | K9: 9 | L9: 5 | N9: dsq | O9: 4 | Q9: 409 | R9: 100 | S9: 100 | T9: 50 | U9: 29 | V9: 45 | W9: 0 | X9: 0 | Y9: 50 | AA9: 1 | AB9: 100 | AC9: 5 | AD9: 105 | AF9: 1 | AG9: 100 | AH9: 5 | AI9: 105 | AK9: 4 | AL9: 50 | AM9: 5 | AN9: 55 | AP9: 9 | AQ9: 29 | AR9: 5 | AS9: 34 | AU9: 5 | AV9: 45 | AW9: 5 | AX9: 50 | BA9: 0 | BB9: 0 | BC9: 0 | BE9: dsq | BF9: 0 | BG9: 5 | BH9: 5 | BJ9: 4 | BK9: 50 | BL9: 5 | BM9: 55 | BO9: 4 | BP9: 50 | BQ9: 0 | BR9: 1 | BS9: 0 | BT9: 0 | BU9: 0 | BV9: 0 | BW9: 0 | BX9: 0
A10: 5 | B10: Elmenhorst-Larsen | C10: Sina | D10: Ready | E10: =IF(F10<=4,Q10,(Q10-SUM(SMALL(R10:Y10,{1;2;3;4})))) -> 295 | F10: 7 | H10: 3 | J10: 5 | K10: 4 | L10: 6 | M10: 3 | N10: 2 | O10: 3 | Q10: 430 | R10: 60 | S10: 0 | T10: 45 | U10: 50 | V10: 40 | W10: 60 | X10: 80 | Y10: 60 | AA10: 3 | AB10: 60 | AC10: 5 | AD10: 65 | AG10: 0 | AH10: 0 | AI10: 0 | AK10: 5 | AL10: 45 | AM10: 5 | AN10: 50 | AP10: 4 | AQ10: 50 | AR10: 5 | AS10: 55 | AU10: 6 | AV10: 40 | AW10: 5 | AX10: 45 | AZ10: 3 | BA10: 60 | BB10: 5 | BC10: 65 | BE10: 2 | BF10: 80 | BG10: 5 | BH10: 85 | BJ10: 3 | BK10: 60 | BL10: 5 | BM10: 65 | BO10: 5 | BP10: 45 | BQ10: 0 | BR10: 1 | BS10: 0 | BT10: 0 | BU10: 0 | BV10: 0 | BW10: 0 | BX10: 0
A11: 6 | B11: Semmelmann | C11: Ellisif Marie | D11: Heming | E11: =IF(F11<=4,Q11,(Q11-SUM(SMALL(R11:Y11,{1;2;3;4})))) -> 260 | F11: 4 | J11: 6 | K11: 3 | L11: 3 | M11: 2 | Q11: 260 | AB11: 0 | AC11: 0 | AD11: 0 | AG11: 0 | AH11: 0 | AI11: 0 | AK11: 6 | AL11: 40 | AM11: 5 | AN11: 45 | AP11: 3 | AQ11: 60 | AR11: 5 | AS11: 65 | AU11: 3 | AV11: 60 | AW11: 5 | AX11: 65 | AZ11: 2 | BA11: 80 | BB11: 5 | BC11: 85 | BF11: 0 | BG11: 0 | BH11: 0 | BK11: 0 | BL11: 0 | BM11: 0 | BO11: 6 | BP11: 40 | BQ11: 0 | BR11: 0 | BS11: 0 | BT11: 0 | BU11: 1 | BV11: 0 | BW11: 0 | BX11: 0
A12: 7 | B12: Holter | C12: Vilde Emilie | D12: Ullensaker | E12: =IF(F12<=4,Q12,(Q12-SUM(SMALL(R12:Y12,{1;2;3;4})))) -> 201 | F12: 5 | J12: 3 | L12: 7 | M12: 6 | N12: 13 | O12: 6 | Q12: 221 | R12: 0 | S12: 0 | T12: 60 | U12: 0 | V12: 36 | W12: 40 | X12: 20 | Y12: 40 | AB12: 0 | AC12: 0 | AD12: 0 | AG12: 0 | AH12: 0 | AI12: 0 | AK12: 3 | AL12: 60 | AM12: 5 | AN12: 65 | AQ12: 0 | AR12: 0 | AS12: 0 | AU12: 7 | AV12: 36 | AW12: 5 | AX12: 41 | AZ12: 6 | BA12: 40 | BB12: 5 | BC12: 45 | BE12: 13 | BF12: 20 | BG12: 5 | BH12: 25 | BJ12: 6 | BK12: 40 | BL12: 5 | BM12: 45 | BO12: 7 | BP12: 36 | BQ12: 0 | BR12: 0 | BS12: 0 | BT12: 1 | BU12: 0 | BV12: 0 | BW12: 0 | BX12: 0
A13: 8 | B13: Heggelund | C13: Hedda Ramstad | D13: Ullensaker | E13: =IF(F13<=4,Q13,(Q13-SUM(SMALL(R13:Y13,{1;2;3;4})))) -> 184 | F13: 6 | H13: 5 | I13: dsq | L13: 17 | M13: 5 | N13: 6 | O13: 11 | Q13: 198 | R13: 45 | S13: 0 | T13: 0 | U13: 0 | V13: 14 | W13: 45 | X13: 40 | Y13: 24 | AA13: 5 | AB13: 45 | AC13: 5 | AD13: 50 | AF13: dsq | AG13: 0 | AH13: 5 | AI13: 5 | AL13: 0 | AM13: 0 | AN13: 0 | AQ13: 0 | AR13: 0 | AS13: 0 | AU13: 17 | AV13: 14 | AW13: 5 | AX13: 19 | AZ13: 5 | BA13: 45 | BB13: 5 | BC13: 50 | BE13: 6 | BF13: 40 | BG13: 5 | BH13: 45 | BJ13: 11 | BK13: 24 | BL13: 5 | BM13: 29 | BO13: 8 | BP13: 32 | BQ13: 0 | BR13: 0 | BS13: 1 | BT13: 0 | BU13: 0 | BV13: 0 | BW13: 0 | BX13: 0
A14: 9 | B14: Borge-Andersen | C14: Felin | D14: Heming | E14: =IF(F14<=4,Q14,(Q14-SUM(SMALL(R14:Y14,{1;2;3;4})))) -> 155 | F14: 5 | J14: 7 | K14: 7 | L14: 12 | N14: dsq | O14: 7 | Q14: 155 | R14: 0 | S14: 0 | T14: 36 | U14: 36 | V14: 22 | W14: 0 | X14: 0 | Y14: 36 | AB14: 0 | AC14: 0 | AD14: 0 | AG14: 0 | AH14: 0 | AI14: 0 | AK14: 7 | AL14: 36 | AM14: 5 | AN14: 41 | AP14: 7 | AQ14: 36 | AR14: 5 | AS14: 41 | AU14: 12 | AV14: 22 | AW14: 5 | AX14: 27 | BA14: 0 | BB14: 0 | BC14: 0 | BE14: dsq | BF14: 0 | BG14: 5 | BH14: 5 | BJ14: 7 | BK14: 36 | BL14: 5 | BM14: 41 | BO14: 9 | BP14: 29 | BQ14: 0 | BR14: 0 | BS14: 0 | BT14: 1 | BU14: 0 | BV14: 0 | BW14: 0 | BX14: 0
A15: 10 | B15: Bjørland | C15: Vilde | D15: Heming | E15: =IF(F15<=4,Q15,(Q15-SUM(SMALL(R15:Y15,{1;2;3;4})))) -> 149 | F15: 4 | H15: 4 | I15: 4 | L15: 24 | M15: 12 | Q15: 149 | AA15: 4 | AB15: 50 | AC15: 5 | AD15: 55 | AF15: 4 | AG15: 50 | AH15: 5 | AI15: 55 | AL15: 0 | AM15: 0 | AN15: 0 | AQ15: 0 | AR15: 0 | AS15: 0 | AU15: 24 | AV15: 7 | AW15: 5 | AX15: 12 | AZ15: 12 | BA15: 22 | BB15: 5 | BC15: 27 | BF15: 0 | BG15: 0 | BH15: 0 | BK15: 0 | BL15: 0 | BM15: 0 | BO15: 10 | BP15: 26 | BQ15: 0 | BR15: 0 | BS15: 0 | BT15: 0 | BU15: 1 | BV15: 0 | BW15: 0 | BX15: 0
A16: 10 | B16: Riiber | C16: Kristiane | D16: Heming | E16: =IF(F16<=4,Q16,(Q16-SUM(SMALL(R16:Y16,{1;2;3;4})))) -> 149 | F16: 6 | J16: 10 | K16: 8 | L16: 9 | M16: 9 | N16: 9 | O16: 16 | Q16: 190 | R16: 0 | S16: 0 | T16: 26 | U16: 32 | V16: 29 | W16: 29 | X16: 29 | Y16: 15 | AB16: 0 | AC16: 0 | AD16: 0 | AG16: 0 | AH16: 0 | AI16: 0 | AK16: 10 | AL16: 26 | AM16: 5 | AN16: 31 | AP16: 8 | AQ16: 32 | AR16: 5 | AS16: 37 | AU16: 9 | AV16: 29 | AW16: 5 | AX16: 34 | AZ16: 9 | BA16: 29 | BB16: 5 | BC16: 34 | BE16: 9 | BF16: 29 | BG16: 5 | BH16: 34 | BJ16: 16 | BK16: 15 | BL16: 5 | BM16: 20 | BO16: 11 | BP16: 24 | BQ16: 0 | BR16: 0 | BS16: 1 | BT16: 0 | BU16: 0 | BV16: 0 | BW16: 0 | BX16: 0
A17: 12 | B17: Ardem | C17: Emilie Caroline | D17: Kjelsås | E17: =IF(F17<=4,Q17,(Q17-SUM(SMALL(R17:Y17,{1;2;3;4})))) -> 130 | F17: 6 | J17: 15 | K17: 12 | L17: 19 | M17: 7 | N17: dsq | O17: 10 | Q17: 142 | R17: 0 | S17: 0 | T17: 16 | U17: 22 | V17: 12 | W17: 36 | X17: 0 | Y17: 26 | AB17: 0 | AC17: 0 | AD17: 0 | AG17: 0 | AH17: 0 | AI17: 0 | AK17: 15 | AL17: 16 | AM17: 5 | AN17: 21 | AP17: 12 | AQ17: 22 | AR17: 5 | AS17: 27 | AU17: 19 | AV17: 12 | AW17: 5 | AX17: 17 | AZ17: 7 | BA17: 36 | BB17: 5 | BC17: 41 | BE17: dsq | BF17: 0 | BG17: 5 | BH17: 5 | BJ17: 10 | BK17: 26 | BL17: 5 | BM17: 31 | BO17: 12 | BP17: 22 | BQ17: 0 | BR17: 0 | BS17: 1 | BT17: 0 | BU17: 0 | BV17: 0 | BW17: 0 | BX17: 0
A18: 13 | B18: Roll | C18: Celine Amelie | D18: Ready | E18: =IF(F18<=4,Q18,(Q18-SUM(SMALL(R18:Y18,{1;2;3;4})))) -> 126 | F18: 6 | J18: 11 | K18: 17 | L18: 10 | M18: dsq | N18: dsq | O18: 8 | Q18: 126 | R18: 0 | S18: 0 | T18: 24 | U18: 14 | V18: 26 | W18: 0 | X18: 0 | Y18: 32 | AB18: 0 | AC18: 0 | AD18: 0 | AG18: 0 | AH18: 0 | AI18: 0 | AK18: 11 | AL18: 24 | AM18: 5 | AN18: 29 | AP18: 17 | AQ18: 14 | AR18: 5 | AS18: 19 | AU18: 10 | AV18: 26 | AW18: 5 | AX18: 31 | AZ18: dsq | BA18: 0 | BB18: 5 | BC18: 5 | BE18: dsq | BF18: 0 | BG18: 5 | BH18: 5 | BJ18: 8 | BK18: 32 | BL18: 5 | BM18: 37 | BO18: 13 | BP18: 20 | BQ18: 0 | BR18: =IF($F17=7,1,0) -> 0 | BS18: =IF($F17=6,1,0) -> 1 | BT18: =IF($F17=5,1,0) -> 0 | BU18: =IF($F17=4,1,0) -> 0 | BV18: =IF($F17=3,1,0) -> 0 | BW18: =IF($F17=2,1,0) -> 0 | BX18: =IF($F17=1,1,0) -> 0
A19: 14 | B19: Wilhelmsen | C19: Victoria Pandher | D19: Ready | E19: =IF(F19<=4,Q19,(Q19-SUM(SMALL(R19:Y19,{1;2;3;4})))) -> 124 | F19: 6 | J19: dnf | K19: 14 | L19: 21 | M19: 8 | N19: 11 | O19: 13 | Q19: 134 | R19: 0 | S19: 0 | T19: 0 | U19: 18 | V19: 10 | W19: 32 | X19: 24 | Y19: 20 | AB19: 0 | AC19: 0 | AD19: 0 | AG19: 0 | AH19: 0 | AI19: 0 | AK19: dnf | AL19: 0 | AM19: 5 | AN19: 5 | AP19: 14 | AQ19: 18 | AR19: 5 | AS19: 23 | AU19: 21 | AV19: 10 | AW19: 5 | AX19: 15 | AZ19: 8 | BA19: 32 | BB19: 5 | BC19: 37 | BE19: 11 | BF19: 24 | BG19: 5 | BH19: 29 | BJ19: 13 | BK19: 20 | BL19: 5 | BM19: 25 | BO19: 14 | BP19: 18 | BQ19: 0 | BR19: =IF($F18=7,1,0) -> 0 | BS19: =IF($F18=6,1,0) -> 1 | BT19: =IF($F18=5,1,0) -> 0 | BU19: =IF($F18=4,1,0) -> 0 | BV19: =IF($F18=3,1,0) -> 0 | BW19: =IF($F18=2,1,0) -> 0 | BX19: =IF($F18=1,1,0) -> 0
A20: 15 | B20: Ingebrigtsen | C20: Nora Haugmoen | D20: Heming | E20: =IF(F20<=4,Q20,(Q20-SUM(SMALL(R20:Y20,{1;2;3;4})))) -> 121 | F20: 4 | J20: 9 | K20: 6 | L20: dsq | N20: 8 | Q20: 121 | AB20: 0 | AC20: 0 | AD20: 0 | AG20: 0 | AH20: 0 | AI20: 0 | AK20: 9 | AL20: 29 | AM20: 5 | AN20: 34 | AP20: 6 | AQ20: 40 | AR20: 5 | AS20: 45 | AU20: dsq | AV20: 0 | AW20: 5 | AX20: 5 | BA20: 0 | BB20: 0 | BC20: 0 | BE20: 8 | BF20: 32 | BG20: 5 | BH20: 37 | BK20: 0 | BL20: 0 | BM20: 0 | BO20: 15 | BP20: 16 | BQ20: 0 | BR20: =IF($F19=7,1,0) -> 0 | BS20: =IF($F19=6,1,0) -> 1 | BT20: =IF($F19=5,1,0) -> 0 | BU20: =IF($F19=4,1,0) -> 0 | BV20: =IF($F19=3,1,0) -> 0 | BW20: =IF($F19=2,1,0) -> 0 | BX20: =IF($F19=1,1,0) -> 0
A21: 16 | B21: Braathen | C21: Elisabeth Texnæs | D21: Heming | E21: =IF(F21<=4,Q21,(Q21-SUM(SMALL(R21:Y21,{1;2;3;4})))) -> 118 | F21: 6 | J21: 12 | K21: 11 | L21: 20 | M21: dsq | N21: 10 | O21: 15 | Q21: 129 | R21: 0 | S21: 0 | T21: 22 | U21: 24 | V21: 11 | W21: 0 | X21: 26 | Y21: 16 | AB21: 0 | AC21: 0 | AD21: 0 | AG21: 0 | AH21: 0 | AI21: 0 | AK21: 12 | AL21: 22 | AM21: 5 | AN21: 27 | AP21: 11 | AQ21: 24 | AR21: 5 | AS21: 29 | AU21: 20 | AV21: 11 | AW21: 5 | AX21: 16 | AZ21: dsq | BA21: 0 | BB21: 5 | BC21: 5 | BE21: 10 | BF21: 26 | BG21: 5 | BH21: 31 | BJ21: 15 | BK21: 16 | BL21: 5 | BM21: 21 | BO21: 16 | BP21: 15 | BQ21: 0 | BR21: =IF($F19=7,1,0) -> 0 | BS21: =IF($F19=6,1,0) -> 1 | BT21: =IF($F19=5,1,0) -> 0 | BU21: =IF($F19=4,1,0) -> 0 | BV21: =IF($F19=3,1,0) -> 0 | BW21: =IF($F19=2,1,0) -> 0 | BX21: =IF($F19=1,1,0) -> 0
A22: 17 | B22: Fleischer | C22: Elise Victoria | D22: Heming | E22: =IF(F22<=4,Q22,(Q22-SUM(SMALL(R22:Y22,{1;2;3;4})))) -> 104 | F22: 3 | L22: 16 | N22: 5 | O22: 9 | Q22: 104 | AB22: 0 | AC22: 0 | AD22: 0 | AG22: 0 | AH22: 0 | AI22: 0 | AL22: 0 | AM22: 0 | AN22: 0 | AQ22: 0 | AR22: 0 | AS22: 0 | AU22: 16 | AV22: 15 | AW22: 5 | AX22: 20 | BA22: 0 | BB22: 0 | BC22: 0 | BE22: 5 | BF22: 45 | BG22: 5 | BH22: 50 | BJ22: 9 | BK22: 29 | BL22: 5 | BM22: 34 | BO22: 17 | BP22: 14 | BQ22: 0 | BR22: 0 | BS22: 0 | BT22: 0 | BU22: 1 | BV22: 0 | BW22: 0 | BX22: 0
A23: 18 | B23: Meidell | C23: Lucie Marie | D23: Heming | E23: =IF(F23<=4,Q23,(Q23-SUM(SMALL(R23:Y23,{1;2;3;4})))) -> 102 | F23: 2 | L23: 8 | N23: 3 | Q23: 102 | V23: =IF($F23>=5,IF(AV23="","",AV23),"") ->  | AB23: 0 | AC23: 0 | AD23: 0 | AG23: 0 | AH23: 0 | AI23: 0 | AL23: 0 | AM23: 0 | AN23: 0 | AQ23: 0 | AR23: 0 | AS23: 0 | AU23: 8 | AV23: 32 | AW23: 5 | AX23: 37 | BA23: 0 | BB23: 0 | BC23: 0 | BE23: 3 | BF23: 60 | BG23: 5 | BH23: 65 | BK23: 0 | BL23: 0 | BM23: 0 | BO23: 18 | BP23: 13 | BQ23: 0 | BR23: 0 | BS23: 1 | BT23: 0 | BU23: 0 | BV23: 0 | BW23: 0 | BX23: 0
A24: 19 | B24: Kolbjørnsrud | C24: Ingrid | D24: Kjelsås | E24: =IF(F24<=4,Q24,(Q24-SUM(SMALL(R24:Y24,{1;2;3;4})))) -> 96 | F24: 6 | J24: 17 | K24: dnf | L24: 26 | M24: 13 | N24: 14 | O24: 17 | Q24: 101 | R24: 0 | S24: 0 | T24: 14 | U24: 0 | V24: 5 | W24: 20 | X24: 18 | Y24: 14 | AB24: 0 | AC24: 0 | AD24: 0 | AG24: 0 | AH24: 0 | AI24: 0 | AK24: 17 | AL24: 14 | AM24: 5 | AN24: 19 | AP24: dnf | AQ24: 0 | AR24: 5 | AS24: 5 | AU24: 26 | AV24: 5 | AW24: 5 | AX24: 10 | AZ24: 13 | BA24: 20 | BB24: 5 | BC24: 25 | BE24: 14 | BF24: 18 | BG24: 5 | BH24: 23 | BJ24: 17 | BK24: 14 | BL24: 5 | BM24: 19 | BO24: 19 | BP24: 12 | BQ24: 0 | BR24: 0 | BS24: 0 | BT24: 0 | BU24: 0 | BV24: 1 | BW24: 0 | BX24: 0
A25: 20 | B25: Danielsen | C25: Hedvig Aabel | D25: Heming | E25: =IF(F25<=4,Q25,(Q25-SUM(SMALL(R25:Y25,{1;2;3;4})))) -> 94 | F25: 6 | J25: 19 | K25: 18 | L25: 28 | M25: 10 | N25: dnf | O25: 18 | Q25: 97 | R25: 0 | S25: 0 | T25: 12 | U25: 13 | V25: 3 | W25: 26 | X25: 0 | Y25: 13 | AB25: 0 | AC25: 0 | AD25: 0 | AG25: 0 | AH25: 0 | AI25: 0 | AK25: 19 | AL25: 12 | AM25: 5 | AN25: 17 | AP25: 18 | AQ25: 13 | AR25: 5 | AS25: 18 | AU25: 28 | AV25: 3 | AW25: 5 | AX25: 8 | AZ25: 10 | BA25: 26 | BB25: 5 | BC25: 31 | BE25: dnf | BF25: 0 | BG25: 5 | BH25: 5 | BJ25: 18 | BK25: 13 | BL25: 5 | BM25: 18 | BO25: 20 | BP25: 11 | BQ25: 0 | BR25: 0 | BS25: 0 | BT25: 0 | BU25: 0 | BV25: 0 | BW25: 1 | BX25: 0
A26: 21 | B26: Eskeland | C26: Helen Olivia | D26: Heming | E26: =IF(F26<=4,Q26,(Q26-SUM(SMALL(R26:Y26,{1;2;3;4})))) -> 77 | F26: 3 | J26: 13 | K26: 10 | L26: 15 | Q26: 77 | AB26: 0 | AC26: 0 | AD26: 0 | AG26: 0 | AH26: 0 | AI26: 0 | AK26: 13 | AL26: 20 | AM26: 5 | AN26: 25 | AP26: 10 | AQ26: 26 | AR26: 5 | AS26: 31 | AU26: 15 | AV26: 16 | AW26: 5 | AX26: 21 | BA26: 0 | BB26: 0 | BC26: 0 | BF26: 0 | BG26: 0 | BH26: 0 | BK26: 0 | BL26: 0 | BM26: 0 | BO26: 21 | BP26: 10 | BQ26: 0 | BR26: 0 | BS26: 1 | BT26: 0 | BU26: 0 | BV26: 0 | BW26: 0 | BX26: 0
A27: 22 | B27: Rivelsrud | C27: Matilde Sofia | D27: Heming | E27: =IF(F27<=4,Q27,(Q27-SUM(SMALL(R27:Y27,{1;2;3;4})))) -> 71 | F27: 5 | J27: 14 | K27: 13 | L27: 23 | N27: dsq | O27: dsq | Q27: 71 | R27: 0 | S27: 0 | T27: 18 | U27: 20 | V27: 8 | W27: 0 | X27: 0 | Y27: 0 | AB27: 0 | AC27: 0 | AD27: 0 | AG27: 0 | AH27: 0 | AI27: 0 | AK27: 14 | AL27: 18 | AM27: 5 | AN27: 23 | AP27: 13 | AQ27: 20 | AR27: 5 | AS27: 25 | AU27: 23 | AV27: 8 | AW27: 5 | AX27: 13 | BA27: 0 | BB27: 0 | BC27: 0 | BE27: dsq | BF27: 0 | BG27: 5 | BH27: 5 | BJ27: dsq | BK27: 0 | BL27: 5 | BM27: 5 | BO27: 22 | BP27: 9 | BQ27: 0 | BR27: 0 | BS27: 1 | BT27: 0 | BU27: 0 | BV27: 0 | BW27: 0 | BX27: 0
A28: 23 | B28: Dahl | C28: Olea | D28: Ljan | E28: =IF(F28<=4,Q28,(Q28-SUM(SMALL(R28:Y28,{1;2;3;4})))) -> 65 | F28: 1 | I28: 3 | Q28: 65 | AB28: 0 | AC28: 0 | AD28: 0 | AF28: 3 | AG28: 60 | AH28: 5 | AI28: 65 | AL28: 0 | AM28: 0 | AN28: 0 | AQ28: 0 | AR28: 0 | AS28: 0 | AV28: 0 | AW28: 0 | AX28: 0 | BA28: 0 | BB28: 0 | BC28: 0 | BF28: 0 | BG28: 0 | BH28: 0 | BK28: 0 | BL28: 0 | BM28: 0 | BO28: 23 | BP28: 8 | BQ28: 0 | BR28: =IF($F23=7,1,0) -> 0 | BS28: =IF($F23=6,1,0) -> 0 | BT28: =IF($F23=5,1,0) -> 0 | BU28: =IF($F23=4,1,0) -> 0 | BV28: =IF($F23=3,1,0) -> 0 | BW28: =IF($F23=2,1,0) -> 1 | BX28: =IF($F23=1,1,0) -> 0
A29: 24 | B29: Bunæs-Røyr | C29: Cornelia | D29: Stabæk | E29: =IF(F29<=4,Q29,(Q29-SUM(SMALL(R29:Y29,{1;2;3;4})))) -> 55 | F29: 1 | L29: 4 | Q29: 55 | AB29: 0 | AC29: 0 | AD29: 0 | AG29: 0 | AH29: 0 | AI29: 0 | AL29: 0 | AM29: 0 | AN29: 0 | AQ29: 0 | AR29: 0 | AS29: 0 | AU29: 4 | AV29: 50 | AW29: 5 | AX29: 55 | BA29: 0 | BB29: 0 | BC29: 0 | BF29: 0 | BG29: 0 | BH29: 0 | BK29: 0 | BL29: 0 | BM29: 0 | BO29: 24 | BP29: 7 | BQ29: 0 | BR29: =IF($F24=7,1,0) -> 0 | BS29: =IF($F24=6,1,0) -> 1 | BT29: =IF($F24=5,1,0) -> 0 | BU29: =IF($F24=4,1,0) -> 0 | BV29: =IF($F24=3,1,0) -> 0 | BW29: =IF($F24=2,1,0) -> 0 | BX29: =IF($F24=1,1,0) -> 0
A30: 25 | B30: Bergh | C30: Karoline Molland | D30: Heming | E30: =IF(F30<=4,Q30,(Q30-SUM(SMALL(R30:Y30,{1;2;3;4})))) -> 50 | F30: 2 | N30: 12 | O30: 14 | Q30: 50 | AB30: 0 | AC30: 0 | AD30: 0 | AG30: 0 | AH30: 0 | AI30: 0 | AL30: 0 | AM30: 0 | AN30: 0 | AQ30: 0 | AR30: 0 | AS30: 0 | AV30: 0 | AW30: 0 | AX30: 0 | BA30: 0 | BB30: 0 | BC30: 0 | BE30: 12 | BF30: 22 | BG30: 5 | BH30: 27 | BJ30: 14 | BK30: 18 | BL30: 5 | BM30: 23 | BO30: 25 | BP30: 6 | BQ30: 0 | BR30: =IF($F25=7,1,0) -> 0 | BS30: =IF($F25=6,1,0) -> 1 | BT30: =IF($F25=5,1,0) -> 0 | BU30: =IF($F25=4,1,0) -> 0 | BV30: =IF($F25=3,1,0) -> 0 | BW30: =IF($F25=2,1,0) -> 0 | BX30: =IF($F25=1,1,0) -> 0
A31: 26 | B31: Hovdenak | C31: Selma Stenersen | D31: Njård | E31: =IF(F31<=4,Q31,(Q31-SUM(SMALL(R31:Y31,{1;2;3;4})))) -> 49 | F31: 3 | J31: 18 | K31: 16 | L31: 25 | Q31: 49 | AB31: 0 | AC31: 0 | AD31: 0 | AG31: 0 | AH31: 0 | AI31: 0 | AK31: 18 | AL31: 13 | AM31: 5 | AN31: 18 | AP31: 16 | AQ31: 15 | AR31: 5 | AS31: 20 | AU31: 25 | AV31: 6 | AW31: 5 | AX31: 11 | BA31: 0 | BB31: 0 | BC31: 0 | BF31: 0 | BG31: 0 | BH31: 0 | BK31: 0 | BL31: 0 | BM31: 0 | BO31: 26 | BP31: 5 | BQ31: 0 | BR31: =IF($F25=7,1,0) -> 0 | BS31: =IF($F25=6,1,0) -> 1 | BT31: =IF($F25=5,1,0) -> 0 | BU31: =IF($F25=4,1,0) -> 0 | BV31: =IF($F25=3,1,0) -> 0 | BW31: =IF($F25=2,1,0) -> 0 | BX31: =IF($F25=1,1,0) -> 0
A32: 27 | B32: Vigstad-Petersen | C32: Tina | D32: HSIL | E32: =IF(F32<=4,Q32,(Q32-SUM(SMALL(R32:Y32,{1;2;3;4})))) -> 46 | F32: 2 | M32: dsq | N32: 7 | Q32: 46 | AB32: 0 | AC32: 0 | AD32: 0 | AG32: 0 | AH32: 0 | AI32: 0 | AL32: 0 | AM32: 0 | AN32: 0 | AQ32: 0 | AR32: 0 | AS32: 0 | AV32: 0 | AW32: 0 | AX32: 0 | AZ32: dsq | BA32: 0 | BB32: 5 | BC32: 5 | BE32: 7 | BF32: 36 | BG32: 5 | BH32: 41 | BK32: 0 | BL32: 0 | BM32: 0 | BO32: 27 | BP32: 4 | BQ32: 0 | BR32: =IF($F26=7,1,0) -> 0 | BS32: =IF($F26=6,1,0) -> 0 | BT32: =IF($F26=5,1,0) -> 0 | BU32: =IF($F26=4,1,0) -> 0 | BV32: =IF($F26=3,1,0) -> 1 | BW32: =IF($F26=2,1,0) -> 0 | BX32: =IF($F26=1,1,0) -> 0
A33: 28 | B33: Kristoffersen | C33: Kajsa Dahl | D33: Ready | E33: =IF(F33<=4,Q33,(Q33-SUM(SMALL(R33:Y33,{1;2;3;4})))) -> 42 | F33: 3 | J33: 20 | K33: 19 | L33: 27 | Q33: 42 | AB33: 0 | AC33: 0 | AD33: 0 | AG33: 0 | AH33: 0 | AI33: 0 | AK33: 20 | AL33: 11 | AM33: 5 | AN33: 16 | AP33: 19 | AQ33: 12 | AR33: 5 | AS33: 17 | AU33: 27 | AV33: 4 | AW33: 5 | AX33: 9 | BA33: 0 | BB33: 0 | BC33: 0 | BF33: 0 | BG33: 0 | BH33: 0 | BK33: 0 | BL33: 0 | BM33: 0 | BO33: 28 | BP33: 3 | BQ33: 0 | BR33: 0 | BS33: 0 | BT33: 1 | BU33: 0 | BV33: 0 | BW33: 0 | BX33: 0
A34: 29 | B34: Christiansen | C34: Aleksandra | D34: Try | E34: =IF(F34<=4,Q34,(Q34-SUM(SMALL(R34:Y34,{1;2;3;4})))) -> 39 | F34: 2 | K34: 15 | L34: 18 | Q34: 39 | AB34: 0 | AC34: 0 | AD34: 0 | AG34: 0 | AH34: 0 | AI34: 0 | AL34: 0 | AM34: 0 | AN34: 0 | AP34: 15 | AQ34: 16 | AR34: 5 | AS34: 21 | AU34: 18 | AV34: 13 | AW34: 5 | AX34: 18 | BA34: 0 | BB34: 0 | BC34: 0 | BF34: 0 | BG34: 0 | BH34: 0 | BK34: 0 | BL34: 0 | BM34: 0 | BO34: 29 | BP34: 2 | BQ34: 0 | BR34: 0 | BS34: 0 | BT34: 0 | BU34: 0 | BV34: 0 | BW34: 0 | BX34: 1
A35: 30 | B35: Veiteberg | C35: Anna Elise | D35: Ullensaker | E35: =IF(F35<=4,Q35,(Q35-SUM(SMALL(R35:Y35,{1;2;3;4})))) -> 34 | F35: 2 | L35: dsq | M35: 11 | Q35: 34 | AB35: 0 | AC35: 0 | AD35: 0 | AG35: 0 | AH35: 0 | AI35: 0 | AL35: 0 | AM35: 0 | AN35: 0 | AQ35: 0 | AR35: 0 | AS35: 0 | AU35: dsq | AV35: 0 | AW35: 5 | AX35: 5 | AZ35: 11 | BA35: 24 | BB35: 5 | BC35: 29 | BF35: 0 | BG35: 0 | BH35: 0 | BK35: 0 | BL35: 0 | BM35: 0 | BO35: 30 | BP35: 1 | BQ35: 0 | BR35: =IF($F26=7,1,0) -> 0 | BS35: =IF($F26=6,1,0) -> 0 | BT35: =IF($F26=5,1,0) -> 0 | BU35: =IF($F26=4,1,0) -> 0 | BV35: =IF($F26=3,1,0) -> 1 | BW35: =IF($F26=2,1,0) -> 0 | BX35: =IF($F26=1,1,0) -> 0
A36: 31 | B36: Størmer-Nilsen | C36: Filippa | D36: Heming | E36: =IF(F36<=4,Q36,(Q36-SUM(SMALL(R36:Y36,{1;2;3;4})))) -> 29 | F36: 1 | L36: 11 | Q36: 29 | AB36: 0 | AC36: 0 | AD36: 0 | AG36: 0 | AH36: 0 | AI36: 0 | AL36: 0 | AM36: 0 | AN36: 0 | AQ36: 0 | AR36: 0 | AS36: 0 | AU36: 11 | AV36: 24 | AW36: 5 | AX36: 29 | BA36: 0 | BB36: 0 | BC36: 0 | BF36: 0 | BG36: 0 | BH36: 0 | BK36: 0 | BL36: 0 | BM36: 0 | BO36: 31 | BP36: 0 | BQ36: 0 | BR36: 0 | BS36: 0 | BT36: 1 | BU36: 0 | BV36: 0 | BW36: 0 | BX36: 0
A37: 32 | B37: Haugmoen Ingebrigtsen | C37: Nora | D37: Heming | E37: =IF(F37<=4,Q37,(Q37-SUM(SMALL(R37:Y37,{1;2;3;4})))) -> 27 | F37: 1 | O37: 12 | Q37: 27 | AB37: 0 | AC37: 0 | AD37: 0 | AG37: 0 | AH37: 0 | AI37: 0 | AL37: 0 | AM37: 0 | AN37: 0 | AQ37: 0 | AR37: 0 | AS37: 0 | AV37: 0 | AW37: 0 | AX37: 0 | BA37: 0 | BB37: 0 | BC37: 0 | BF37: 0 | BG37: 0 | BH37: 0 | BJ37: 12 | BK37: 22 | BL37: 5 | BM37: 27 | BO37: 32 | BP37: 0 | BQ37: 0 | BR37: 0 | BS37: 0 | BT37: 0 | BU37: 0 | BV37: 0 | BW37: 0 | BX37: 1
A38: 33 | B38: Mannion | C38: Nora Isabel | D38: Ullensaker | E38: =IF(F38<=4,Q38,(Q38-SUM(SMALL(R38:Y38,{1;2;3;4})))) -> 23 | F38: 1 | L38: 14 | Q38: 23 | AB38: 0 | AC38: 0 | AD38: 0 | AG38: 0 | AH38: 0 | AI38: 0 | AL38: 0 | AM38: 0 | AN38: 0 | AQ38: 0 | AR38: 0 | AS38: 0 | AU38: 14 | AV38: 18 | AW38: 5 | AX38: 23 | BA38: 0 | BB38: 0 | BC38: 0 | BF38: 0 | BG38: 0 | BH38: 0 | BK38: 0 | BL38: 0 | BM38: 0 | BO38: 33 | BP38: 0 | BQ38: 0 | BR38: 0 | BS38: 0 | BT38: 0 | BU38: 0 | BV38: 0 | BW38: 0 | BX38: 1
A39: 34 | B39: Karlstrøm | C39: Tomine | D39: Heming | E39: =IF(F39<=4,Q39,(Q39-SUM(SMALL(R39:Y39,{1;2;3;4})))) -> 20 | F39: 1 | J39: 16 | Q39: 20 | AB39: 0 | AC39: 0 | AD39: 0 | AG39: 0 | AH39: 0 | AI39: 0 | AK39: 16 | AL39: 15 | AM39: 5 | AN39: 20 | AQ39: 0 | AR39: 0 | AS39: 0 | AV39: 0 | AW39: 0 | AX39: 0 | BA39: 0 | BB39: 0 | BC39: 0 | BF39: 0 | BG39: 0 | BH39: 0 | BK39: 0 | BL39: 0 | BM39: 0 | BO39: 34 | BP39: 0 | BQ39: 0 | BR39: 0 | BS39: 0 | BT39: 0 | BU39: 0 | BV39: 0 | BW39: 1 | BX39: 0
A40: 35 | B40: Flaaten | C40: Filippa | D40: Heming | E40: =IF(F40<=4,Q40,(Q40-SUM(SMALL(R40:Y40,{1;2;3;4})))) -> 14 | F40: 1 | L40: 22 | Q40: 14 | R40: =IF($F31>=5,IF(AB40="","",AB40),"") ->  | S40: =IF($F31>=5,IF(AG40="","",AG40),"") ->  | T40: =IF($F31>=5,IF(AL40="","",AL40),"") ->  | U40: =IF($F31>=5,IF(AQ40="","",AQ40),"") ->  | V40: =IF($F31>=5,IF(AR40="","",AR40),"") ->  | W40: =IF($F31>=5,IF(AV40="","",AV40),"") ->  | X40: =IF($F31>=5,IF(BA40="","",BA40),"") ->  | Y40: =IF($F31>=5,IF(BF40="","",BF40),"") ->  | AB40: 0 | AC40: 0 | AD40: 0 | AG40: 0 | AH40: 0 | AI40: 0 | AL40: 0 | AM40: 0 | AN40: 0 | AQ40: 0 | AR40: 0 | AS40: 0 | AU40: 22 | AV40: 9 | AW40: 5 | AX40: 14 | BA40: 0 | BB40: 0 | BC40: 0 | BF40: 0 | BG40: 0 | BH40: 0 | BK40: 0 | BL40: 0 | BM40: 0 | BO40: 35 | BP40: 0 | BQ40: 0 | BR40: 0 | BS40: 0 | BT40: 0 | BU40: 0 | BV40: 1 | BW40: 0 | BX40: 0
A41: 36 | B41: Myrbø | C41: Maria Isabelle | D41: Try | E41: =IF(F41<=4,Q41,(Q41-SUM(SMALL(R41:Y41,{1;2;3;4})))) -> 7 | F41: 1 | L41: 29 | Q41: 7 | AB41: 0 | AC41: 0 | AD41: 0 | AG41: 0 | AH41: 0 | AI41: 0 | AL41: 0 | AM41: 0 | AN41: 0 | AQ41: 0 | AR41: 0 | AS41: 0 | AU41: 29 | AV41: 2 | AW41: 5 | AX41: 7 | BA41: 0 | BB41: 0 | BC41: 0 | BF41: 0 | BG41: 0 | BH41: 0 | BK41: 0 | BL41: 0 | BM41: 0 | BO41: 36 | BP41: 0 | BQ41: 0 | BR41: 0 | BS41: 0 | BT41: 0 | BU41: 0 | BV41: 0 | BW41: 1 | BX41: 0
A42: 37 | B42: Kopp | C42: Vilhelmine | D42: Try | E42: =IF(F42<=4,Q42,(Q42-SUM(SMALL(R42:Y42,{1;2;3;4})))) -> 6 | F42: 1 | L42: 30 | Q42: 6 | AB42: 0 | AC42: 0 | AD42: 0 | AG42: 0 | AH42: 0 | AI42: 0 | AL42: 0 | AM42: 0 | AN42: 0 | AQ42: 0 | AR42: 0 | AS42: 0 | AU42: 30 | AV42: 1 | AW42: 5 | AX42: 6 | BA42: 0 | BB42: 0 | BC42: 0 | BF42: 0 | BG42: 0 | BH42: 0 | BK42: 0 | BL42: 0 | BM42: 0 | BO42: 37 | BP42: 0 | BQ42: 0 | BR42: 0 | BS42: 0 | BT42: 0 | BU42: 0 | BV42: 1 | BW42: 0 | BX42: 0
A43: 38 | B43: Gras | C43: Anais | D43: Ljan | E43: =IF(F43<=4,Q43,(Q43-SUM(SMALL(R43:Y43,{1;2;3;4})))) -> 5 | F43: 1 | I43: dsq | Q43: 5 | AB43: 0 | AC43: 0 | AD43: 0 | AF43: dsq | AG43: 0 | AH43: 5 | AI43: 5 | AL43: 0 | AM43: 0 | AN43: 0 | AQ43: 0 | AR43: 0 | AS43: 0 | AV43: 0 | AW43: 0 | AX43: 0 | BA43: 0 | BB43: 0 | BC43: 0 | BF43: 0 | BG43: 0 | BH43: 0 | BK43: 0 | BL43: 0 | BM43: 0 | BO43: 38 | BP43: 0 | BQ43: 0 | BR43: 0 | BS43: 0 | BT43: 0 | BU43: 0 | BV43: 0 | BW43: 1 | BX43: 0
A44: 38 | B44: Blokkum | C44: Hedda Nesholtet | D44: Try | E44: =IF(F44<=4,Q44,(Q44-SUM(SMALL(R44:Y44,{1;2;3;4})))) -> 5 | F44: 1 | L44: 31 | Q44: 5 | AB44: 0 | AC44: 0 | AD44: 0 | AG44: 0 | AH44: 0 | AI44: 0 | AL44: 0 | AM44: 0 | AN44: 0 | AQ44: 0 | AR44: 0 | AS44: 0 | AU44: 31 | AV44: 0 | AW44: 5 | AX44: 5 | BA44: 0 | BB44: 0 | BC44: 0 | BF44: 0 | BG44: 0 | BH44: 0 | BK44: 0 | BL44: 0 | BM44: 0 | BO44: 39 | BP44: 0 | BQ44: 0 | BR44: 0 | BS44: 0 | BT44: 0 | BU44: 0 | BV44: 0 | BW44: 1 | BX44: 0
A45: 38 | B45: Sohlberg | C45: Emicke | D45: Stabæk | E45: =IF(F45<=4,Q45,(Q45-SUM(SMALL(R45:Y45,{1;2;3;4})))) -> 5 | F45: 1 | L45: dnf | Q45: 5 | AB45: 0 | AC45: 0 | AD45: 0 | AG45: 0 | AH45: 0 | AI45: 0 | AL45: 0 | AM45: 0 | AN45: 0 | AQ45: 0 | AR45: 0 | AS45: 0 | AU45: dnf | AV45: 0 | AW45: 5 | AX45: 5 | BA45: 0 | BB45: 0 | BC45: 0 | BF45: 0 | BG45: 0 | BH45: 0 | BK45: 0 | BL45: 0 | BM45: 0 | BO45: 40 | BP45: 0 | BQ45: 0 | BR45: 0 | BS45: 0 | BT45: 0 | BU45: 0 | BV45: 0 | BW45: 0 | BX45: 1
A46: 38 | B46: Jørgensen | C46: Kaia Celin | D46: Heming | E46: =IF(F46<=4,Q46,(Q46-SUM(SMALL(R46:Y46,{1;2;3;4})))) -> 5 | F46: 1 | L46: dnf | Q46: 5 | AB46: 0 | AC46: 0 | AD46: 0 | AG46: 0 | AH46: 0 | AI46: 0 | AL46: 0 | AM46: 0 | AN46: 0 | AQ46: 0 | AR46: 0 | AS46: 0 | AU46: dnf | AV46: 0 | AW46: 5 | AX46: 5 | BA46: 0 | BB46: 0 | BC46: 0 | BF46: 0 | BG46: 0 | BH46: 0 | BK46: 0 | BL46: 0 | BM46: 0 | BO46: 41 | BP46: 0 | BQ46: 0 | BR46: 0 | BS46: 0 | BT46: 0 | BU46: 0 | BV46: 0 | BW46: 0 | BX46: 1
A47: 42 | Q47: 0 | AB47: 0 | AC47: 0 | AD47: 0 | AG47: 0 | AH47: 0 | AI47: 0 | AL47: 0 | AM47: 0 | AN47: 0 | AQ47: 0 | AR47: 0 | AS47: 0 | AV47: 0 | AW47: 0 | AX47: 0 | BA47: 0 | BB47: 0 | BC47: 0 | BF47: 0 | BG47: 0 | BH47: 0 | BK47: 0 | BL47: 0 | BM47: 0 | BO47: 42 | BP47: 0 | BQ47: 0 | BR47: 0 | BS47: 0 | BT47: 0 | BU47: 0 | BV47: 0 | BW47: 0 | BX47: 1
A48: 42 | M48: =IF(AU48="","",AU48) ->  | N48: =IF(AZ48="","",AZ48) ->  | O48: =IF(BE48="","",BE48) ->  | Q48: 0 | AB48: 0 | AC48: 0 | AD48: 0 | AG48: 0 | AH48: 0 | AI48: 0 | AL48: 0 | AM48: 0 | AN48: 0 | AQ48: 0 | AR48: 0 | AS48: 0 | AV48: 0 | AW48: 0 | AX48: 0 | BA48: 0 | BB48: 0 | BC48: 0 | BF48: 0 | BG48: 0 | BH48: 0 | BK48: 0 | BL48: 0 | BM48: 0 | BO48: 43 | BP48: 0 | BQ48: 0 | BR48: 0 | BS48: 0 | BT48: 0 | BU48: 0 | BV48: 0 | BW48: 0 | BX48: 1
H49: =IF(AA49="","",AA49) ->  | I49: =IF(AF49="","",AF49) ->  | J49: =IF(AK49="","",AK49) ->  | K49: =IF(AP49="","",AP49) ->  | L49: =IF(AU49="","",AU49) ->  | M49: =IF(AU49="","",AU49) ->  | N49: =IF(AZ49="","",AZ49) ->  | O49: =IF(BE49="","",BE49) ->  | Q49: =AD49+AI49+AN49+AS49+AX49+BC49+BH49+BM49 -> 0 | R49: =IF($F40>=5,IF(AB49="","",AB49),"") ->  | S49: =IF($F40>=5,IF(AG49="","",AG49),"") ->  | T49: =IF($F40>=5,IF(AL49="","",AL49),"") ->  | U49: =IF($F40>=5,IF(AQ49="","",AQ49),"") ->  | W49: =IF($F40>=5,IF(AV49="","",AV49),"") ->  | X49: =IF($F40>=5,IF(BA49="","",BA49),"") ->  | Y49: =IF($F40>=5,IF(BF49="","",BF49),"") ->  | AB49: =IF(ISNUMBER(AA49),(VLOOKUP(AA49,$BO$6:$BP$50,2)),0) -> 0 | AC49: =IF(AA49<>"",5,0) -> 0 | AD49: =AB49+AC49 -> 0 | AG49: =IF(ISNUMBER(AF49),(VLOOKUP(AF49,$BO$6:$BP$50,2)),0) -> 0 | AH49: =IF(AF49<>"",5,0) -> 0 | AI49: =AG49+AH49 -> 0 | AL49: =IF(ISNUMBER(AK49),(VLOOKUP(AK49,$BO$6:$BP$50,2)),0) -> 0 | AM49: =IF(AK49<>"",5,0) -> 0 | AN49: =AL49+AM49 -> 0 | AQ49: =IF(ISNUMBER(AP49),(VLOOKUP(AP49,$BO$6:$BP$50,2)),0) -> 0 | AR49: =IF(AP49<>"",5,0) -> 0 | AS49: =AQ49+AR49 -> 0 | AV49: =IF(ISNUMBER(AU49),(VLOOKUP(AU49,$BO$6:$BP$50,2)),0) -> 0 | AW49: =IF(AU49<>"",5,0) -> 0 | AX49: =AV49+AW49 -> 0 | BA49: =IF(ISNUMBER(AZ49),(VLOOKUP(AZ49,$BO$6:$BP$50,2)),0) -> 0 | BB49: =IF(AZ49<>"",5,0) -> 0 | BC49: =BA49+BB49 -> 0 | BF49: =IF(ISNUMBER(BE49),(VLOOKUP(BE49,$BO$6:$BP$50,2)),0) -> 0 | BG49: =IF(BE49<>"",5,0) -> 0 | BH49: =BF49+BG49 -> 0 | BK49: =IF(ISNUMBER(BJ49),(VLOOKUP(BJ49,$BO$6:$BP$50,2)),0) -> 0 | BL49: =IF(BJ49<>"",5,0) -> 0 | BM49: =BK49+BL49 -> 0 | BO49: 44 | BP49: 0 | BQ49: 0 | BR49: 0 | BS49: 0 | BT49: 0 | BU49: 0 | BV49: 0 | BW49: 0 | BX49: 1
Q50: 0 | AI50: 0 | AN50: 0 | AS50: 0 | AX50: 0 | BC50: 0 | BH50: 0 | BM50: 0 | BO50: 45 | BP50: 0 | BQ50: 0 | BR50: 0 | BS50: 0 | BT50: 0 | BU50: 0 | BV50: 0 | BW50: 0 | BX50: 1
Q51: 0 | AI51: 0 | AN51: 0 | AS51: 0 | AX51: 0 | BC51: 0 | BH51: 0 | BM51: 0 | BO51: 46 | BP51: 0 | BQ51: 0 | BR51: =IF($F42=7,1,0) -> 0 | BS51: 0 | BT51: 0 | BU51: 0 | BV51: 0 | BW51: 0 | BX51: 1
Q52: 0 | AI52: 0 | AN52: 0 | AS52: 0 | AX52: 0 | BC52: 0 | BH52: 0 | BM52: 0 | BO52: 47 | BP52: 0 | BQ52: 0 | BR52: 0 | BS52: 0 | BT52: 0 | BU52: 0 | BV52: 0 | BW52: 0 | BX52: 1
BO53: 48 | BP53: 0

Sheet G11 2018
A1: Resultatliste Oslo Cup 2018 - Gutter 11 år
A2: ='Forside 2018'!A2 -> Etter 8 av 8 renn
H3: IRS Rennet | I3: Ljan Rennet | J3: Njård Rennet | K3: Ready Rennet | L3: Telenor Arena Cup | M3: Euro-tecfarten | N3: Oslo Alpinfestival SL | O3: Oslo Alpinfestival SSL | R3: IRS Rennet | S3: Ljan Rennet | T3: Njård Rennet | U3: Ready Rennet | V3: Telenor Arena Cup | W3: Euro-tecfarten | X3: Oslo Alpinfestival SL | Y3: Oslo Alpinfestival SSL | AA3: --------IRS Rennet---------- | AF3: ----------Ljan Rennet--------- | AK3: --------Njård Rennet---------- | AP3: --------Ready Rennet--------- | AU3: -----Telenor Arena Cup---- | AZ3: ------Euro-tecfarten-------- | BE3: ---Oslo Alpinfestival SL--- | BJ3: ---Oslo Alpinfestival SSL---
F4: Antall | H4: 2018-02-03 | I4: 2018-02-04 | J4: 2018-02-10 | K4: 2018-02-11 | L4: 2018-02-14 | M4: 2018-02-28 | N4: 2018-03-03 | O4: 2018-03-04 | Q4: Poeng | R4: 2018-02-03 | S4: 2018-02-04 | T4: 2018-02-10 | U4: 2018-02-11 | V4: 2018-02-14 | W4: 2018-02-28 | X4: 2018-03-03 | Y4: 2018-03-04 | AB4: --------Poeng-------- | AG4: --------Poeng-------- | AL4: -------Poeng--------- | AQ4: -------Poeng--------- | AV4: -------Poeng--------- | BA4: -------Poeng--------- | BF4: -------Poeng--------- | BK4: -------Poeng--------- | BQ4: Løpere med | BR4: Løpere med | BS4: Løpere med | BT4: Løpere med | BU4: Løpere med | BV4: Løpere med | BW4: Løpere med | BX4: Løpere med
A5: Plass | B5: Etternavn | C5: Fornavn | D5: Klubb | E5: Poeng | F5: renn | H5: ------------------------------Plassering i rennene--------------------------------- | Q5: brutto | R5: ----------------Resultatpoeng hvis mer enn 4 renn---------------- | AA5: Plass | AB5: Res. | AC5: Del. | AD5: Tot. | AF5: Plass | AG5: Res. | AH5: Del. | AI5: Tot. | AK5: Plass | AL5: Res. | AM5: Del. | AN5: Tot. | AP5: Plass | AQ5: Res. | AR5: Del. | AS5: Tot. | AU5: Plass | AV5: Res. | AW5: Del. | AX5: Tot. | AZ5: Plass | BA5: Res. | BB5: Del. | BC5: Tot. | BE5: Plass | BF5: Res. | BG5: Del. | BH5: Tot. | BJ5: Plass | BK5: Res. | BL5: Del. | BM5: Tot. | BO5: Plass | BP5: Poeng | BQ5: 8 renn | BR5: 7 renn | BS5: 6 renn | BT5: 5 renn | BU5: 4 renn | BV5: 3 renn | BW5: 2 renn | BX5: kun 1 renn
A6: =IF(E6<E5,BO6,A5) -> 1 | B6: Danielsen | C6: Didrik Heggelund | D6: Ullensaker | E6: =IF(F6<=4,Q6,(Q6-SUM(SMALL(R6:Y6,{1;2;3;4})))) -> 420 | F6: =(IF(AC6=5,1,0)+IF(AH6=5,1,0)+IF(AM6=5,1,0)+IF(AR6=5,1,0)+IF(AW6=5,1,0)+IF(BB6=5,1,0)+IF(BG6=5,1,0)+IF(BL6=5,1,0)) -> 8 | H6: =IF(AA6="","",AA6) -> 1 | I6: =IF(AF6="","",AF6) -> 1 | J6: =IF(AK6="","",AK6) -> 2 | K6: =IF(AP6="","",AP6) -> 2 | L6: =IF(AU6="","",AU6) -> 7 | M6: =IF(AZ6="","",AZ6) -> 2 | N6: =IF(BE6="","",BE6) -> 1 | O6: =IF(BJ6="","",BJ6) -> 2 | Q6: =AD6+AI6+AN6+AS6+AX6+BC6+BH6+BM6 -> 696 | R6: =IF($F6>=5,IF(AB6="","",AB6),"") -> 100 | S6: =IF($F6>=5,IF(AG6="","",AG6),"") -> 100 | T6: =IF($F6>=5,IF(AL6="","",AL6),"") -> 80 | U6: =IF($F6>=5,IF(AQ6="","",AQ6),"") -> 80 | V6: =IF($F6>=5,IF(AV6="","",AV6),"") -> 36 | W6: =IF($F6>=5,IF(BA6="","",BA6),"") -> 80 | X6: =IF($F6>=5,IF(BF6="","",BF6),"") -> 100 | Y6: =IF($F6>=5,IF(BK6="","",BK6),"") -> 80 | AA6: 1 | AB6: =IF(ISNUMBER(AA6),(VLOOKUP(AA6,$BO$6:$BP$50,2)),0) -> 100 | AC6: =IF(AA6<>"",5,0) -> 5 | AD6: =AB6+AC6 -> 105 | AF6: 1 | AG6: =IF(ISNUMBER(AF6),(VLOOKUP(AF6,$BO$6:$BP$50,2)),0) -> 100 | AH6: =IF(AF6<>"",5,0) -> 5 | AI6: =AG6+AH6 -> 105 | AK6: 2 | AL6: =IF(ISNUMBER(AK6),(VLOOKUP(AK6,$BO$6:$BP$50,2)),0) -> 80 | AM6: =IF(AK6<>"",5,0) -> 5 | AN6: =AL6+AM6 -> 85 | AP6: 2 | AQ6: =IF(ISNUMBER(AP6),(VLOOKUP(AP6,$BO$6:$BP$50,2)),0) -> 80 | AR6: =IF(AP6<>"",5,0) -> 5 | AS6: =AQ6+AR6 -> 85 | AU6: 7 | AV6: =IF(ISNUMBER(AU6),(VLOOKUP(AU6,$BO$6:$BP$50,2)),0) -> 36 | AW6: =IF(AU6<>"",5,0) -> 5 | AX6: =AV6+AW6 -> 41 | AZ6: 2 | BA6: =IF(ISNUMBER(AZ6),(VLOOKUP(AZ6,$BO$6:$BP$50,2)),0) -> 80 | BB6: =IF(AZ6<>"",5,0) -> 5 | BC6: =BA6+BB6 -> 85 | BE6: 1 | BF6: =IF(ISNUMBER(BE6),(VLOOKUP(BE6,$BO$6:$BP$50,2)),0) -> 100 | BG6: =IF(BE6<>"",5,0) -> 5 | BH6: =BF6+BG6 -> 105 | BJ6: 2 | BK6: =IF(ISNUMBER(BJ6),(VLOOKUP(BJ6,$BO$6:$BP$50,2)),0) -> 80 | BL6: =IF(BJ6<>"",5,0) -> 5 | BM6: =BK6+BL6 -> 85 | BO6: 1 | BP6: 100 | BQ6: =IF($F6=8,1,0) -> 1 | BR6: =IF($F6=7,1,0) -> 0 | BS6: =IF($F6=6,1,0) -> 0 | BT6: =IF($F6=5,1,0) -> 0 | BU6: =IF($F6=4,1,0) -> 0 | BV6: =IF($F6=3,1,0) -> 0 | BW6: =IF($F6=2,1,0) -> 0 | BX6: =IF($F6=1,1,0) -> 0
A7: 2 | B7: Hemminghytt | C7: Fredrik | D7: Lommedalen | E7: =IF(F7<=4,Q7,(Q7-SUM(SMALL(R7:Y7,{1;2;3;4})))) -> 320 | F7: 7 | H7: 2 | J7: 8 | K7: 5 | L7: 1 | M7: 6 | N7: dnf | O7: 3 | Q7: 392 | R7: 80 | S7: 0 | T7: 32 | U7: 45 | V7: 100 | W7: 40 | X7: 0 | Y7: 60 | AA7: 2 | AB7: 80 | AC7: 5 | AD7: 85 | AG7: 0 | AH7: 0 | AI7: 0 | AK7: 8 | AL7: 32 | AM7: 5 | AN7: 37 | AP7: 5 | AQ7: 45 | AR7: 5 | AS7: 50 | AU7: 1 | AV7: 100 | AW7: 5 | AX7: 105 | AZ7: 6 | BA7: 40 | BB7: 5 | BC7: 45 | BE7: dnf | BF7: 0 | BG7: 5 | BH7: 5 | BJ7: 3 | BK7: 60 | BL7: 5 | BM7: 65 | BO7: 2 | BP7: 80 | BQ7: =IF($F7=8,1,0) -> 0 | BR7: 1 | BS7: 0 | BT7: 0 | BU7: 0 | BV7: 0 | BW7: 0 | BX7: 0
A8: 3 | B8: Lien | C8: Johan Oscar | D8: Heming | E8: =IF(F8<=4,Q8,(Q8-SUM(SMALL(R8:Y8,{1;2;3;4})))) -> 310 | F8: 8 | H8: 5 | I8: 5 | J8: 1 | K8: dnf | L8: 2 | M8: 8 | N8: 14 | O8: 5 | Q8: 405 | R8: 45 | S8: 45 | T8: 100 | U8: 0 | V8: 80 | W8: 32 | X8: 18 | Y8: 45 | AA8: 5 | AB8: 45 | AC8: 5 | AD8: 50 | AF8: 5 | AG8: 45 | AH8: 5 | AI8: 50 | AK8: 1 | AL8: 100 | AM8: 5 | AN8: 105 | AP8: dnf | AQ8: 0 | AR8: 5 | AS8: 5 | AU8: 2 | AV8: 80 | AW8: 5 | AX8: 85 | AZ8: 8 | BA8: 32 | BB8: 5 | BC8: 37 | BE8: 14 | BF8: 18 | BG8: 5 | BH8: 23 | BJ8: 5 | BK8: 45 | BL8: 5 | BM8: 50 | BO8: 3 | BP8: 60 | BQ8: 1 | BR8: 0 | BS8: 0 | BT8: 0 | BU8: 0 | BV8: 0 | BW8: 0 | BX8: 0
A9: 4 | B9: Øslebø | C9: Kristoffer | D9: Ready | E9: =IF(F9<=4,Q9,(Q9-SUM(SMALL(R9:Y9,{1;2;3;4})))) -> 270 | F9: 8 | H9: 3 | I9: 3 | J9: 4 | K9: 4 | L9: dsq | M9: 4 | N9: 3 | O9: 6 | Q9: 410 | R9: 60 | S9: 60 | T9: 50 | U9: 50 | V9: 0 | W9: 50 | X9: 60 | Y9: 40 | AA9: 3 | AB9: 60 | AC9: 5 | AD9: 65 | AF9: 3 | AG9: 60 | AH9: 5 | AI9: 65 | AK9: 4 | AL9: 50 | AM9: 5 | AN9: 55 | AP9: 4 | AQ9: 50 | AR9: 5 | AS9: 55 | AU9: dsq | AV9: 0 | AW9: 5 | AX9: 5 | AZ9: 4 | BA9: 50 | BB9: 5 | BC9: 55 | BE9: 3 | BF9: 60 | BG9: 5 | BH9: 65 | BJ9: 6 | BK9: 40 | BL9: 5 | BM9: 45 | BO9: 4 | BP9: 50 | BQ9: 1 | BR9: 0 | BS9: 0 | BT9: 0 | BU9: 0 | BV9: 0 | BW9: 0 | BX9: 0
A10: 5 | B10: Hagen | C10: Storm | D10: Kjelsås | E10: =IF(F10<=4,Q10,(Q10-SUM(SMALL(R10:Y10,{1;2;3;4})))) -> 256 | F10: 7 | I10: 2 | J10: 7 | K10: 3 | L10: 8 | M10: 5 | N10: 18 | O10: 9 | Q10: 330 | R10: 0 | S10: 80 | T10: 36 | U10: 60 | V10: 32 | W10: 45 | X10: 13 | Y10: 29 | AB10: 0 | AC10: 0 | AD10: 0 | AF10: 2 | AG10: 80 | AH10: 5 | AI10: 85 | AK10: 7 | AL10: 36 | AM10: 5 | AN10: 41 | AP10: 3 | AQ10: 60 | AR10: 5 | AS10: 65 | AU10: 8 | AV10: 32 | AW10: 5 | AX10: 37 | AZ10: 5 | BA10: 45 | BB10: 5 | BC10: 50 | BE10: 18 | BF10: 13 | BG10: 5 | BH10: 18 | BJ10: 9 | BK10: 29 | BL10: 5 | BM10: 34 | BO10: 5 | BP10: 45 | BQ10: 0 | BR10: 1 | BS10: 0 | BT10: 0 | BU10: 0 | BV10: 0 | BW10: 0 | BX10: 0
A11: 6 | B11: Foss | C11: Philip | D11: Heming | E11: =IF(F11<=4,Q11,(Q11-SUM(SMALL(R11:Y11,{1;2;3;4})))) -> 215 | F11: 3 | J11: 6 | K11: 1 | L11: 3 | Q11: 215 | AB11: 0 | AC11: 0 | AD11: 0 | AG11: 0 | AH11: 0 | AI11: 0 | AK11: 6 | AL11: 40 | AM11: 5 | AN11: 45 | AP11: 1 | AQ11: 100 | AR11: 5 | AS11: 105 | AU11: 3 | AV11: 60 | AW11: 5 | AX11: 65 | BA11: 0 | BB11: 0 | BC11: 0 | BF11: 0 | BG11: 0 | BH11: 0 | BK11: 0 | BL11: 0 | BM11: 0 | BO11: 6 | BP11: 40 | BQ11: 0 | BR11: 0 | BS11: 0 | BT11: 0 | BU11: 0 | BV11: 1 | BW11: 0 | BX11: 0
A12: 7 | B12: Finne | C12: Peder August | D12: Heming | E12: =IF(F12<=4,Q12,(Q12-SUM(SMALL(R12:Y12,{1;2;3;4})))) -> 204 | F12: 7 | H12: 8 | J12: 3 | K12: 6 | L12: 9 | M12: 7 | N12: 6 | O12: 11 | Q12: 296 | R12: 32 | S12: 0 | T12: 60 | U12: 40 | W12: 36 | X12: 40 | Y12: 24 | AA12: 8 | AB12: 32 | AC12: 5 | AD12: 37 | AG12: 0 | AH12: 0 | AI12: 0 | AK12: 3 | AL12: 60 | AM12: 5 | AN12: 65 | AP12: 6 | AQ12: 40 | AR12: 5 | AS12: 45 | AU12: 9 | AV12: 29 | AW12: 5 | AX12: 34 | AZ12: 7 | BA12: 36 | BB12: 5 | BC12: 41 | BE12: 6 | BF12: 40 | BG12: 5 | BH12: 45 | BJ12: 11 | BK12: 24 | BL12: 5 | BM12: 29 | BO12: 7 | BP12: 36 | BQ12: 0 | BR12: 1 | BS12: 0 | BT12: 0 | BU12: 0 | BV12: 0 | BW12: 0 | BX12: 0
A13: 8 | B13: Bakkevig | C13: Johannes | D13: Heming | E13: =IF(F13<=4,Q13,(Q13-SUM(SMALL(R13:Y13,{1;2;3;4})))) -> 202 | F13: 3 | L13: 24 | N13: 2 | O13: 1 | Q13: 202 | V13: =IF($F13>=5,IF(AV13="","",AV13),"") ->  | AB13: 0 | AC13: 0 | AD13: 0 | AG13: 0 | AH13: 0 | AI13: 0 | AL13: 0 | AM13: 0 | AN13: 0 | AQ13: 0 | AR13: 0 | AS13: 0 | AU13: 24 | AV13: 7 | AW13: 5 | AX13: 12 | BA13: 0 | BB13: 0 | BC13: 0 | BE13: 2 | BF13: 80 | BG13: 5 | BH13: 85 | BJ13: 1 | BK13: 100 | BL13: 5 | BM13: 105 | BO13: 8 | BP13: 32 | BQ13: 0 | BR13: 0 | BS13: 0 | BT13: 0 | BU13: 0 | BV13: 1 | BW13: 0 | BX13: 0
A14: 9 | B14: Bagstevold | C14: Sindre | D14: Heming | E14: =IF(F14<=4,Q14,(Q14-SUM(SMALL(R14:Y14,{1;2;3;4})))) -> 187 | F14: 4 | J14: 5 | L14: 6 | N14: 4 | O14: 8 | Q14: 187 | AB14: 0 | AC14: 0 | AD14: 0 | AG14: 0 | AH14: 0 | AI14: 0 | AK14: 5 | AL14: 45 | AM14: 5 | AN14: 50 | AQ14: 0 | AR14: 0 | AS14: 0 | AU14: 6 | AV14: 40 | AW14: 5 | AX14: 45 | BA14: 0 | BB14: 0 | BC14: 0 | BE14: 4 | BF14: 50 | BG14: 5 | BH14: 55 | BJ14: 8 | BK14: 32 | BL14: 5 | BM14: 37 | BO14: 9 | BP14: 29 | BQ14: 0 | BR14: 0 | BS14: 0 | BT14: 0 | BU14: 1 | BV14: 0 | BW14: 0 | BX14: 0
A15: 10 | B15: Aasdal | C15: BIRK | D15: Ljan | E15: =IF(F15<=4,Q15,(Q15-SUM(SMALL(R15:Y15,{1;2;3;4})))) -> 181 | F15: 7 | H15: 7 | I15: 4 | J15: 12 | L15: 12 | M15: 11 | N15: dsq | O15: 7 | Q15: 225 | R15: 36 | S15: 50 | T15: 22 | U15: 0 | V15: 22 | W15: 24 | X15: 0 | Y15: 36 | AA15: 7 | AB15: 36 | AC15: 5 | AD15: 41 | AF15: 4 | AG15: 50 | AH15: 5 | AI15: 55 | AK15: 12 | AL15: 22 | AM15: 5 | AN15: 27 | AQ15: 0 | AR15: 0 | AS15: 0 | AU15: 12 | AV15: 22 | AW15: 5 | AX15: 27 | AZ15: 11 | BA15: 24 | BB15: 5 | BC15: 29 | BE15: dsq | BF15: 0 | BG15: 5 | BH15: 5 | BJ15: 7 | BK15: 36 | BL15: 5 | BM15: 41 | BO15: 10 | BP15: 26 | BQ15: 0 | BR15: 1 | BS15: 0 | BT15: 0 | BU15: 0 | BV15: 0 | BW15: 0 | BX15: 0
A16: 11 | B16: Røkke | C16: Lukas Thulin | D16: IRS | E16: =IF(F16<=4,Q16,(Q16-SUM(SMALL(R16:Y16,{1;2;3;4})))) -> 180 | F16: 8 | H16: 4 | I16: 8 | J16: 17 | K16: 8 | L16: 10 | M16: 15 | N16: dsq | O16: 10 | Q16: 236 | R16: 50 | S16: 32 | T16: 14 | U16: 32 | V16: 26 | W16: 16 | X16: 0 | Y16: 26 | AA16: 4 | AB16: 50 | AC16: 5 | AD16: 55 | AF16: 8 | AG16: 32 | AH16: 5 | AI16: 37 | AK16: 17 | AL16: 14 | AM16: 5 | AN16: 19 | AP16: 8 | AQ16: 32 | AR16: 5 | AS16: 37 | AU16: 10 | AV16: 26 | AW16: 5 | AX16: 31 | AZ16: 15 | BA16: 16 | BB16: 5 | BC16: 21 | BE16: dsq | BF16: 0 | BG16: 5 | BH16: 5 | BJ16: 10 | BK16: 26 | BL16: 5 | BM16: 31 | BO16: 11 | BP16: 24 | BQ16: 1 | BR16: 0 | BS16: 0 | BT16: 0 | BU16: 0 | BV16: 0 | BW16: 0 | BX16: 0
A17: 12 | B17: Knudsen | C17: Leon Loco | D17: IRS | E17: =IF(F17<=4,Q17,(Q17-SUM(SMALL(R17:Y17,{1;2;3;4})))) -> 165 | F17: 3 | M17: 1 | N17: dsq | O17: 4 | Q17: 165 | AB17: 0 | AC17: 0 | AD17: 0 | AG17: 0 | AH17: 0 | AI17: 0 | AL17: 0 | AM17: 0 | AN17: 0 | AQ17: 0 | AR17: 0 | AS17: 0 | AV17: 0 | AW17: 0 | AX17: 0 | AZ17: 1 | BA17: 100 | BB17: 5 | BC17: 105 | BE17: dsq | BF17: 0 | BG17: 5 | BH17: 5 | BJ17: 4 | BK17: 50 | BL17: 5 | BM17: 55 | BO17: 12 | BP17: 22 | BQ17: 0 | BR17: 0 | BS17: 0 | BT17: 0 | BU17: 0 | BV17: 1 | BW17: 0 | BX17: 0
A18: 13 | B18: Toft | C18: Ola Mostraum | D18: Kjelsås | E18: =IF(F18<=4,Q18,(Q18-SUM(SMALL(R18:Y18,{1;2;3;4})))) -> 154 | F18: 7 | H18: 10 | I18: dsq | J18: 19 | K18: 14 | M18: 10 | N18: 5 | O18: 12 | Q18: 184 | R18: 26 | S18: 0 | T18: 12 | U18: 18 | V18: 0 | W18: 26 | X18: 45 | Y18: 22 | AA18: 10 | AB18: 26 | AC18: 5 | AD18: 31 | AF18: dsq | AG18: 0 | AH18: 5 | AI18: 5 | AK18: 19 | AL18: 12 | AM18: 5 | AN18: 17 | AP18: 14 | AQ18: 18 | AR18: 5 | AS18: 23 | AV18: 0 | AW18: 0 | AX18: 0 | AZ18: 10 | BA18: 26 | BB18: 5 | BC18: 31 | BE18: 5 | BF18: 45 | BG18: 5 | BH18: 50 | BJ18: 12 | BK18: 22 | BL18: 5 | BM18: 27 | BO18: 13 | BP18: 20 | BQ18: 0 | BR18: =IF($F17=7,1,0) -> 0 | BS18: =IF($F17=6,1,0) -> 0 | BT18: =IF($F17=5,1,0) -> 0 | BU18: =IF($F17=4,1,0) -> 0 | BV18: =IF($F17=3,1,0) -> 1 | BW18: =IF($F17=2,1,0) -> 0 | BX18: =IF($F17=1,1,0) -> 0
A19: 14 | B19: Hartmann | C19: Marius Holm | D19: Ready | E19: =IF(F19<=4,Q19,(Q19-SUM(SMALL(R19:Y19,{1;2;3;4})))) -> 138 | F19: 8 | H19: 12 | I19: 6 | J19: 20 | K19: 15 | L19: 19 | M19: 21 | N19: 13 | O19: 18 | Q19: 184 | R19: 22 | S19: 40 | T19: 11 | U19: 16 | V19: 12 | W19: 10 | X19: 20 | Y19: 13 | AA19: 12 | AB19: 22 | AC19: 5 | AD19: 27 | AF19: 6 | AG19: 40 | AH19: 5 | AI19: 45 | AK19: 20 | AL19: 11 | AM19: 5 | AN19: 16 | AP19: 15 | AQ19: 16 | AR19: 5 | AS19: 21 | AU19: 19 | AV19: 12 | AW19: 5 | AX19: 17 | AZ19: 21 | BA19: 10 | BB19: 5 | BC19: 15 | BE19: 13 | BF19: 20 | BG19: 5 | BH19: 25 | BJ19: 18 | BK19: 13 | BL19: 5 | BM19: 18 | BO19: 14 | BP19: 18 | BQ19: 1 | BR19: =IF($F18=7,1,0) -> 1 | BS19: =IF($F18=6,1,0) -> 0 | BT19: =IF($F18=5,1,0) -> 0 | BU19: =IF($F18=4,1,0) -> 0 | BV19: =IF($F18=3,1,0) -> 0 | BW19: =IF($F18=2,1,0) -> 0 | BX19: =IF($F18=1,1,0) -> 0
A20: 15 | B20: Rehman | C20: Tor Fabian Evert | D20: Ready | E20: =IF(F20<=4,Q20,(Q20-SUM(SMALL(R20:Y20,{1;2;3;4})))) -> 128 | F20: 5 | H20: 9 | J20: 18 | K20: 12 | N20: 7 | O20: 15 | Q20: 141 | R20: 29 | S20: 0 | T20: 13 | U20: 22 | V20: 0 | W20: 0 | X20: 36 | Y20: 16 | AA20: 9 | AB20: 29 | AC20: 5 | AD20: 34 | AG20: 0 | AH20: 0 | AI20: 0 | AK20: 18 | AL20: 13 | AM20: 5 | AN20: 18 | AP20: 12 | AQ20: 22 | AR20: 5 | AS20: 27 | AV20: 0 | AW20: 0 | AX20: 0 | BA20: 0 | BB20: 0 | BC20: 0 | BE20: 7 | BF20: 36 | BG20: 5 | BH20: 41 | BJ20: 15 | BK20: 16 | BL20: 5 | BM20: 21 | BO20: 15 | BP20: 16 | BQ20: 0 | BR20: =IF($F19=7,1,0) -> 0 | BS20: =IF($F19=6,1,0) -> 0 | BT20: =IF($F19=5,1,0) -> 0 | BU20: =IF($F19=4,1,0) -> 0 | BV20: =IF($F19=3,1,0) -> 0 | BW20: =IF($F19=2,1,0) -> 0 | BX20: =IF($F19=1,1,0) -> 0
A21: 16 | B21: Lysgård | C21: Sebastian | D21: Try | E21: =IF(F21<=4,Q21,(Q21-SUM(SMALL(R21:Y21,{1;2;3;4})))) -> 121 | F21: 8 | H21: 16 | I21: dsq | J21: 22 | K21: 11 | L21: 15 | M21: 20 | N21: 10 | O21: 25 | Q21: 147 | R21: 15 | S21: 0 | T21: 9 | U21: 24 | V21: 16 | W21: 11 | X21: 26 | Y21: 6 | AA21: 16 | AB21: 15 | AC21: 5 | AD21: 20 | AF21: dsq | AG21: 0 | AH21: 5 | AI21: 5 | AK21: 22 | AL21: 9 | AM21: 5 | AN21: 14 | AP21: 11 | AQ21: 24 | AR21: 5 | AS21: 29 | AU21: 15 | AV21: 16 | AW21: 5 | AX21: 21 | AZ21: 20 | BA21: 11 | BB21: 5 | BC21: 16 | BE21: 10 | BF21: 26 | BG21: 5 | BH21: 31 | BJ21: 25 | BK21: 6 | BL21: 5 | BM21: 11 | BO21: 16 | BP21: 15 | BQ21: 1 | BR21: =IF($F19=7,1,0) -> 0 | BS21: =IF($F19=6,1,0) -> 0 | BT21: =IF($F19=5,1,0) -> 0 | BU21: =IF($F19=4,1,0) -> 0 | BV21: =IF($F19=3,1,0) -> 0 | BW21: =IF($F19=2,1,0) -> 0 | BX21: =IF($F19=1,1,0) -> 0
A22: 17 | B22: Kvæl | C22: Elias | D22: Rælingen | E22: =IF(F22<=4,Q22,(Q22-SUM(SMALL(R22:Y22,{1;2;3;4})))) -> 120 | F22: 2 | L22: 4 | M22: 3 | Q22: 120 | AB22: 0 | AC22: 0 | AD22: 0 | AG22: 0 | AH22: 0 | AI22: 0 | AL22: 0 | AM22: 0 | AN22: 0 | AQ22: 0 | AR22: 0 | AS22: 0 | AU22: 4 | AV22: 50 | AW22: 5 | AX22: 55 | AZ22: 3 | BA22: 60 | BB22: 5 | BC22: 65 | BF22: 0 | BG22: 0 | BH22: 0 | BK22: 0 | BL22: 0 | BM22: 0 | BO22: 17 | BP22: 14 | BQ22: 0 | BR22: 0 | BS22: 0 | BT22: 1 | BU22: 0 | BV22: 0 | BW22: 0 | BX22: 0
A23: 18 | B23: Hole | C23: Henrik Grøthe | D23: IRS | E23: =IF(F23<=4,Q23,(Q23-SUM(SMALL(R23:Y23,{1;2;3;4})))) -> 106 | F23: 5 | H23: 14 | I23: 7 | L23: 21 | N23: 19 | O23: 16 | Q23: 116 | R23: 18 | S23: 36 | T23: 0 | U23: 0 | V23: 10 | W23: 0 | X23: 12 | Y23: 15 | AA23: 14 | AB23: 18 | AC23: 5 | AD23: 23 | AF23: 7 | AG23: 36 | AH23: 5 | AI23: 41 | AL23: 0 | AM23: 0 | AN23: 0 | AQ23: 0 | AR23: 0 | AS23: 0 | AU23: 21 | AV23: 10 | AW23: 5 | AX23: 15 | BA23: 0 | BB23: 0 | BC23: 0 | BE23: 19 | BF23: 12 | BG23: 5 | BH23: 17 | BJ23: 16 | BK23: 15 | BL23: 5 | BM23: 20 | BO23: 18 | BP23: 13 | BQ23: 0 | BR23: 0 | BS23: 0 | BT23: 0 | BU23: 0 | BV23: 0 | BW23: 0 | BX23: 0
A24: 19 | B24: Burum-Auensen | C24: Jan Nicolas | D24: Njård | E24: =IF(F24<=4,Q24,(Q24-SUM(SMALL(R24:Y24,{1;2;3;4})))) -> 103 | F24: 5 | H24: 15 | J24: 14 | K24: 13 | N24: 12 | O24: 14 | Q24: 119 | R24: 16 | S24: 0 | T24: 18 | U24: 20 | V24: 0 | W24: 0 | X24: 22 | Y24: 18 | AA24: 15 | AB24: 16 | AC24: 5 | AD24: 21 | AG24: 0 | AH24: 0 | AI24: 0 | AK24: 14 | AL24: 18 | AM24: 5 | AN24: 23 | AP24: 13 | AQ24: 20 | AR24: 5 | AS24: 25 | AV24: 0 | AW24: 0 | AX24: 0 | BA24: 0 | BB24: 0 | BC24: 0 | BE24: 12 | BF24: 22 | BG24: 5 | BH24: 27 | BJ24: 14 | BK24: 18 | BL24: 5 | BM24: 23 | BO24: 19 | BP24: 12 | BQ24: 0 | BR24: 0 | BS24: 0 | BT24: 0 | BU24: 0 | BV24: 0 | BW24: 1 | BX24: 0
A25: 20 | B25: Tschudi-Nytvedt | C25: Sebastian | D25: Heming | E25: =IF(F25<=4,Q25,(Q25-SUM(SMALL(R25:Y25,{1;2;3;4})))) -> 100 | F25: 3 | J25: 9 | K25: 7 | L25: 13 | Q25: 100 | AB25: 0 | AC25: 0 | AD25: 0 | AG25: 0 | AH25: 0 | AI25: 0 | AK25: 9 | AL25: 29 | AM25: 5 | AN25: 34 | AP25: 7 | AQ25: 36 | AR25: 5 | AS25: 41 | AU25: 13 | AV25: 20 | AW25: 5 | AX25: 25 | BA25: 0 | BB25: 0 | BC25: 0 | BF25: 0 | BG25: 0 | BH25: 0 | BK25: 0 | BL25: 0 | BM25: 0 | BO25: 20 | BP25: 11 | BQ25: 0 | BR25: 0 | BS25: 0 | BT25: 1 | BU25: 0 | BV25: 0 | BW25: 0 | BX25: 0
A26: 21 | B26: Johnsen | C26: Christian Hjallum | D26: Heming | E26: =IF(F26<=4,Q26,(Q26-SUM(SMALL(R26:Y26,{1;2;3;4})))) -> 98 | F26: 4 | H26: dsq | J26: 13 | K26: 9 | N26: 9 | Q26: 98 | AA26: dsq | AB26: 0 | AC26: 5 | AD26: 5 | AG26: 0 | AH26: 0 | AI26: 0 | AK26: 13 | AL26: 20 | AM26: 5 | AN26: 25 | AP26: 9 | AQ26: 29 | AR26: 5 | AS26: 34 | AV26: 0 | AW26: 0 | AX26: 0 | BA26: 0 | BB26: 0 | BC26: 0 | BE26: 9 | BF26: 29 | BG26: 5 | BH26: 34 | BK26: 0 | BL26: 0 | BM26: 0 | BO26: 21 | BP26: 10 | BQ26: 0 | BR26: 0 | BS26: 0 | BT26: 1 | BU26: 0 | BV26: 0 | BW26: 0 | BX26: 0
A27: 22 | B27: Kildal | C27: Peder Risøe | D27: Heming | E27: =IF(F27<=4,Q27,(Q27-SUM(SMALL(R27:Y27,{1;2;3;4})))) -> 91 | F27: 3 | J27: 10 | K27: 10 | L27: 11 | Q27: 91 | AB27: 0 | AC27: 0 | AD27: 0 | AG27: 0 | AH27: 0 | AI27: 0 | AK27: 10 | AL27: 26 | AM27: 5 | AN27: 31 | AP27: 10 | AQ27: 26 | AR27: 5 | AS27: 31 | AU27: 11 | AV27: 24 | AW27: 5 | AX27: 29 | BA27: 0 | BB27: 0 | BC27: 0 | BF27: 0 | BG27: 0 | BH27: 0 | BK27: 0 | BL27: 0 | BM27: 0 | BO27: 22 | BP27: 9 | BQ27: 0 | BR27: 0 | BS27: 0 | BT27: 0 | BU27: 0 | BV27: 1 | BW27: 0 | BX27: 0
A28: 23 | B28: Hunstad | C28: Nicolai Christian | D28: Heming | E28: =IF(F28<=4,Q28,(Q28-SUM(SMALL(R28:Y28,{1;2;3;4})))) -> 83 | F28: 4 | J28: 15 | L28: 18 | N28: 11 | O28: 21 | Q28: 83 | AB28: 0 | AC28: 0 | AD28: 0 | AG28: 0 | AH28: 0 | AI28: 0 | AK28: 15 | AL28: 16 | AM28: 5 | AN28: 21 | AQ28: 0 | AR28: 0 | AS28: 0 | AU28: 18 | AV28: 13 | AW28: 5 | AX28: 18 | BA28: 0 | BB28: 0 | BC28: 0 | BE28: 11 | BF28: 24 | BG28: 5 | BH28: 29 | BJ28: 21 | BK28: 10 | BL28: 5 | BM28: 15 | BO28: 23 | BP28: 8 | BQ28: 0 | BR28: =IF($F23=7,1,0) -> 0 | BS28: =IF($F23=6,1,0) -> 0 | BT28: =IF($F23=5,1,0) -> 1 | BU28: =IF($F23=4,1,0) -> 0 | BV28: =IF($F23=3,1,0) -> 0 | BW28: =IF($F23=2,1,0) -> 0 | BX28: =IF($F23=1,1,0) -> 0
A29: 24 | B29: Malling | C29: Michael de Vibe | D29: Heming | E29: =IF(F29<=4,Q29,(Q29-SUM(SMALL(R29:Y29,{1;2;3;4})))) -> 76 | F29: 4 | J29: 11 | L29: 14 | N29: dsq | O29: 17 | Q29: 76 | AB29: 0 | AC29: 0 | AD29: 0 | AG29: 0 | AH29: 0 | AI29: 0 | AK29: 11 | AL29: 24 | AM29: 5 | AN29: 29 | AQ29: 0 | AR29: 0 | AS29: 0 | AU29: 14 | AV29: 18 | AW29: 5 | AX29: 23 | BA29: 0 | BB29: 0 | BC29: 0 | BE29: dsq | BF29: 0 | BG29: 5 | BH29: 5 | BJ29: 17 | BK29: 14 | BL29: 5 | BM29: 19 | BO29: 24 | BP29: 7 | BQ29: 0 | BR29: =IF($F24=7,1,0) -> 0 | BS29: =IF($F24=6,1,0) -> 0 | BT29: =IF($F24=5,1,0) -> 1 | BU29: =IF($F24=4,1,0) -> 0 | BV29: =IF($F24=3,1,0) -> 0 | BW29: =IF($F24=2,1,0) -> 0 | BX29: =IF($F24=1,1,0) -> 0
A30: 25 | B30: Helgerud | C30: Christoffer Teistum | D30: Ljan | E30: =IF(F30<=4,Q30,(Q30-SUM(SMALL(R30:Y30,{1;2;3;4})))) -> 73 | F30: 4 | J30: 16 | K30: 18 | L30: 26 | M30: 13 | Q30: 73 | AB30: 0 | AC30: 0 | AD30: 0 | AG30: 0 | AH30: 0 | AI30: 0 | AK30: 16 | AL30: 15 | AM30: 5 | AN30: 20 | AP30: 18 | AQ30: 13 | AR30: 5 | AS30: 18 | AU30: 26 | AV30: 5 | AW30: 5 | AX30: 10 | AZ30: 13 | BA30: 20 | BB30: 5 | BC30: 25 | BF30: 0 | BG30: 0 | BH30: 0 | BK30: 0 | BL30: 0 | BM30: 0 | BO30: 25 | BP30: 6 | BQ30: 0 | BR30: =IF($F25=7,1,0) -> 0 | BS30: =IF($F25=6,1,0) -> 0 | BT30: =IF($F25=5,1,0) -> 0 | BU30: =IF($F25=4,1,0) -> 0 | BV30: =IF($F25=3,1,0) -> 1 | BW30: =IF($F25=2,1,0) -> 0 | BX30: =IF($F25=1,1,0) -> 0
A31: 26 | B31: Krohn-Oppi | C31: Kristian | D31: Kjelsås | E31: =IF(F31<=4,Q31,(Q31-SUM(SMALL(R31:Y31,{1;2;3;4})))) -> 66 | F31: 4 | K31: 16 | L31: 20 | N31: dsq | O31: 13 | Q31: 66 | AB31: 0 | AC31: 0 | AD31: 0 | AG31: 0 | AH31: 0 | AI31: 0 | AL31: 0 | AM31: 0 | AN31: 0 | AP31: 16 | AQ31: 15 | AR31: 5 | AS31: 20 | AU31: 20 | AV31: 11 | AW31: 5 | AX31: 16 | BA31: 0 | BB31: 0 | BC31: 0 | BE31: dsq | BF31: 0 | BG31: 5 | BH31: 5 | BJ31: 13 | BK31: 20 | BL31: 5 | BM31: 25 | BO31: 26 | BP31: 5 | BQ31: 0 | BR31: =IF($F25=7,1,0) -> 0 | BS31: =IF($F25=6,1,0) -> 0 | BT31: =IF($F25=5,1,0) -> 0 | BU31: =IF($F25=4,1,0) -> 0 | BV31: =IF($F25=3,1,0) -> 1 | BW31: =IF($F25=2,1,0) -> 0 | BX31: =IF($F25=1,1,0) -> 0
A32: 27 | B32: Daniels | C32: Alfred Axelsen | D32: Kjelsås | E32: =IF(F32<=4,Q32,(Q32-SUM(SMALL(R32:Y32,{1;2;3;4})))) -> 64 | F32: 4 | J32: 21 | L32: 25 | M32: 18 | N32: 16 | Q32: 64 | AB32: 0 | AC32: 0 | AD32: 0 | AG32: 0 | AH32: 0 | AI32: 0 | AK32: 21 | AL32: 10 | AM32: 5 | AN32: 15 | AQ32: 0 | AR32: 0 | AS32: 0 | AU32: 25 | AV32: 6 | AW32: 5 | AX32: 11 | AZ32: 18 | BA32: 13 | BB32: 5 | BC32: 18 | BE32: 16 | BF32: 15 | BG32: 5 | BH32: 20 | BK32: 0 | BL32: 0 | BM32: 0 | BO32: 27 | BP32: 4 | BQ32: 0 | BR32: =IF($F26=7,1,0) -> 0 | BS32: =IF($F26=6,1,0) -> 0 | BT32: =IF($F26=5,1,0) -> 0 | BU32: =IF($F26=4,1,0) -> 1 | BV32: =IF($F26=3,1,0) -> 0 | BW32: =IF($F26=2,1,0) -> 0 | BX32: =IF($F26=1,1,0) -> 0
A33: 28 | B33: Vigstad-Pedersen | C33: Eirik | D33: HSIL | E33: =IF(F33<=4,Q33,(Q33-SUM(SMALL(R33:Y33,{1;2;3;4})))) -> 54 | F33: 3 | M33: 17 | N33: 15 | O33: 22 | Q33: 54 | AB33: 0 | AC33: 0 | AD33: 0 | AG33: 0 | AH33: 0 | AI33: 0 | AL33: 0 | AM33: 0 | AN33: 0 | AQ33: 0 | AR33: 0 | AS33: 0 | AV33: 0 | AW33: 0 | AX33: 0 | AZ33: 17 | BA33: 14 | BB33: 5 | BC33: 19 | BE33: 15 | BF33: 16 | BG33: 5 | BH33: 21 | BJ33: 22 | BK33: 9 | BL33: 5 | BM33: 14 | BO33: 28 | BP33: 3 | BQ33: 0 | BR33: 0 | BS33: 0 | BT33: 0 | BU33: 0 | BV33: 1 | BW33: 0 | BX33: 0
A34: 29 | B34: Trøan | C34: Caspian | D34: Heming | E34: =IF(F34<=4,Q34,(Q34-SUM(SMALL(R34:Y34,{1;2;3;4})))) -> 50 | F34: 1 | L34: 5 | Q34: 50 | AB34: 0 | AC34: 0 | AD34: 0 | AG34: 0 | AH34: 0 | AI34: 0 | AL34: 0 | AM34: 0 | AN34: 0 | AQ34: 0 | AR34: 0 | AS34: 0 | AU34: 5 | AV34: 45 | AW34: 5 | AX34: 50 | BA34: 0 | BB34: 0 | BC34: 0 | BF34: 0 | BG34: 0 | BH34: 0 | BK34: 0 | BL34: 0 | BM34: 0 | BO34: 29 | BP34: 2 | BQ34: 0 | BR34: 0 | BS34: 0 | BT34: 0 | BU34: 1 | BV34: 0 | BW34: 0 | BX34: 0
A35: 29 | B35: Christiansen | C35: Victor | D35: IRS | E35: =IF(F35<=4,Q35,(Q35-SUM(SMALL(R35:Y35,{1;2;3;4})))) -> 50 | F35: 3 | H35: 11 | N35: dsq | O35: 20 | Q35: 50 | AA35: 11 | AB35: 24 | AC35: 5 | AD35: 29 | AG35: 0 | AH35: 0 | AI35: 0 | AL35: 0 | AM35: 0 | AN35: 0 | AQ35: 0 | AR35: 0 | AS35: 0 | AV35: 0 | AW35: 0 | AX35: 0 | BA35: 0 | BB35: 0 | BC35: 0 | BE35: dsq | BF35: 0 | BG35: 5 | BH35: 5 | BJ35: 20 | BK35: 11 | BL35: 5 | BM35: 16 | BO35: 30 | BP35: 1 | BQ35: 0 | BR35: =IF($F26=7,1,0) -> 0 | BS35: =IF($F26=6,1,0) -> 0 | BT35: =IF($F26=5,1,0) -> 0 | BU35: =IF($F26=4,1,0) -> 1 | BV35: =IF($F26=3,1,0) -> 0 | BW35: =IF($F26=2,1,0) -> 0 | BX35: =IF($F26=1,1,0) -> 0
A36: 31 | B36: Flaaten | C36: Carl Sebastian | D36: Heming | E36: =IF(F36<=4,Q36,(Q36-SUM(SMALL(R36:Y36,{1;2;3;4})))) -> 46 | F36: 2 | L36: 17 | M36: 12 | Q36: 46 | AB36: 0 | AC36: 0 | AD36: 0 | AG36: 0 | AH36: 0 | AI36: 0 | AL36: 0 | AM36: 0 | AN36: 0 | AQ36: 0 | AR36: 0 | AS36: 0 | AU36: 17 | AV36: 14 | AW36: 5 | AX36: 19 | AZ36: 12 | BA36: 22 | BB36: 5 | BC36: 27 | BF36: 0 | BG36: 0 | BH36: 0 | BK36: 0 | BL36: 0 | BM36: 0 | BO36: 31 | BP36: 0 | BQ36: 0 | BR36: 0 | BS36: 0 | BT36: 0 | BU36: 0 | BV36: 1 | BW36: 0 | BX36: 0
A37: 31 | B37: Hagen-Småstu | C37: Sindre | D37: Kjelsås | E37: =IF(F37<=4,Q37,(Q37-SUM(SMALL(R37:Y37,{1;2;3;4})))) -> 46 | F37: 3 | M37: 22 | N37: 17 | O37: 23 | Q37: 46 | AB37: 0 | AC37: 0 | AD37: 0 | AG37: 0 | AH37: 0 | AI37: 0 | AL37: 0 | AM37: 0 | AN37: 0 | AQ37: 0 | AR37: 0 | AS37: 0 | AV37: 0 | AW37: 0 | AX37: 0 | AZ37: 22 | BA37: 9 | BB37: 5 | BC37: 14 | BE37: 17 | BF37: 14 | BG37: 5 | BH37: 19 | BJ37: 23 | BK37: 8 | BL37: 5 | BM37: 13 | BO37: 32 | BP37: 0 | BQ37: 0 | BR37: 0 | BS37: 0 | BT37: 0 | BU37: 1 | BV37: 0 | BW37: 0 | BX37: 0
A38: =IF(E38<E37,BO38,A37) -> 33 | B38: Gudem | C38: Matheo | D38: IRS | E38: =IF(F38<=4,Q38,(Q38-SUM(SMALL(R38:Y38,{1;2;3;4})))) -> 45 | F38: =(IF(AC38=5,1,0)+IF(AH38=5,1,0)+IF(AM38=5,1,0)+IF(AR38=5,1,0)+IF(AW38=5,1,0)+IF(BB38=5,1,0)+IF(BG38=5,1,0)+IF(BL38=5,1,0)) -> 1 | H38: =IF(AA38="","",AA38) -> 6 | I38: =IF(AF38="","",AF38) ->  | J38: =IF(AK38="","",AK38) ->  | K38: =IF(AP38="","",AP38) ->  | L38: =IF(AU38="","",AU38) ->  | M38: =IF(AZ38="","",AZ38) ->  | N38: =IF(BE38="","",BE38) ->  | O38: =IF(BJ38="","",BJ38) ->  | Q38: =AD38+AI38+AN38+AS38+AX38+BC38+BH38+BM38 -> 45 | AA38: 6 | AB38: =IF(ISNUMBER(AA38),(VLOOKUP(AA38,$BO$6:$BP$50,2)),0) -> 40 | AC38: =IF(AA38<>"",5,0) -> 5 | AD38: =AB38+AC38 -> 45 | AG38: =IF(ISNUMBER(AF38),(VLOOKUP(AF38,$BO$6:$BP$50,2)),0) -> 0 | AH38: =IF(AF38<>"",5,0) -> 0 | AI38: =AG38+AH38 -> 0 | AL38: =IF(ISNUMBER(AK38),(VLOOKUP(AK38,$BO$6:$BP$50,2)),0) -> 0 | AM38: =IF(AK38<>"",5,0) -> 0 | AN38: =AL38+AM38 -> 0 | AQ38: =IF(ISNUMBER(AP38),(VLOOKUP(AP38,$BO$6:$BP$50,2)),0) -> 0 | AR38: =IF(AP38<>"",5,0) -> 0 | AS38: =AQ38+AR38 -> 0 | AV38: =IF(ISNUMBER(AU38),(VLOOKUP(AU38,$BO$6:$BP$50,2)),0) -> 0 | AW38: =IF(AU38<>"",5,0) -> 0 | AX38: =AV38+AW38 -> 0 | BA38: =IF(ISNUMBER(AZ38),(VLOOKUP(AZ38,$BO$6:$BP$50,2)),0) -> 0 | BB38: =IF(AZ38<>"",5,0) -> 0 | BC38: =BA38+BB38 -> 0 | BF38: =IF(ISNUMBER(BE38),(VLOOKUP(BE38,$BO$6:$BP$50,2)),0) -> 0 | BG38: =IF(BE38<>"",5,0) -> 0 | BH38: =BF38+BG38 -> 0 | BK38: =IF(ISNUMBER(BJ38),(VLOOKUP(BJ38,$BO$6:$BP$50,2)),0) -> 0 | BL38: =IF(BJ38<>"",5,0) -> 0 | BM38: =BK38+BL38 -> 0 | BO38: 33 | BP38: 0 | BQ38: 0 | BR38: 0 | BS38: 0 | BT38: 0 | BU38: 1 | BV38: 0 | BW38: 0 | BX38: 0
A39: 34 | B39: Bøhmer | C39: Knut Fredrik | D39: Heming | E39: =IF(F39<=4,Q39,(Q39-SUM(SMALL(R39:Y39,{1;2;3;4})))) -> 42 | F39: 2 | K39: dnf | N39: 8 | Q39: 42 | AB39: 0 | AC39: 0 | AD39: 0 | AG39: 0 | AH39: 0 | AI39: 0 | AL39: 0 | AM39: 0 | AN39: 0 | AP39: dnf | AQ39: 0 | AR39: 5 | AS39: 5 | AV39: 0 | AW39: 0 | AX39: 0 | BA39: 0 | BB39: 0 | BC39: 0 | BE39: 8 | BF39: 32 | BG39: 5 | BH39: 37 | BK39: 0 | BL39: 0 | BM39: 0 | BO39: 34 | BP39: 0 | BQ39: 0 | BR39: 0 | BS39: 0 | BT39: 0 | BU39: 1 | BV39: 0 | BW39: 0 | BX39: 0
A40: 35 | B40: Furuholmen | C40: Henrik Sæthre | D40: Heming | E40: =IF(F40<=4,Q40,(Q40-SUM(SMALL(R40:Y40,{1;2;3;4})))) -> 39 | F40: 2 | K40: 17 | M40: 16 | Q40: 39 | AB40: 0 | AC40: 0 | AD40: 0 | AG40: 0 | AH40: 0 | AI40: 0 | AL40: 0 | AM40: 0 | AN40: 0 | AP40: 17 | AQ40: 14 | AR40: 5 | AS40: 19 | AV40: 0 | AW40: 0 | AX40: 0 | AZ40: 16 | BA40: 15 | BB40: 5 | BC40: 20 | BF40: 0 | BG40: 0 | BH40: 0 | BK40: 0 | BL40: 0 | BM40: 0 | BO40: 35 | BP40: 0 | BQ40: 0 | BR40: 0 | BS40: 0 | BT40: 0 | BU40: 1 | BV40: 0 | BW40: 0 | BX40: 0
A41: 35 | B41: Ruud-Hansen | C41: Max | D41: Kjelsås | E41: =IF(F41<=4,Q41,(Q41-SUM(SMALL(R41:Y41,{1;2;3;4})))) -> 39 | F41: 3 | M41: 19 | N41: dsq | O41: 19 | Q41: 39 | AB41: 0 | AC41: 0 | AD41: 0 | AG41: 0 | AH41: 0 | AI41: 0 | AL41: 0 | AM41: 0 | AN41: 0 | AQ41: 0 | AR41: 0 | AS41: 0 | AV41: 0 | AW41: 0 | AX41: 0 | AZ41: 19 | BA41: 12 | BB41: 5 | BC41: 17 | BE41: dsq | BF41: 0 | BG41: 5 | BH41: 5 | BJ41: 19 | BK41: 12 | BL41: 5 | BM41: 17 | BO41: 36 | BP41: 0 | BQ41: 0 | BR41: 0 | BS41: 0 | BT41: 0 | BU41: 1 | BV41: 0 | BW41: 0 | BX41: 0
A42: 37 | B42: Stigen | C42: Mikkel | D42: Kjelsås | E42: =IF(F42<=4,Q42,(Q42-SUM(SMALL(R42:Y42,{1;2;3;4})))) -> 38 | F42: 3 | M42: 23 | N42: 21 | O42: 26 | Q42: 38 | AB42: 0 | AC42: 0 | AD42: 0 | AG42: 0 | AH42: 0 | AI42: 0 | AL42: 0 | AM42: 0 | AN42: 0 | AQ42: 0 | AR42: 0 | AS42: 0 | AV42: 0 | AW42: 0 | AX42: 0 | AZ42: 23 | BA42: 8 | BB42: 5 | BC42: 13 | BE42: 21 | BF42: 10 | BG42: 5 | BH42: 15 | BJ42: 26 | BK42: 5 | BL42: 5 | BM42: 10 | BO42: 37 | BP42: 0 | BQ42: 0 | BR42: 0 | BS42: 0 | BT42: 0 | BU42: 0 | BV42: 1 | BW42: 0 | BX42: 0
A43: 38 | B43: Meinich-Bakke | C43: Sindre | D43: Rælingen | E43: =IF(F43<=4,Q43,(Q43-SUM(SMALL(R43:Y43,{1;2;3;4})))) -> 34 | F43: 1 | M43: 9 | Q43: 34 | AB43: 0 | AC43: 0 | AD43: 0 | AG43: 0 | AH43: 0 | AI43: 0 | AL43: 0 | AM43: 0 | AN43: 0 | AQ43: 0 | AR43: 0 | AS43: 0 | AV43: 0 | AW43: 0 | AX43: 0 | AZ43: 9 | BA43: 29 | BB43: 5 | BC43: 34 | BF43: 0 | BG43: 0 | BH43: 0 | BK43: 0 | BL43: 0 | BM43: 0 | BO43: 38 | BP43: 0 | BQ43: 0 | BR43: 0 | BS43: 0 | BT43: 0 | BU43: 0 | BV43: 0 | BW43: 0 | BX43: 1
A44: 39 | B44: Lyseklætt | C44: Sebastian | D44: Heming | E44: =IF(F44<=4,Q44,(Q44-SUM(SMALL(R44:Y44,{1;2;3;4})))) -> 28 | F44: 2 | L44: dnf | M44: 14 | Q44: 28 | AB44: 0 | AC44: 0 | AD44: 0 | AG44: 0 | AH44: 0 | AI44: 0 | AL44: 0 | AM44: 0 | AN44: 0 | AQ44: 0 | AR44: 0 | AS44: 0 | AU44: dnf | AV44: 0 | AW44: 5 | AX44: 5 | AZ44: 14 | BA44: 18 | BB44: 5 | BC44: 23 | BF44: 0 | BG44: 0 | BH44: 0 | BK44: 0 | BL44: 0 | BM44: 0 | BO44: 39 | BP44: 0 | BQ44: 0 | BR44: 0 | BS44: 0 | BT44: 0 | BU44: 0 | BV44: 1 | BW44: 0 | BX44: 0
A45: 39 | B45: Manley | C45: Hermann | D45: Kjelsås | E45: =IF(F45<=4,Q45,(Q45-SUM(SMALL(R45:Y45,{1;2;3;4})))) -> 28 | F45: 2 | N45: 20 | O45: 24 | Q45: 28 | AB45: 0 | AC45: 0 | AD45: 0 | AG45: 0 | AH45: 0 | AI45: 0 | AL45: 0 | AM45: 0 | AN45: 0 | AQ45: 0 | AR45: 0 | AS45: 0 | AV45: 0 | AW45: 0 | AX45: 0 | BA45: 0 | BB45: 0 | BC45: 0 | BE45: 20 | BF45: 11 | BG45: 5 | BH45: 16 | BJ45: 24 | BK45: 7 | BL45: 5 | BM45: 12 | BO45: 40 | BP45: 0 | BQ45: 0 | BR45: 0 | BS45: 0 | BT45: 0 | BU45: 0 | BV45: 0 | BW45: 1 | BX45: 0
A46: 41 | B46: Øksnes | C46: Håkon Eiksund | D46: Kjelsås | E46: =IF(F46<=4,Q46,(Q46-SUM(SMALL(R46:Y46,{1;2;3;4})))) -> 25 | F46: 1 | H46: 13 | Q46: 25 | AA46: 13 | AB46: 20 | AC46: 5 | AD46: 25 | AG46: 0 | AH46: 0 | AI46: 0 | AL46: 0 | AM46: 0 | AN46: 0 | AQ46: 0 | AR46: 0 | AS46: 0 | AV46: 0 | AW46: 0 | AX46: 0 | BA46: 0 | BB46: 0 | BC46: 0 | BF46: 0 | BG46: 0 | BH46: 0 | BK46: 0 | BL46: 0 | BM46: 0 | BO46: 41 | BP46: 0 | BQ46: 0 | BR46: 0 | BS46: 0 | BT46: 0 | BU46: 0 | BV46: 1 | BW46: 0 | BX46: 0
A47: 42 | B47: Nyman | C47: Carl Axel | D47: Kjelsås | E47: =IF(F47<=4,Q47,(Q47-SUM(SMALL(R47:Y47,{1;2;3;4})))) -> 22 | F47: 2 | N47: 22 | O47: 28 | Q47: 22 | AB47: 0 | AC47: 0 | AD47: 0 | AG47: 0 | AH47: 0 | AI47: 0 | AL47: 0 | AM47: 0 | AN47: 0 | AQ47: 0 | AR47: 0 | AS47: 0 | AV47: 0 | AW47: 0 | AX47: 0 | BA47: 0 | BB47: 0 | BC47: 0 | BE47: 22 | BF47: 9 | BG47: 5 | BH47: 14 | BJ47: 28 | BK47: 3 | BL47: 5 | BM47: 8 | BO47: 42 | BP47: 0 | BQ47: 0 | BR47: 0 | BS47: 0 | BT47: 0 | BU47: 0 | BV47: 0 | BW47: 0 | BX47: 1
A48: 43 | B48: Erlandsen | C48: Mats | D48: Ullensaker | E48: =IF(F48<=4,Q48,(Q48-SUM(SMALL(R48:Y48,{1;2;3;4})))) -> 20 | F48: 1 | L48: 16 | Q48: 20 | AB48: 0 | AC48: 0 | AD48: 0 | AG48: 0 | AH48: 0 | AI48: 0 | AL48: 0 | AM48: 0 | AN48: 0 | AQ48: 0 | AR48: 0 | AS48: 0 | AU48: 16 | AV48: 15 | AW48: 5 | AX48: 20 | BA48: 0 | BB48: 0 | BC48: 0 | BF48: 0 | BG48: 0 | BH48: 0 | BK48: 0 | BL48: 0 | BM48: 0 | BO48: 43 | BP48: 0 | BQ48: 0 | BR48: 0 | BS48: 0 | BT48: 0 | BU48: 0 | BV48: 0 | BW48: 1 | BX48: 0
A49: 44 | B49: Ross | C49: Hans Christian | D49: Heming | E49: =IF(F49<=4,Q49,(Q49-SUM(SMALL(R49:Y49,{1;2;3;4})))) -> 14 | F49: 1 | L49: 22 | Q49: 14 | AB49: 0 | AC49: 0 | AD49: 0 | AG49: 0 | AH49: 0 | AI49: 0 | AL49: 0 | AM49: 0 | AN49: 0 | AQ49: 0 | AR49: 0 | AS49: 0 | AU49: 22 | AV49: 9 | AW49: 5 | AX49: 14 | BA49: 0 | BB49: 0 | BC49: 0 | BF49: 0 | BG49: 0 | BH49: 0 | BK49: 0 | BL49: 0 | BM49: 0 | BO49: 44 | BP49: 0 | BQ49: 0 | BR49: 0 | BS49: 0 | BT49: 0 | BU49: 0 | BV49: 0 | BW49: 1 | BX49: 0
A50: 45 | B50: Valasjø | C50: Henrik | D50: Heming | E50: =IF(F50<=4,Q50,(Q50-SUM(SMALL(R50:Y50,{1;2;3;4})))) -> 13 | F50: 1 | L50: 23 | Q50: 13 | R50: =IF($F41>=5,IF(AB50="","",AB50),"") ->  | S50: =IF($F41>=5,IF(AG50="","",AG50),"") ->  | T50: =IF($F41>=5,IF(AL50="","",AL50),"") ->  | U50: =IF($F41>=5,IF(AQ50="","",AQ50),"") ->  | V50: =IF($F41>=5,IF(AR50="","",AR50),"") ->  | W50: =IF($F41>=5,IF(AV50="","",AV50),"") ->  | X50: =IF($F41>=5,IF(BA50="","",BA50),"") ->  | Y50: =IF($F41>=5,IF(BF50="","",BF50),"") ->  | AB50: 0 | AC50: 0 | AD50: 0 | AG50: 0 | AH50: 0 | AI50: 0 | AL50: 0 | AM50: 0 | AN50: 0 | AQ50: 0 | AR50: 0 | AS50: 0 | AU50: 23 | AV50: 8 | AW50: 5 | AX50: 13 | BA50: 0 | BB50: 0 | BC50: 0 | BF50: 0 | BG50: 0 | BH50: 0 | BK50: 0 | BL50: 0 | BM50: 0 | BO50: 45 | BP50: 0 | BQ50: 0 | BR50: 0 | BS50: 0 | BT50: 0 | BU50: 0 | BV50: 1 | BW50: 0 | BX50: 0
A51: 46 | B51: Aulestad | C51: Herman | D51: Lørenskog | E51: =IF(F51<=4,Q51,(Q51-SUM(SMALL(R51:Y51,{1;2;3;4})))) -> 12 | F51: 1 | M51: 24 | Q51: 12 | R51: =IF($F42>=5,IF(AB51="","",AB51),"") ->  | S51: =IF($F42>=5,IF(AG51="","",AG51),"") ->  | T51: =IF($F42>=5,IF(AL51="","",AL51),"") ->  | U51: =IF($F42>=5,IF(AQ51="","",AQ51),"") ->  | V51: =IF($F42>=5,IF(AR51="","",AR51),"") ->  | W51: =IF($F42>=5,IF(AV51="","",AV51),"") ->  | X51: =IF($F42>=5,IF(BA51="","",BA51),"") ->  | Y51: =IF($F42>=5,IF(BF51="","",BF51),"") ->  | AB51: 0 | AC51: 0 | AD51: 0 | AG51: 0 | AH51: 0 | AI51: 0 | AL51: 0 | AM51: 0 | AN51: 0 | AQ51: 0 | AR51: 0 | AS51: 0 | AV51: 0 | AW51: 0 | AX51: 0 | AZ51: 24 | BA51: 7 | BB51: 5 | BC51: 12 | BF51: 0 | BG51: 0 | BH51: 0 | BK51: 0 | BL51: 0 | BM51: 0 | BO51: 46 | BP51: 0 | BQ51: 0 | BR51: =IF($F42=7,1,0) -> 0 | BS51: 0 | BT51: 0 | BU51: 0 | BV51: 1 | BW51: 0 | BX51: 0
A52: 47 | B52: Samdal | C52: Simen | D52: Kjelsås | E52: =IF(F52<=4,Q52,(Q52-SUM(SMALL(R52:Y52,{1;2;3;4})))) -> 9 | F52: 1 | O52: 27 | Q52: 9 | R52: =IF($F52>=5,IF(AB52="","",AB52),"") ->  | S52: =IF($F52>=5,IF(AG52="","",AG52),"") ->  | T52: =IF($F52>=5,IF(AL52="","",AL52),"") ->  | U52: =IF($F52>=5,IF(AQ52="","",AQ52),"") ->  | V52: =IF($F52>=5,IF(AV52="","",AV52),"") ->  | W52: =IF($F52>=5,IF(BA52="","",BA52),"") ->  | X52: =IF($F52>=5,IF(BF52="","",BF52),"") ->  | Y52: =IF($F52>=5,IF(BK52="","",BK52),"") ->  | AB52: 0 | AC52: 0 | AD52: 0 | AG52: 0 | AH52: 0 | AI52: 0 | AL52: 0 | AM52: 0 | AN52: 0 | AQ52: 0 | AR52: 0 | AS52: 0 | AV52: 0 | AW52: 0 | AX52: 0 | BA52: 0 | BB52: 0 | BC52: 0 | BF52: 0 | BG52: 0 | BH52: 0 | BJ52: 27 | BK52: 4 | BL52: 5 | BM52: 9 | BO52: 47 | BP52: 0 | BQ52: 0 | BR52: 0 | BS52: 0 | BT52: 0 | BU52: 0 | BV52: 0 | BW52: 0 | BX52: 1
A53: 48 | B53: Isaksen | C53: Arin Valentin | D53: Njård | E53: =IF(F53<=4,Q53,(Q53-SUM(SMALL(R53:Y53,{1;2;3;4})))) -> 7 | F53: 1 | O53: 29 | Q53: 7 | R53: =IF($F53>=5,IF(AB53="","",AB53),"") ->  | S53: =IF($F53>=5,IF(AG53="","",AG53),"") ->  | T53: =IF($F53>=5,IF(AL53="","",AL53),"") ->  | U53: =IF($F53>=5,IF(AQ53="","",AQ53),"") ->  | V53: =IF($F53>=5,IF(AV53="","",AV53),"") ->  | W53: =IF($F53>=5,IF(BA53="","",BA53),"") ->  | X53: =IF($F53>=5,IF(BF53="","",BF53),"") ->  | Y53: =IF($F53>=5,IF(BK53="","",BK53),"") ->  | AB53: 0 | AC53: 0 | AD53: 0 | AG53: 0 | AH53: 0 | AI53: 0 | AL53: 0 | AM53: 0 | AN53: 0 | AQ53: 0 | AR53: 0 | AS53: 0 | AV53: 0 | AW53: 0 | AX53: 0 | BA53: 0 | BB53: 0 | BC53: 0 | BF53: 0 | BG53: 0 | BH53: 0 | BJ53: 29 | BK53: 2 | BL53: 5 | BM53: 7 | BO53: 48 | BP53: 1 | BQ53: 0 | BR53: 0 | BS53: 0 | BT53: 0 | BU53: 0 | BV53: 0 | BW53: 1 | BX53: 0
A54: 49 | B54: Axelsen | C54: Alfred | D54: Kjelsås | E54: =IF(F54<=4,Q54,(Q54-SUM(SMALL(R54:Y54,{1;2;3;4})))) -> 5 | F54: 1 | I54: dsq | Q54: 5 | R54: =IF($F54>=5,IF(AB54="","",AB54),"") ->  | S54: =IF($F54>=5,IF(AG54="","",AG54),"") ->  | T54: =IF($F54>=5,IF(AL54="","",AL54),"") ->  | U54: =IF($F54>=5,IF(AQ54="","",AQ54),"") ->  | V54: =IF($F54>=5,IF(AV54="","",AV54),"") ->  | W54: =IF($F54>=5,IF(BA54="","",BA54),"") ->  | X54: =IF($F54>=5,IF(BF54="","",BF54),"") ->  | Y54: =IF($F54>=5,IF(BK54="","",BK54),"") ->  | AB54: 0 | AC54: 0 | AD54: 0 | AF54: dsq | AG54: 0 | AH54: 5 | AI54: 5 | AL54: 0 | AM54: 0 | AN54: 0 | AQ54: 0 | AR54: 0 | AS54: 0 | AV54: 0 | AW54: 0 | AX54: 0 | BA54: 0 | BB54: 0 | BC54: 0 | BF54: 0 | BG54: 0 | BH54: 0 | BK54: 0 | BL54: 0 | BM54: 0 | BO54: 49 | BP54: 2 | BQ54: 0 | BR54: 0 | BS54: 0 | BT54: 0 | BU54: 0 | BV54: 0 | BW54: 1 | BX54: 0
A55: 49 | B55: Skavik | C55: Trym Skogheim | D55: Heming | E55: =IF(F55<=4,Q55,(Q55-SUM(SMALL(R55:Y55,{1;2;3;4})))) -> 5 | F55: 1 | L55: dnf | Q55: 5 | R55: =IF($F55>=5,IF(AB55="","",AB55),"") ->  | S55: =IF($F55>=5,IF(AG55="","",AG55),"") ->  | T55: =IF($F55>=5,IF(AL55="","",AL55),"") ->  | U55: =IF($F55>=5,IF(AQ55="","",AQ55),"") ->  | V55: =IF($F55>=5,IF(AV55="","",AV55),"") ->  | W55: =IF($F55>=5,IF(BA55="","",BA55),"") ->  | X55: =IF($F55>=5,IF(BF55="","",BF55),"") ->  | Y55: =IF($F55>=5,IF(BK55="","",BK55),"") ->  | AB55: 0 | AC55: 0 | AD55: 0 | AG55: 0 | AH55: 0 | AI55: 0 | AL55: 0 | AM55: 0 | AN55: 0 | AQ55: 0 | AR55: 0 | AS55: 0 | AU55: dnf | AV55: 0 | AW55: 5 | AX55: 5 | BA55: 0 | BB55: 0 | BC55: 0 | BF55: 0 | BG55: 0 | BH55: 0 | BK55: 0 | BL55: 0 | BM55: 0 | BO55: 50 | BP55: 3 | BQ55: 0 | BR55: 0 | BS55: 0 | BT55: 0 | BU55: 0 | BV55: 0 | BW55: 0 | BX55: 1

Sheet J12 2018
A1: Resultatliste Oslo Cup 2018 - Jenter 12 år
A2: ='Forside 2018'!A2 -> Etter 8 av 8 renn
H3: IRS Rennet | I3: Ljan Rennet | J3: Njård Rennet | K3: Ready Rennet | L3: Telenor Arena Cup | M3: Euro-tecfarten | N3: Oslo Alpinfestival SL | O3: Oslo Alpinfestival SSL | R3: IRS Rennet | S3: Ljan Rennet | T3: Njård Rennet | U3: Ready Rennet | V3: Telenor Arena Cup | W3: Euro-tecfarten | X3: Oslo Alpinfestival SL | Y3: Oslo Alpinfestival SSL | AA3: --------IRS Rennet---------- | AF3: ----------Ljan Rennet--------- | AK3: --------Njård Rennet---------- | AP3: --------Ready Rennet--------- | AU3: -----Telenor Arena Cup---- | AZ3: ------Euro-tecfarten-------- | BE3: ---Oslo Alpinfestival SL--- | BJ3: ---Oslo Alpinfestival SSL---
F4: Antall | H4: 2018-02-03 | I4: 2018-02-04 | J4: 2018-02-10 | K4: 2018-02-11 | L4: 2018-02-14 | M4: 2018-02-28 | N4: 2018-03-03 | O4: 2018-03-04 | Q4: Poeng | R4: 2018-02-03 | S4: 2018-02-04 | T4: 2018-02-10 | U4: 2018-02-11 | V4: 2018-02-14 | W4: 2018-02-28 | X4: 2018-03-03 | Y4: 2018-03-04 | AB4: --------Poeng-------- | AG4: --------Poeng-------- | AL4: -------Poeng--------- | AQ4: -------Poeng--------- | AV4: -------Poeng--------- | BA4: -------Poeng--------- | BF4: -------Poeng--------- | BK4: -------Poeng--------- | BQ4: Løpere med | BR4: Løpere med | BS4: Løpere med | BT4: Løpere med | BU4: Løpere med | BV4: Løpere med | BW4: Løpere med | BX4: Løpere med
A5: Plass | B5: Etternavn | C5: Fornavn | D5: Klubb | E5: Poeng | F5: renn | H5: ------------------------------Plassering i rennene--------------------------------- | Q5: brutto | R5: ----------------Resultatpoeng hvis mer enn 4 renn---------------- | AA5: Plass | AB5: Res. | AC5: Del. | AD5: Tot. | AF5: Plass | AG5: Res. | AH5: Del. | AI5: Tot. | AK5: Plass | AL5: Res. | AM5: Del. | AN5: Tot. | AP5: Plass | AQ5: Res. | AR5: Del. | AS5: Tot. | AU5: Plass | AV5: Res. | AW5: Del. | AX5: Tot. | AZ5: Plass | BA5: Res. | BB5: Del. | BC5: Tot. | BE5: Plass | BF5: Res. | BG5: Del. | BH5: Tot. | BJ5: Plass | BK5: Res. | BL5: Del. | BM5: Tot. | BO5: Plass | BP5: Poeng | BQ5: 8 renn | BR5: 7 renn | BS5: 6 renn | BT5: 5 renn | BU5: 4 renn | BV5: 3 renn | BW5: 2 renn | BX5: kun 1 renn
A6: =IF(E6<E5,BO6,A5) -> 1 | B6: Rasmussen | C6: Cornelia Nystrøm | D6: Heming | E6: =IF(F6<=4,Q6,(Q6-SUM(SMALL(R6:Y6,{1;2;3;4})))) -> 420 | F6: =(IF(AC6=5,1,0)+IF(AH6=5,1,0)+IF(AM6=5,1,0)+IF(AR6=5,1,0)+IF(AW6=5,1,0)+IF(BB6=5,1,0)+IF(BG6=5,1,0)+IF(BL6=5,1,0)) -> 8 | H6: =IF(AA6="","",AA6) -> 4 | I6: =IF(AF6="","",AF6) -> 2 | J6: =IF(AK6="","",AK6) -> 3 | K6: =IF(AP6="","",AP6) -> 1 | L6: =IF(AU6="","",AU6) -> 4 | M6: =IF(AZ6="","",AZ6) -> 1 | N6: =IF(BE6="","",BE6) -> 16 | O6: =IF(BJ6="","",BJ6) -> 1 | Q6: =AD6+AI6+AN6+AS6+AX6+BC6+BH6+BM6 -> 595 | R6: =IF($F6>=5,IF(AB6="","",AB6),"") -> 50 | S6: =IF($F6>=5,IF(AG6="","",AG6),"") -> 80 | T6: =IF($F6>=5,IF(AL6="","",AL6),"") -> 60 | U6: =IF($F6>=5,IF(AQ6="","",AQ6),"") -> 100 | V6: =IF($F6>=5,IF(AV6="","",AV6),"") -> 50 | W6: =IF($F6>=5,IF(BA6="","",BA6),"") -> 100 | X6: =IF($F6>=5,IF(BF6="","",BF6),"") -> 15 | Y6: =IF($F6>=5,IF(BK6="","",BK6),"") -> 100 | AA6: 4 | AB6: =IF(ISNUMBER(AA6),(VLOOKUP(AA6,$BO$6:$BP$50,2)),0) -> 50 | AC6: =IF(AA6<>"",5,0) -> 5 | AD6: =AB6+AC6 -> 55 | AF6: 2 | AG6: =IF(ISNUMBER(AF6),(VLOOKUP(AF6,$BO$6:$BP$50,2)),0) -> 80 | AH6: =IF(AF6<>"",5,0) -> 5 | AI6: =AG6+AH6 -> 85 | AK6: 3 | AL6: =IF(ISNUMBER(AK6),(VLOOKUP(AK6,$BO$6:$BP$50,2)),0) -> 60 | AM6: =IF(AK6<>"",5,0) -> 5 | AN6: =AL6+AM6 -> 65 | AP6: 1 | AQ6: =IF(ISNUMBER(AP6),(VLOOKUP(AP6,$BO$6:$BP$50,2)),0) -> 100 | AR6: =IF(AP6<>"",5,0) -> 5 | AS6: =AQ6+AR6 -> 105 | AU6: 4 | AV6: =IF(ISNUMBER(AU6),(VLOOKUP(AU6,$BO$6:$BP$50,2)),0) -> 50 | AW6: =IF(AU6<>"",5,0) -> 5 | AX6: =AV6+AW6 -> 55 | AZ6: 1 | BA6: =IF(ISNUMBER(AZ6),(VLOOKUP(AZ6,$BO$6:$BP$50,2)),0) -> 100 | BB6: =IF(AZ6<>"",5,0) -> 5 | BC6: =BA6+BB6 -> 105 | BE6: 16 | BF6: =IF(ISNUMBER(BE6),(VLOOKUP(BE6,$BO$6:$BP$50,2)),0) -> 15 | BG6: =IF(BE6<>"",5,0) -> 5 | BH6: =BF6+BG6 -> 20 | BJ6: 1 | BK6: =IF(ISNUMBER(BJ6),(VLOOKUP(BJ6,$BO$6:$BP$50,2)),0) -> 100 | BL6: =IF(BJ6<>"",5,0) -> 5 | BM6: =BK6+BL6 -> 105 | BO6: 1 | BP6: 100 | BQ6: =IF($F6=8,1,0) -> 1 | BR6: =IF($F6=7,1,0) -> 0 | BS6: =IF($F6=6,1,0) -> 0 | BT6: =IF($F6=5,1,0) -> 0 | BU6: =IF($F6=4,1,0) -> 0 | BV6: =IF($F6=3,1,0) -> 0 | BW6: =IF($F6=2,1,0) -> 0 | BX6: =IF($F6=1,1,0) -> 0
A7: 2 | B7: Frederiksen | C7: Charlotte C L | D7: Ready | E7: =IF(F7<=4,Q7,(Q7-SUM(SMALL(R7:Y7,{1;2;3;4})))) -> 380 | F7: 8 | H7: 2 | I7: 3 | J7: 2 | K7: 2 | L7: 1 | M7: 5 | N7: dsq | O7: 2 | Q7: 565 | R7: 80 | S7: 60 | T7: 80 | U7: 80 | V7: 100 | W7: 45 | X7: 0 | Y7: 80 | AA7: 2 | AB7: 80 | AC7: 5 | AD7: 85 | AF7: 3 | AG7: 60 | AH7: 5 | AI7: 65 | AK7: 2 | AL7: 80 | AM7: 5 | AN7: 85 | AP7: 2 | AQ7: 80 | AR7: 5 | AS7: 85 | AU7: 1 | AV7: 100 | AW7: 5 | AX7: 105 | AZ7: 5 | BA7: 45 | BB7: 5 | BC7: 50 | BE7: dsq | BF7: 0 | BG7: 5 | BH7: 5 | BJ7: 2 | BK7: 80 | BL7: 5 | BM7: 85 | BO7: 2 | BP7: 80 | BQ7: =IF($F7=8,1,0) -> 1 | BR7: 0 | BS7: 0 | BT7: 0 | BU7: 0 | BV7: 0 | BW7: 0 | BX7: 0
A8: 3 | B8: Rasmussen | C8: Maisen Holst | D8: Stabæk | E8: =IF(F8<=4,Q8,(Q8-SUM(SMALL(R8:Y8,{1;2;3;4})))) -> 365 | F8: 5 | H8: 1 | I8: dsq | J8: 1 | L8: 3 | M8: 2 | Q8: 365 | R8: 100 | S8: 0 | T8: 100 | U8: 0 | V8: 60 | W8: 80 | X8: 0 | Y8: 0 | AA8: 1 | AB8: 100 | AC8: 5 | AD8: 105 | AF8: dsq | AG8: 0 | AH8: 5 | AI8: 5 | AK8: 1 | AL8: 100 | AM8: 5 | AN8: 105 | AQ8: 0 | AR8: 0 | AS8: 0 | AU8: 3 | AV8: 60 | AW8: 5 | AX8: 65 | AZ8: 2 | BA8: 80 | BB8: 5 | BC8: 85 | BF8: 0 | BG8: 0 | BH8: 0 | BK8: 0 | BL8: 0 | BM8: 0 | BO8: 3 | BP8: 60 | BQ8: 0 | BR8: 0 | BS8: 0 | BT8: 1 | BU8: 0 | BV8: 0 | BW8: 0 | BX8: 0
A9: 4 | B9: Finn-Hansen | C9: Nora | D9: Heming | E9: =IF(F9<=4,Q9,(Q9-SUM(SMALL(R9:Y9,{1;2;3;4})))) -> 340 | F9: 8 | H9: 3 | I9: 4 | J9: 4 | K9: 4 | L9: 7 | M9: 2 | N9: 1 | O9: 3 | Q9: 526 | R9: 60 | S9: 50 | T9: 50 | U9: 50 | V9: 36 | W9: 80 | X9: 100 | Y9: 60 | AA9: 3 | AB9: 60 | AC9: 5 | AD9: 65 | AF9: 4 | AG9: 50 | AH9: 5 | AI9: 55 | AK9: 4 | AL9: 50 | AM9: 5 | AN9: 55 | AP9: 4 | AQ9: 50 | AR9: 5 | AS9: 55 | AU9: 7 | AV9: 36 | AW9: 5 | AX9: 41 | AZ9: 2 | BA9: 80 | BB9: 5 | BC9: 85 | BE9: 1 | BF9: 100 | BG9: 5 | BH9: 105 | BJ9: 3 | BK9: 60 | BL9: 5 | BM9: 65 | BO9: 4 | BP9: 50 | BQ9: 1 | BR9: 0 | BS9: 0 | BT9: 0 | BU9: 0 | BV9: 0 | BW9: 0 | BX9: 0
A10: 5 | B10: Wessel-aas | C10: camilla | D10: Heming | E10: =IF(F10<=4,Q10,(Q10-SUM(SMALL(R10:Y10,{1;2;3;4})))) -> 270 | F10: 6 | H10: 5 | I10: 1 | J10: 8 | K10: 5 | L10: 6 | O10: 4 | Q10: 342 | R10: 45 | S10: 100 | T10: 32 | U10: 45 | V10: 40 | W10: 0 | X10: 0 | Y10: 50 | AA10: 5 | AB10: 45 | AC10: 5 | AD10: 50 | AF10: 1 | AG10: 100 | AH10: 5 | AI10: 105 | AK10: 8 | AL10: 32 | AM10: 5 | AN10: 37 | AP10: 5 | AQ10: 45 | AR10: 5 | AS10: 50 | AU10: 6 | AV10: 40 | AW10: 5 | AX10: 45 | BA10: 0 | BB10: 0 | BC10: 0 | BF10: 0 | BG10: 0 | BH10: 0 | BJ10: 4 | BK10: 50 | BL10: 5 | BM10: 55 | BO10: 5 | BP10: 45 | BQ10: 0 | BR10: 0 | BS10: 1 | BT10: 0 | BU10: 0 | BV10: 0 | BW10: 0 | BX10: 0
A11: 6 | B11: Hoel | C11: Hermine Owesen | D11: Heming | E11: =IF(F11<=4,Q11,(Q11-SUM(SMALL(R11:Y11,{1;2;3;4})))) -> 240 | F11: 6 | H11: 7 | I11: 7 | J11: 5 | L11: 5 | N11: 2 | O11: 6 | Q11: 312 | R11: 36 | S11: 36 | T11: 45 | U11: 0 | V11: 45 | W11: 0 | X11: 80 | Y11: 40 | AA11: 7 | AB11: 36 | AC11: 5 | AD11: 41 | AF11: 7 | AG11: 36 | AH11: 5 | AI11: 41 | AK11: 5 | AL11: 45 | AM11: 5 | AN11: 50 | AQ11: 0 | AR11: 0 | AS11: 0 | AU11: 5 | AV11: 45 | AW11: 5 | AX11: 50 | BA11: 0 | BB11: 0 | BC11: 0 | BE11: 2 | BF11: 80 | BG11: 5 | BH11: 85 | BJ11: 6 | BK11: 40 | BL11: 5 | BM11: 45 | BO11: 6 | BP11: 40 | BQ11: 0 | BR11: 0 | BS11: 1 | BT11: 0 | BU11: 0 | BV11: 0 | BW11: 0 | BX11: 0
A12: 7 | B12: Aandahl | C12: Nicola Alexandra | D12: Ready | E12: =IF(F12<=4,Q12,(Q12-SUM(SMALL(R12:Y12,{1;2;3;4})))) -> 235 | F12: 8 | H12: 9 | I12: 5 | J12: 6 | K12: 3 | L12: 30 | M12: 8 | N12: 4 | O12: 7 | Q12: 333 | R12: 29 | S12: 45 | T12: 40 | U12: 60 | V12: 1 | W12: 32 | X12: 50 | Y12: 36 | AA12: 9 | AB12: 29 | AC12: 5 | AD12: 34 | AF12: 5 | AG12: 45 | AH12: 5 | AI12: 50 | AK12: 6 | AL12: 40 | AM12: 5 | AN12: 45 | AP12: 3 | AQ12: 60 | AR12: 5 | AS12: 65 | AU12: 30 | AV12: 1 | AW12: 5 | AX12: 6 | AZ12: 8 | BA12: 32 | BB12: 5 | BC12: 37 | BE12: 4 | BF12: 50 | BG12: 5 | BH12: 55 | BJ12: 7 | BK12: 36 | BL12: 5 | BM12: 41 | BO12: 7 | BP12: 36 | BQ12: 1 | BR12: 0 | BS12: 0 | BT12: 0 | BU12: 0 | BV12: 0 | BW12: 0 | BX12: 0
A13: 8 | B13: Sartz-Lunde | C13: Emily Nell | D13: Heming | E13: =IF(F13<=4,Q13,(Q13-SUM(SMALL(R13:Y13,{1;2;3;4})))) -> 185 | F13: 5 | J13: 7 | K13: 10 | M13: 4 | N13: 9 | O13: 5 | Q13: 211 | R13: 0 | S13: 0 | T13: 36 | U13: 26 | V13: 0 | W13: 50 | X13: 29 | Y13: 45 | AB13: 0 | AC13: 0 | AD13: 0 | AG13: 0 | AH13: 0 | AI13: 0 | AK13: 7 | AL13: 36 | AM13: 5 | AN13: 41 | AP13: 10 | AQ13: 26 | AR13: 5 | AS13: 31 | AV13: 0 | AW13: 0 | AX13: 0 | AZ13: 4 | BA13: 50 | BB13: 5 | BC13: 55 | BE13: 9 | BF13: 29 | BG13: 5 | BH13: 34 | BJ13: 5 | BK13: 45 | BL13: 5 | BM13: 50 | BO13: 8 | BP13: 32 | BQ13: 0 | BR13: 0 | BS13: 0 | BT13: 1 | BU13: 0 | BV13: 0 | BW13: 0 | BX13: 0
A14: 9 | B14: Thorsby | C14: Pernille | D14: Heming | E14: =IF(F14<=4,Q14,(Q14-SUM(SMALL(R14:Y14,{1;2;3;4})))) -> 168 | F14: 6 | H14: 6 | I14: 9 | J14: 9 | K14: 6 | L14: 9 | O14: 9 | Q14: 226 | R14: 40 | S14: 29 | T14: 29 | U14: 40 | V14: 29 | W14: 0 | X14: 0 | Y14: 29 | AA14: 6 | AB14: 40 | AC14: 5 | AD14: 45 | AF14: 9 | AG14: 29 | AH14: 5 | AI14: 34 | AK14: 9 | AL14: 29 | AM14: 5 | AN14: 34 | AP14: 6 | AQ14: 40 | AR14: 5 | AS14: 45 | AU14: 9 | AV14: 29 | AW14: 5 | AX14: 34 | BA14: 0 | BB14: 0 | BC14: 0 | BF14: 0 | BG14: 0 | BH14: 0 | BJ14: 9 | BK14: 29 | BL14: 5 | BM14: 34 | BO14: 9 | BP14: 29 | BQ14: 0 | BR14: 0 | BS14: 1 | BT14: 0 | BU14: 0 | BV14: 0 | BW14: 0 | BX14: 0
A15: 10 | B15: Norstrand | C15: Nicoline | D15: Heming | E15: =IF(F15<=4,Q15,(Q15-SUM(SMALL(R15:Y15,{1;2;3;4})))) -> 157 | F15: 5 | J15: 12 | K15: 8 | L15: 14 | N15: 3 | O15: dsq | Q15: 157 | R15: 0 | S15: 0 | T15: 22 | U15: 32 | V15: 18 | W15: 0 | X15: 60 | Y15: 0 | AB15: 0 | AC15: 0 | AD15: 0 | AG15: 0 | AH15: 0 | AI15: 0 | AK15: 12 | AL15: 22 | AM15: 5 | AN15: 27 | AP15: 8 | AQ15: 32 | AR15: 5 | AS15: 37 | AU15: 14 | AV15: 18 | AW15: 5 | AX15: 23 | BA15: 0 | BB15: 0 | BC15: 0 | BE15: 3 | BF15: 60 | BG15: 5 | BH15: 65 | BJ15: dsq | BK15: 0 | BL15: 5 | BM15: 5 | BO15: 10 | BP15: 26 | BQ15: 0 | BR15: 0 | BS15: 0 | BT15: 1 | BU15: 0 | BV15: 0 | BW15: 0 | BX15: 0
A16: 10 | B16: Granerud | C16: Cornelie Hemme | D16: Ljan | E16: =IF(F16<=4,Q16,(Q16-SUM(SMALL(R16:Y16,{1;2;3;4})))) -> 157 | F16: 7 | H16: dnf | I16: dsq | J16: 11 | K16: 7 | L16: 17 | N16: 6 | O16: 12 | Q16: 171 | R16: 0 | S16: 0 | T16: 24 | U16: 36 | V16: 14 | W16: 0 | X16: 40 | Y16: 22 | AA16: dnf | AB16: 0 | AC16: 5 | AD16: 5 | AF16: dsq | AG16: 0 | AH16: 5 | AI16: 5 | AK16: 11 | AL16: 24 | AM16: 5 | AN16: 29 | AP16: 7 | AQ16: 36 | AR16: 5 | AS16: 41 | AU16: 17 | AV16: 14 | AW16: 5 | AX16: 19 | BA16: 0 | BB16: 0 | BC16: 0 | BE16: 6 | BF16: 40 | BG16: 5 | BH16: 45 | BJ16: 12 | BK16: 22 | BL16: 5 | BM16: 27 | BO16: 11 | BP16: 24 | BQ16: 0 | BR16: 1 | BS16: 0 | BT16: 0 | BU16: 0 | BV16: 0 | BW16: 0 | BX16: 0
A17: 12 | B17: Bjørnstad | C17: Erika Scheid | D17: IRS | E17: =IF(F17<=4,Q17,(Q17-SUM(SMALL(R17:Y17,{1;2;3;4})))) -> 147 | F17: 7 | H17: 13 | I17: 10 | J17: 23 | K17: 17 | M17: 7 | N17: 10 | O17: 11 | Q17: 189 | R17: 20 | S17: 26 | T17: 8 | U17: 14 | V17: 0 | W17: 36 | X17: 26 | Y17: 24 | AA17: 13 | AB17: 20 | AC17: 5 | AD17: 25 | AF17: 10 | AG17: 26 | AH17: 5 | AI17: 31 | AK17: 23 | AL17: 8 | AM17: 5 | AN17: 13 | AP17: 17 | AQ17: 14 | AR17: 5 | AS17: 19 | AV17: 0 | AW17: 0 | AX17: 0 | AZ17: 7 | BA17: 36 | BB17: 5 | BC17: 41 | BE17: 10 | BF17: 26 | BG17: 5 | BH17: 31 | BJ17: 11 | BK17: 24 | BL17: 5 | BM17: 29 | BO17: 12 | BP17: 22 | BQ17: 0 | BR17: 1 | BS17: 0 | BT17: 0 | BU17: 0 | BV17: 0 | BW17: 0 | BX17: 0
A18: 13 | B18: Alsos | C18: Synne | D18: Ready | E18: =IF(F18<=4,Q18,(Q18-SUM(SMALL(R18:Y18,{1;2;3;4})))) -> 145 | F18: 5 | H18: 8 | I18: 6 | J18: 10 | K18: 18 | L18: 12 | Q18: 158 | R18: 32 | S18: 40 | T18: 26 | U18: 13 | V18: 22 | W18: 0 | X18: 0 | Y18: 0 | AA18: 8 | AB18: 32 | AC18: 5 | AD18: 37 | AF18: 6 | AG18: 40 | AH18: 5 | AI18: 45 | AK18: 10 | AL18: 26 | AM18: 5 | AN18: 31 | AP18: 18 | AQ18: 13 | AR18: 5 | AS18: 18 | AU18: 12 | AV18: 22 | AW18: 5 | AX18: 27 | BA18: 0 | BB18: 0 | BC18: 0 | BF18: 0 | BG18: 0 | BH18: 0 | BK18: 0 | BL18: 0 | BM18: 0 | BO18: 13 | BP18: 20 | BQ18: 0 | BR18: =IF($F17=7,1,0) -> 1 | BS18: =IF($F17=6,1,0) -> 0 | BT18: =IF($F17=5,1,0) -> 0 | BU18: =IF($F17=4,1,0) -> 0 | BV18: =IF($F17=3,1,0) -> 0 | BW18: =IF($F17=2,1,0) -> 0 | BX18: =IF($F17=1,1,0) -> 0
A19: 14 | B19: Horgen | C19: Alexandra Astrup | D19: Heming | E19: =IF(F19<=4,Q19,(Q19-SUM(SMALL(R19:Y19,{1;2;3;4})))) -> 139 | F19: 5 | H19: 10 | I19: 8 | L19: 13 | N19: 7 | O19: 15 | Q19: 155 | R19: 26 | S19: 32 | T19: 0 | U19: 0 | V19: 20 | W19: 0 | X19: 36 | Y19: 16 | AA19: 10 | AB19: 26 | AC19: 5 | AD19: 31 | AF19: 8 | AG19: 32 | AH19: 5 | AI19: 37 | AL19: 0 | AM19: 0 | AN19: 0 | AQ19: 0 | AR19: 0 | AS19: 0 | AU19: 13 | AV19: 20 | AW19: 5 | AX19: 25 | BA19: 0 | BB19: 0 | BC19: 0 | BE19: 7 | BF19: 36 | BG19: 5 | BH19: 41 | BJ19: 15 | BK19: 16 | BL19: 5 | BM19: 21 | BO19: 14 | BP19: 18 | BQ19: 0 | BR19: =IF($F18=7,1,0) -> 0 | BS19: =IF($F18=6,1,0) -> 0 | BT19: =IF($F18=5,1,0) -> 1 | BU19: =IF($F18=4,1,0) -> 0 | BV19: =IF($F18=3,1,0) -> 0 | BW19: =IF($F18=2,1,0) -> 0 | BX19: =IF($F18=1,1,0) -> 0
A20: 15 | B20: Solheim | C20: Cornelia Margrethe Lysne | D20: Njård | E20: =IF(F20<=4,Q20,(Q20-SUM(SMALL(R20:Y20,{1;2;3;4})))) -> 132 | F20: 6 | H20: 15 | J20: 14 | K20: 9 | L20: 20 | M20: 9 | O20: 10 | Q20: 159 | R20: 16 | S20: 0 | T20: 18 | U20: 29 | V20: 11 | W20: 29 | X20: 0 | Y20: 26 | AA20: 15 | AB20: 16 | AC20: 5 | AD20: 21 | AG20: 0 | AH20: 0 | AI20: 0 | AK20: 14 | AL20: 18 | AM20: 5 | AN20: 23 | AP20: 9 | AQ20: 29 | AR20: 5 | AS20: 34 | AU20: 20 | AV20: 11 | AW20: 5 | AX20: 16 | AZ20: 9 | BA20: 29 | BB20: 5 | BC20: 34 | BF20: 0 | BG20: 0 | BH20: 0 | BJ20: 10 | BK20: 26 | BL20: 5 | BM20: 31 | BO20: 15 | BP20: 16 | BQ20: 0 | BR20: =IF($F19=7,1,0) -> 0 | BS20: =IF($F19=6,1,0) -> 0 | BT20: =IF($F19=5,1,0) -> 1 | BU20: =IF($F19=4,1,0) -> 0 | BV20: =IF($F19=3,1,0) -> 0 | BW20: =IF($F19=2,1,0) -> 0 | BX20: =IF($F19=1,1,0) -> 0
A21: 16 | B21: Aardal | C21: Mina | D21: NERO | E21: =IF(F21<=4,Q21,(Q21-SUM(SMALL(R21:Y21,{1;2;3;4})))) -> 126 | F21: 4 | J21: 17 | L21: 16 | N21: 5 | O21: 8 | Q21: 126 | AB21: 0 | AC21: 0 | AD21: 0 | AG21: 0 | AH21: 0 | AI21: 0 | AK21: 17 | AL21: 14 | AM21: 5 | AN21: 19 | AQ21: 0 | AR21: 0 | AS21: 0 | AU21: 16 | AV21: 15 | AW21: 5 | AX21: 20 | BA21: 0 | BB21: 0 | BC21: 0 | BE21: 5 | BF21: 45 | BG21: 5 | BH21: 50 | BJ21: 8 | BK21: 32 | BL21: 5 | BM21: 37 | BO21: 16 | BP21: 15 | BQ21: 0 | BR21: =IF($F19=7,1,0) -> 0 | BS21: =IF($F19=6,1,0) -> 0 | BT21: =IF($F19=5,1,0) -> 1 | BU21: =IF($F19=4,1,0) -> 0 | BV21: =IF($F19=3,1,0) -> 0 | BW21: =IF($F19=2,1,0) -> 0 | BX21: =IF($F19=1,1,0) -> 0
A22: 17 | B22: Solberg | C22: Erle | D22: Ready | E22: =IF(F22<=4,Q22,(Q22-SUM(SMALL(R22:Y22,{1;2;3;4})))) -> 123 | F22: 7 | H22: dsq | I22: 14 | K22: 19 | L22: 25 | M22: 6 | N22: 14 | O22: 20 | Q22: 140 | R22: 0 | S22: 18 | T22: 0 | U22: 12 | V22: 6 | W22: 40 | X22: 18 | Y22: 11 | AA22: dsq | AB22: 0 | AC22: 5 | AD22: 5 | AF22: 14 | AG22: 18 | AH22: 5 | AI22: 23 | AL22: 0 | AM22: 0 | AN22: 0 | AP22: 19 | AQ22: 12 | AR22: 5 | AS22: 17 | AU22: 25 | AV22: 6 | AW22: 5 | AX22: 11 | AZ22: 6 | BA22: 40 | BB22: 5 | BC22: 45 | BE22: 14 | BF22: 18 | BG22: 5 | BH22: 23 | BJ22: 20 | BK22: 11 | BL22: 5 | BM22: 16 | BO22: 17 | BP22: 14 | BQ22: 0 | BR22: 0 | BS22: 1 | BT22: 0 | BU22: 0 | BV22: 0 | BW22: 0 | BX22: 0
A23: 18 | B23: Brækken | C23: Eili | D23: IRS | E23: =IF(F23<=4,Q23,(Q23-SUM(SMALL(R23:Y23,{1;2;3;4})))) -> 114 | F23: 6 | H23: 14 | I23: 11 | J23: 18 | K23: 12 | N23: 13 | O23: 17 | Q23: 141 | R23: 18 | S23: 24 | T23: 13 | U23: 22 | V23: 0 | W23: 0 | X23: 20 | Y23: 14 | AA23: 14 | AB23: 18 | AC23: 5 | AD23: 23 | AF23: 11 | AG23: 24 | AH23: 5 | AI23: 29 | AK23: 18 | AL23: 13 | AM23: 5 | AN23: 18 | AP23: 12 | AQ23: 22 | AR23: 5 | AS23: 27 | AV23: 0 | AW23: 0 | AX23: 0 | BA23: 0 | BB23: 0 | BC23: 0 | BE23: 13 | BF23: 20 | BG23: 5 | BH23: 25 | BJ23: 17 | BK23: 14 | BL23: 5 | BM23: 19 | BO23: 18 | BP23: 13 | BQ23: 0 | BR23: 0 | BS23: 0 | BT23: 0 | BU23: 1 | BV23: 0 | BW23: 0 | BX23: 0
A24: 19 | B24: Øye | C24: Alva Østnes | D24: IRS | E24: =IF(F24<=4,Q24,(Q24-SUM(SMALL(R24:Y24,{1;2;3;4})))) -> 111 | F24: 5 | H24: 12 | I24: 17 | L24: 23 | N24: 8 | O24: 14 | Q24: 119 | R24: 22 | S24: 14 | T24: 0 | U24: 0 | V24: 8 | W24: 0 | X24: 32 | Y24: 18 | AA24: 12 | AB24: 22 | AC24: 5 | AD24: 27 | AF24: 17 | AG24: 14 | AH24: 5 | AI24: 19 | AL24: 0 | AM24: 0 | AN24: 0 | AQ24: 0 | AR24: 0 | AS24: 0 | AU24: 23 | AV24: 8 | AW24: 5 | AX24: 13 | BA24: 0 | BB24: 0 | BC24: 0 | BE24: 8 | BF24: 32 | BG24: 5 | BH24: 37 | BJ24: 14 | BK24: 18 | BL24: 5 | BM24: 23 | BO24: 19 | BP24: 12 | BQ24: 0 | BR24: 1 | BS24: 0 | BT24: 0 | BU24: 0 | BV24: 0 | BW24: 0 | BX24: 0
A25: 20 | B25: Benjamin-Wormdahl | C25: Sarah Louise | D25: Heming | E25: =IF(F25<=4,Q25,(Q25-SUM(SMALL(R25:Y25,{1;2;3;4})))) -> 106 | F25: 5 | K25: 13 | L25: 18 | M25: 11 | N25: 11 | O25: dnf | Q25: 106 | R25: 0 | S25: 0 | T25: 0 | U25: 20 | V25: 13 | W25: 24 | X25: 24 | Y25: 0 | AB25: 0 | AC25: 0 | AD25: 0 | AG25: 0 | AH25: 0 | AI25: 0 | AL25: 0 | AM25: 0 | AN25: 0 | AP25: 13 | AQ25: 20 | AR25: 5 | AS25: 25 | AU25: 18 | AV25: 13 | AW25: 5 | AX25: 18 | AZ25: 11 | BA25: 24 | BB25: 5 | BC25: 29 | BE25: 11 | BF25: 24 | BG25: 5 | BH25: 29 | BJ25: dnf | BK25: 0 | BL25: 5 | BM25: 5 | BO25: 20 | BP25: 11 | BQ25: 0 | BR25: 0 | BS25: 1 | BT25: 0 | BU25: 0 | BV25: 0 | BW25: 0 | BX25: 0
A26: 21 | B26: Hystad | C26: Fanny | D26: HSIL | E26: =IF(F26<=4,Q26,(Q26-SUM(SMALL(R26:Y26,{1;2;3;4})))) -> 89 | F26: 4 | J26: 21 | M26: 12 | N26: 11 | O26: 18 | Q26: 89 | AB26: 0 | AC26: 0 | AD26: 0 | AG26: 0 | AH26: 0 | AI26: 0 | AK26: 21 | AL26: 10 | AM26: 5 | AN26: 15 | AQ26: 0 | AR26: 0 | AS26: 0 | AV26: 0 | AW26: 0 | AX26: 0 | AZ26: 12 | BA26: 22 | BB26: 5 | BC26: 27 | BE26: 11 | BF26: 24 | BG26: 5 | BH26: 29 | BJ26: 18 | BK26: 13 | BL26: 5 | BM26: 18 | BO26: 21 | BP26: 10 | BQ26: 0 | BR26: 0 | BS26: 0 | BT26: 1 | BU26: 0 | BV26: 0 | BW26: 0 | BX26: 0
A27: 22 | B27: Solhusløkk | C27: Carina | D27: IRS | E27: =IF(F27<=4,Q27,(Q27-SUM(SMALL(R27:Y27,{1;2;3;4})))) -> 88 | F27: 7 | H27: 18 | I27: 16 | J27: 24 | K27: 20 | L27: 26 | N27: 17 | O27: 25 | Q27: 106 | R27: 13 | S27: 15 | T27: 7 | U27: 11 | V27: 5 | W27: 0 | X27: 14 | Y27: 6 | AA27: 18 | AB27: 13 | AC27: 5 | AD27: 18 | AF27: 16 | AG27: 15 | AH27: 5 | AI27: 20 | AK27: 24 | AL27: 7 | AM27: 5 | AN27: 12 | AP27: 20 | AQ27: 11 | AR27: 5 | AS27: 16 | AU27: 26 | AV27: 5 | AW27: 5 | AX27: 10 | BA27: 0 | BB27: 0 | BC27: 0 | BE27: 17 | BF27: 14 | BG27: 5 | BH27: 19 | BJ27: 25 | BK27: 6 | BL27: 5 | BM27: 11 | BO27: 22 | BP27: 9 | BQ27: 0 | BR27: 0 | BS27: 0 | BT27: 1 | BU27: 0 | BV27: 0 | BW27: 0 | BX27: 0
A28: 23 | B28: Braathen | C28: Selma Georgia | D28: Stabæk | E28: =IF(F28<=4,Q28,(Q28-SUM(SMALL(R28:Y28,{1;2;3;4})))) -> 85 | F28: 1 | L28: 2 | Q28: 85 | AB28: 0 | AC28: 0 | AD28: 0 | AG28: 0 | AH28: 0 | AI28: 0 | AL28: 0 | AM28: 0 | AN28: 0 | AQ28: 0 | AR28: 0 | AS28: 0 | AU28: 2 | AV28: 80 | AW28: 5 | AX28: 85 | BA28: 0 | BB28: 0 | BC28: 0 | BF28: 0 | BG28: 0 | BH28: 0 | BK28: 0 | BL28: 0 | BM28: 0 | BO28: 23 | BP28: 8 | BQ28: 0 | BR28: =IF($F23=7,1,0) -> 0 | BS28: =IF($F23=6,1,0) -> 1 | BT28: =IF($F23=5,1,0) -> 0 | BU28: =IF($F23=4,1,0) -> 0 | BV28: =IF($F23=3,1,0) -> 0 | BW28: =IF($F23=2,1,0) -> 0 | BX28: =IF($F23=1,1,0) -> 0
A29: 24 | B29: Brandi | C29: Philippa | D29: Ready | E29: =IF(F29<=4,Q29,(Q29-SUM(SMALL(R29:Y29,{1;2;3;4})))) -> 84 | F29: 6 | J29: 15 | K29: 21 | L29: 22 | M29: dsq | N29: 15 | O29: 19 | Q29: 93 | R29: 0 | S29: 0 | T29: 16 | U29: 10 | V29: 9 | W29: 0 | X29: 16 | Y29: 12 | AB29: 0 | AC29: 0 | AD29: 0 | AG29: 0 | AH29: 0 | AI29: 0 | AK29: 15 | AL29: 16 | AM29: 5 | AN29: 21 | AP29: 21 | AQ29: 10 | AR29: 5 | AS29: 15 | AU29: 22 | AV29: 9 | AW29: 5 | AX29: 14 | AZ29: dsq | BA29: 0 | BB29: 5 | BC29: 5 | BE29: 15 | BF29: 16 | BG29: 5 | BH29: 21 | BJ29: 19 | BK29: 12 | BL29: 5 | BM29: 17 | BO29: 24 | BP29: 7 | BQ29: 0 | BR29: =IF($F24=7,1,0) -> 0 | BS29: =IF($F24=6,1,0) -> 0 | BT29: =IF($F24=5,1,0) -> 1 | BU29: =IF($F24=4,1,0) -> 0 | BV29: =IF($F24=3,1,0) -> 0 | BW29: =IF($F24=2,1,0) -> 0 | BX29: =IF($F24=1,1,0) -> 0
A30: 25 | B30: Talen | C30: Henriette Young | D30: Heming | E30: =IF(F30<=4,Q30,(Q30-SUM(SMALL(R30:Y30,{1;2;3;4})))) -> 82 | F30: 4 | H30: 16 | I30: 12 | L30: 21 | O30: 16 | Q30: 82 | AA30: 16 | AB30: 15 | AC30: 5 | AD30: 20 | AF30: 12 | AG30: 22 | AH30: 5 | AI30: 27 | AL30: 0 | AM30: 0 | AN30: 0 | AQ30: 0 | AR30: 0 | AS30: 0 | AU30: 21 | AV30: 10 | AW30: 5 | AX30: 15 | BA30: 0 | BB30: 0 | BC30: 0 | BF30: 0 | BG30: 0 | BH30: 0 | BJ30: 16 | BK30: 15 | BL30: 5 | BM30: 20 | BO30: 25 | BP30: 6 | BQ30: 0 | BR30: =IF($F25=7,1,0) -> 0 | BS30: =IF($F25=6,1,0) -> 0 | BT30: =IF($F25=5,1,0) -> 1 | BU30: =IF($F25=4,1,0) -> 0 | BV30: =IF($F25=3,1,0) -> 0 | BW30: =IF($F25=2,1,0) -> 0 | BX30: =IF($F25=1,1,0) -> 0
A31: 26 | B31: Moen | C31: Magda | D31: Kjelsås | E31: =IF(F31<=4,Q31,(Q31-SUM(SMALL(R31:Y31,{1;2;3;4})))) -> 73 | F31: 5 | I31: dsq | J31: 16 | K31: 11 | N31: dsq | O31: 22 | Q31: 73 | R31: 0 | S31: 0 | T31: 15 | U31: 24 | V31: 0 | W31: 0 | X31: 0 | Y31: 9 | AB31: 0 | AC31: 0 | AD31: 0 | AF31: dsq | AG31: 0 | AH31: 5 | AI31: 5 | AK31: 16 | AL31: 15 | AM31: 5 | AN31: 20 | AP31: 11 | AQ31: 24 | AR31: 5 | AS31: 29 | AV31: 0 | AW31: 0 | AX31: 0 | BA31: 0 | BB31: 0 | BC31: 0 | BE31: dsq | BF31: 0 | BG31: 5 | BH31: 5 | BJ31: 22 | BK31: 9 | BL31: 5 | BM31: 14 | BO31: 26 | BP31: 5 | BQ31: 0 | BR31: =IF($F25=7,1,0) -> 0 | BS31: =IF($F25=6,1,0) -> 0 | BT31: =IF($F25=5,1,0) -> 1 | BU31: =IF($F25=4,1,0) -> 0 | BV31: =IF($F25=3,1,0) -> 0 | BW31: =IF($F25=2,1,0) -> 0 | BX31: =IF($F25=1,1,0) -> 0
A32: 27 | B32: Dynna | C32: Nathalie Østnes | D32: IRS | E32: =IF(F32<=4,Q32,(Q32-SUM(SMALL(R32:Y32,{1;2;3;4})))) -> 71 | F32: 4 | H32: 11 | I32: dsq | K32: 16 | L32: 19 | Q32: 71 | AA32: 11 | AB32: 24 | AC32: 5 | AD32: 29 | AF32: dsq | AG32: 0 | AH32: 5 | AI32: 5 | AL32: 0 | AM32: 0 | AN32: 0 | AP32: 16 | AQ32: 15 | AR32: 5 | AS32: 20 | AU32: 19 | AV32: 12 | AW32: 5 | AX32: 17 | BA32: 0 | BB32: 0 | BC32: 0 | BF32: 0 | BG32: 0 | BH32: 0 | BK32: 0 | BL32: 0 | BM32: 0 | BO32: 27 | BP32: 4 | BQ32: 0 | BR32: =IF($F26=7,1,0) -> 0 | BS32: =IF($F26=6,1,0) -> 0 | BT32: =IF($F26=5,1,0) -> 0 | BU32: =IF($F26=4,1,0) -> 1 | BV32: =IF($F26=3,1,0) -> 0 | BW32: =IF($F26=2,1,0) -> 0 | BX32: =IF($F26=1,1,0) -> 0
A33: 28 | B33: Hurlen | C33: Hermine Erichsen | D33: Njård | E33: =IF(F33<=4,Q33,(Q33-SUM(SMALL(R33:Y33,{1;2;3;4})))) -> 70 | F33: 6 | J33: 26 | K33: 22 | L33: 28 | M33: 16 | N33: 20 | O33: 26 | Q33: 78 | R33: 0 | S33: 0 | T33: 5 | U33: 9 | V33: 3 | W33: 15 | X33: 11 | Y33: 5 | AB33: 0 | AC33: 0 | AD33: 0 | AG33: 0 | AH33: 0 | AI33: 0 | AK33: 26 | AL33: 5 | AM33: 5 | AN33: 10 | AP33: 22 | AQ33: 9 | AR33: 5 | AS33: 14 | AU33: 28 | AV33: 3 | AW33: 5 | AX33: 8 | AZ33: 16 | BA33: 15 | BB33: 5 | BC33: 20 | BE33: 20 | BF33: 11 | BG33: 5 | BH33: 16 | BJ33: 26 | BK33: 5 | BL33: 5 | BM33: 10 | BO33: 28 | BP33: 3 | BQ33: 0 | BR33: 1 | BS33: 0 | BT33: 0 | BU33: 0 | BV33: 0 | BW33: 0 | BX33: 0
A34: 29 | B34: Rustad | C34: PetronellaG | D34: Njård | E34: =IF(F34<=4,Q34,(Q34-SUM(SMALL(R34:Y34,{1;2;3;4})))) -> 64 | F34: 4 | H34: 17 | J34: 19 | K34: 14 | L34: dnf | Q34: 64 | AA34: 17 | AB34: 14 | AC34: 5 | AD34: 19 | AG34: 0 | AH34: 0 | AI34: 0 | AK34: 19 | AL34: 12 | AM34: 5 | AN34: 17 | AP34: 14 | AQ34: 18 | AR34: 5 | AS34: 23 | AU34: dnf | AV34: 0 | AW34: 5 | AX34: 5 | BA34: 0 | BB34: 0 | BC34: 0 | BF34: 0 | BG34: 0 | BH34: 0 | BK34: 0 | BL34: 0 | BM34: 0 | BO34: 29 | BP34: 2 | BQ34: 0 | BR34: 0 | BS34: 0 | BT34: 0 | BU34: 0 | BV34: 0 | BW34: 0 | BX34: 1
A35: 30 | B35: Swenson | C35: Lily Aster Larsdatter | D35: Ljan | E35: =IF(F35<=4,Q35,(Q35-SUM(SMALL(R35:Y35,{1;2;3;4})))) -> 63 | F35: 4 | H35: dsq | I35: 13 | K35: 15 | L35: 24 | Q35: 63 | AA35: dsq | AB35: 0 | AC35: 5 | AD35: 5 | AF35: 13 | AG35: 20 | AH35: 5 | AI35: 25 | AL35: 0 | AM35: 0 | AN35: 0 | AP35: 15 | AQ35: 16 | AR35: 5 | AS35: 21 | AU35: 24 | AV35: 7 | AW35: 5 | AX35: 12 | BA35: 0 | BB35: 0 | BC35: 0 | BF35: 0 | BG35: 0 | BH35: 0 | BK35: 0 | BL35: 0 | BM35: 0 | BO35: 30 | BP35: 1 | BQ35: 0 | BR35: =IF($F26=7,1,0) -> 0 | BS35: =IF($F26=6,1,0) -> 0 | BT35: =IF($F26=5,1,0) -> 0 | BU35: =IF($F26=4,1,0) -> 1 | BV35: =IF($F26=3,1,0) -> 0 | BW35: =IF($F26=2,1,0) -> 0 | BX35: =IF($F26=1,1,0) -> 0
A36: 31 | B36: Botten | C36: Maren Stavseng | D36: Rælingen | E36: =IF(F36<=4,Q36,(Q36-SUM(SMALL(R36:Y36,{1;2;3;4})))) -> 60 | F36: 2 | L36: 11 | M36: 10 | Q36: 60 | AB36: 0 | AC36: 0 | AD36: 0 | AG36: 0 | AH36: 0 | AI36: 0 | AL36: 0 | AM36: 0 | AN36: 0 | AQ36: 0 | AR36: 0 | AS36: 0 | AU36: 11 | AV36: 24 | AW36: 5 | AX36: 29 | AZ36: 10 | BA36: 26 | BB36: 5 | BC36: 31 | BF36: 0 | BG36: 0 | BH36: 0 | BK36: 0 | BL36: 0 | BM36: 0 | BO36: 31 | BP36: 0 | BQ36: 0 | BR36: 1 | BS36: 0 | BT36: 0 | BU36: 0 | BV36: 0 | BW36: 0 | BX36: 0
A37: 32 | B37: Bruseth | C37: Sienna Grande | D37: Ullensaker | E37: =IF(F37<=4,Q37,(Q37-SUM(SMALL(R37:Y37,{1;2;3;4})))) -> 57 | F37: 3 | J37: 13 | L37: 29 | M37: 13 | Q37: 57 | AB37: 0 | AC37: 0 | AD37: 0 | AG37: 0 | AH37: 0 | AI37: 0 | AK37: 13 | AL37: 20 | AM37: 5 | AN37: 25 | AQ37: 0 | AR37: 0 | AS37: 0 | AU37: 29 | AV37: 2 | AW37: 5 | AX37: 7 | AZ37: 13 | BA37: 20 | BB37: 5 | BC37: 25 | BF37: 0 | BG37: 0 | BH37: 0 | BK37: 0 | BL37: 0 | BM37: 0 | BO37: 32 | BP37: 0 | BQ37: 0 | BR37: 0 | BS37: 0 | BT37: 0 | BU37: 0 | BV37: 0 | BW37: 0 | BX37: 1
A38: =IF(E38<E37,BO38,A37) -> 33 | B38: Lunde | C38: Fryd | D38: Kjelsås | E38: =IF(F38<=4,Q38,(Q38-SUM(SMALL(R38:Y38,{1;2;3;4})))) -> 50 | F38: =(IF(AC38=5,1,0)+IF(AH38=5,1,0)+IF(AM38=5,1,0)+IF(AR38=5,1,0)+IF(AW38=5,1,0)+IF(BB38=5,1,0)+IF(BG38=5,1,0)+IF(BL38=5,1,0)) -> 3 | H38: =IF(AA38="","",AA38) ->  | I38: =IF(AF38="","",AF38) ->  | J38: =IF(AK38="","",AK38) ->  | K38: =IF(AP38="","",AP38) ->  | L38: =IF(AU38="","",AU38) ->  | M38: =IF(AZ38="","",AZ38) -> 15 | N38: =IF(BE38="","",BE38) -> 19 | O38: =IF(BJ38="","",BJ38) -> 24 | Q38: =AD38+AI38+AN38+AS38+AX38+BC38+BH38+BM38 -> 50 | AB38: =IF(ISNUMBER(AA38),(VLOOKUP(AA38,$BO$6:$BP$50,2)),0) -> 0 | AC38: =IF(AA38<>"",5,0) -> 0 | AD38: =AB38+AC38 -> 0 | AG38: =IF(ISNUMBER(AF38),(VLOOKUP(AF38,$BO$6:$BP$50,2)),0) -> 0 | AH38: =IF(AF38<>"",5,0) -> 0 | AI38: =AG38+AH38 -> 0 | AL38: =IF(ISNUMBER(AK38),(VLOOKUP(AK38,$BO$6:$BP$50,2)),0) -> 0 | AM38: =IF(AK38<>"",5,0) -> 0 | AN38: =AL38+AM38 -> 0 | AQ38: =IF(ISNUMBER(AP38),(VLOOKUP(AP38,$BO$6:$BP$50,2)),0) -> 0 | AR38: =IF(AP38<>"",5,0) -> 0 | AS38: =AQ38+AR38 -> 0 | AV38: =IF(ISNUMBER(AU38),(VLOOKUP(AU38,$BO$6:$BP$50,2)),0) -> 0 | AW38: =IF(AU38<>"",5,0) -> 0 | AX38: =AV38+AW38 -> 0 | AZ38: 15 | BA38: =IF(ISNUMBER(AZ38),(VLOOKUP(AZ38,$BO$6:$BP$50,2)),0) -> 16 | BB38: =IF(AZ38<>"",5,0) -> 5 | BC38: =BA38+BB38 -> 21 | BE38: 19 | BF38: =IF(ISNUMBER(BE38),(VLOOKUP(BE38,$BO$6:$BP$50,2)),0) -> 12 | BG38: =IF(BE38<>"",5,0) -> 5 | BH38: =BF38+BG38 -> 17 | BJ38: 24 | BK38: =IF(ISNUMBER(BJ38),(VLOOKUP(BJ38,$BO$6:$BP$50,2)),0) -> 7 | BL38: =IF(BJ38<>"",5,0) -> 5 | BM38: =BK38+BL38 -> 12 | BO38: 33 | BP38: 0 | BQ38: 0 | BR38: 0 | BS38: 1 | BT38: 0 | BU38: 0 | BV38: 0 | BW38: 0 | BX38: 0
A39: 34 | B39: Oustad | C39: Mina Foronda | D39: NERO | E39: =IF(F39<=4,Q39,(Q39-SUM(SMALL(R39:Y39,{1;2;3;4})))) -> 41 | F39: 2 | J39: 20 | O39: 13 | Q39: 41 | AB39: 0 | AC39: 0 | AD39: 0 | AG39: 0 | AH39: 0 | AI39: 0 | AK39: 20 | AL39: 11 | AM39: 5 | AN39: 16 | AQ39: 0 | AR39: 0 | AS39: 0 | AV39: 0 | AW39: 0 | AX39: 0 | BA39: 0 | BB39: 0 | BC39: 0 | BF39: 0 | BG39: 0 | BH39: 0 | BJ39: 13 | BK39: 20 | BL39: 5 | BM39: 25 | BO39: 34 | BP39: 0 | BQ39: 0 | BR39: 0 | BS39: 0 | BT39: 0 | BU39: 1 | BV39: 0 | BW39: 0 | BX39: 0
A40: 35 | B40: Øverby | C40: Erle Christine Nyborg | D40: Njård | E40: =IF(F40<=4,Q40,(Q40-SUM(SMALL(R40:Y40,{1;2;3;4})))) -> 40 | F40: 3 | J40: 22 | K40: 23 | O40: 23 | Q40: 40 | AB40: 0 | AC40: 0 | AD40: 0 | AG40: 0 | AH40: 0 | AI40: 0 | AK40: 22 | AL40: 9 | AM40: 5 | AN40: 14 | AP40: 23 | AQ40: 8 | AR40: 5 | AS40: 13 | AV40: 0 | AW40: 0 | AX40: 0 | BA40: 0 | BB40: 0 | BC40: 0 | BF40: 0 | BG40: 0 | BH40: 0 | BJ40: 23 | BK40: 8 | BL40: 5 | BM40: 13 | BO40: 35 | BP40: 0 | BQ40: 0 | BR40: 0 | BS40: 0 | BT40: 1 | BU40: 0 | BV40: 0 | BW40: 0 | BX40: 0
A41: 36 | B41: Håkonsen | C41: Kristina | D41: Kjelsås | E41: =IF(F41<=4,Q41,(Q41-SUM(SMALL(R41:Y41,{1;2;3;4})))) -> 38 | F41: 2 | M41: 14 | O41: 21 | Q41: 38 | AB41: 0 | AC41: 0 | AD41: 0 | AG41: 0 | AH41: 0 | AI41: 0 | AL41: 0 | AM41: 0 | AN41: 0 | AQ41: 0 | AR41: 0 | AS41: 0 | AV41: 0 | AW41: 0 | AX41: 0 | AZ41: 14 | BA41: 18 | BB41: 5 | BC41: 23 | BF41: 0 | BG41: 0 | BH41: 0 | BJ41: 21 | BK41: 10 | BL41: 5 | BM41: 15 | BO41: 36 | BP41: 0 | BQ41: 0 | BR41: 0 | BS41: 0 | BT41: 0 | BU41: 1 | BV41: 0 | BW41: 0 | BX41: 0
A42: 37 | B42: Johannessen | C42: Selma Berg | D42: Rælingen | E42: =IF(F42<=4,Q42,(Q42-SUM(SMALL(R42:Y42,{1;2;3;4})))) -> 37 | F42: 1 | L42: 8 | Q42: 37 | AB42: 0 | AC42: 0 | AD42: 0 | AG42: 0 | AH42: 0 | AI42: 0 | AL42: 0 | AM42: 0 | AN42: 0 | AQ42: 0 | AR42: 0 | AS42: 0 | AU42: 8 | AV42: 32 | AW42: 5 | AX42: 37 | BA42: 0 | BB42: 0 | BC42: 0 | BF42: 0 | BG42: 0 | BH42: 0 | BK42: 0 | BL42: 0 | BM42: 0 | BO42: 37 | BP42: 0 | BQ42: 0 | BR42: 0 | BS42: 1 | BT42: 0 | BU42: 0 | BV42: 0 | BW42: 0 | BX42: 0
A43: 38 | B43: Lundberg | C43: Martine | D43: Rælingen | E43: =IF(F43<=4,Q43,(Q43-SUM(SMALL(R43:Y43,{1;2;3;4})))) -> 31 | F43: 1 | L43: 10 | Q43: 31 | AB43: 0 | AC43: 0 | AD43: 0 | AG43: 0 | AH43: 0 | AI43: 0 | AL43: 0 | AM43: 0 | AN43: 0 | AQ43: 0 | AR43: 0 | AS43: 0 | AU43: 10 | AV43: 26 | AW43: 5 | AX43: 31 | BA43: 0 | BB43: 0 | BC43: 0 | BF43: 0 | BG43: 0 | BH43: 0 | BK43: 0 | BL43: 0 | BM43: 0 | BO43: 38 | BP43: 0 | BQ43: 0 | BR43: 0 | BS43: 0 | BT43: 0 | BU43: 1 | BV43: 0 | BW43: 0 | BX43: 0
A44: 39 | B44: Rabben | C44: Ella | D44: Ljan | E44: =IF(F44<=4,Q44,(Q44-SUM(SMALL(R44:Y44,{1;2;3;4})))) -> 21 | F44: 1 | I44: 15 | Q44: 21 | AB44: 0 | AC44: 0 | AD44: 0 | AF44: 15 | AG44: 16 | AH44: 5 | AI44: 21 | AL44: 0 | AM44: 0 | AN44: 0 | AQ44: 0 | AR44: 0 | AS44: 0 | AV44: 0 | AW44: 0 | AX44: 0 | BA44: 0 | BB44: 0 | BC44: 0 | BF44: 0 | BG44: 0 | BH44: 0 | BK44: 0 | BL44: 0 | BM44: 0 | BO44: 39 | BP44: 0 | BQ44: 0 | BR44: 0 | BS44: 0 | BT44: 0 | BU44: 1 | BV44: 0 | BW44: 0 | BX44: 0
A45: 39 | B45: Mortensen | C45: Christina | D45: Lommedalen | E45: =IF(F45<=4,Q45,(Q45-SUM(SMALL(R45:Y45,{1;2;3;4})))) -> 21 | F45: 1 | L45: 15 | Q45: 21 | AB45: 0 | AC45: 0 | AD45: 0 | AG45: 0 | AH45: 0 | AI45: 0 | AL45: 0 | AM45: 0 | AN45: 0 | AQ45: 0 | AR45: 0 | AS45: 0 | AU45: 15 | AV45: 16 | AW45: 5 | AX45: 21 | BA45: 0 | BB45: 0 | BC45: 0 | BF45: 0 | BG45: 0 | BH45: 0 | BK45: 0 | BL45: 0 | BM45: 0 | BO45: 40 | BP45: 0 | BQ45: 0 | BR45: 0 | BS45: 0 | BT45: 0 | BU45: 0 | BV45: 0 | BW45: 1 | BX45: 0
A46: 41 | B46: Kaas | C46: Tora Lilly | D46: Kjelsås | E46: =IF(F46<=4,Q46,(Q46-SUM(SMALL(R46:Y46,{1;2;3;4})))) -> 20 | F46: 2 | N46: 21 | O46: dsq | Q46: 20 | R46: =IF($F37>=5,IF(AB46="","",AB46),"") ->  | S46: =IF($F37>=5,IF(AG46="","",AG46),"") ->  | T46: =IF($F37>=5,IF(AL46="","",AL46),"") ->  | U46: =IF($F37>=5,IF(AQ46="","",AQ46),"") ->  | V46: =IF($F37>=5,IF(AR46="","",AR46),"") ->  | W46: =IF($F37>=5,IF(AV46="","",AV46),"") ->  | X46: =IF($F37>=5,IF(BA46="","",BA46),"") ->  | Y46: =IF($F37>=5,IF(BF46="","",BF46),"") ->  | AB46: 0 | AC46: 0 | AD46: 0 | AG46: 0 | AH46: 0 | AI46: 0 | AL46: 0 | AM46: 0 | AN46: 0 | AQ46: 0 | AR46: 0 | AS46: 0 | AV46: 0 | AW46: 0 | AX46: 0 | BA46: 0 | BB46: 0 | BC46: 0 | BE46: 21 | BF46: 10 | BG46: 5 | BH46: 15 | BJ46: dsq | BK46: 0 | BL46: 5 | BM46: 5 | BO46: 41 | BP46: 0 | BQ46: 0 | BR46: 0 | BS46: 0 | BT46: 0 | BU46: 0 | BV46: 1 | BW46: 0 | BX46: 0
A47: 42 | B47: Navestad | C47: Astrid | D47: Kjelsås | E47: =IF(F47<=4,Q47,(Q47-SUM(SMALL(R47:Y47,{1;2;3;4})))) -> 18 | F47: 1 | N47: 18 | Q47: 18 | R47: =IF($F47>=5,IF(AB47="","",AB47),"") ->  | S47: =IF($F47>=5,IF(AG47="","",AG47),"") ->  | T47: =IF($F47>=5,IF(AL47="","",AL47),"") ->  | U47: =IF($F47>=5,IF(AQ47="","",AQ47),"") ->  | V47: =IF($F47>=5,IF(AV47="","",AV47),"") ->  | W47: =IF($F47>=5,IF(BA47="","",BA47),"") ->  | X47: =IF($F47>=5,IF(BF47="","",BF47),"") ->  | Y47: =IF($F47>=5,IF(BK47="","",BK47),"") ->  | AB47: 0 | AC47: 0 | AD47: 0 | AG47: 0 | AH47: 0 | AI47: 0 | AL47: 0 | AM47: 0 | AN47: 0 | AQ47: 0 | AR47: 0 | AS47: 0 | AV47: 0 | AW47: 0 | AX47: 0 | BA47: 0 | BB47: 0 | BC47: 0 | BE47: 18 | BF47: 13 | BG47: 5 | BH47: 18 | BK47: 0 | BL47: 0 | BM47: 0 | BO47: 42 | BP47: 0 | BQ47: 0 | BR47: 0 | BS47: 0 | BT47: 0 | BU47: 0 | BV47: 1 | BW47: 0 | BX47: 0
A48: 43 | B48: Krogsethagen | C48: Sara | D48: Kjelsås | E48: =IF(F48<=4,Q48,(Q48-SUM(SMALL(R48:Y48,{1;2;3;4})))) -> 14 | F48: 1 | N48: 22 | Q48: 14 | R48: =IF($F39>=5,IF(AB48="","",AB48),"") ->  | S48: =IF($F39>=5,IF(AG48="","",AG48),"") ->  | T48: =IF($F39>=5,IF(AL48="","",AL48),"") ->  | U48: =IF($F39>=5,IF(AQ48="","",AQ48),"") ->  | V48: =IF($F39>=5,IF(AR48="","",AR48),"") ->  | W48: =IF($F39>=5,IF(AV48="","",AV48),"") ->  | X48: =IF($F39>=5,IF(BA48="","",BA48),"") ->  | Y48: =IF($F39>=5,IF(BF48="","",BF48),"") ->  | AB48: 0 | AC48: 0 | AD48: 0 | AG48: 0 | AH48: 0 | AI48: 0 | AL48: 0 | AM48: 0 | AN48: 0 | AQ48: 0 | AR48: 0 | AS48: 0 | AV48: 0 | AW48: 0 | AX48: 0 | BA48: 0 | BB48: 0 | BC48: 0 | BE48: 22 | BF48: 9 | BG48: 5 | BH48: 14 | BK48: 0 | BL48: 0 | BM48: 0 | BO48: 43 | BP48: 0 | BQ48: 0 | BR48: 0 | BS48: 0 | BT48: 0 | BU48: 0 | BV48: 0 | BW48: 1 | BX48: 0
A49: 43 | B49: Kjønigsen | C49: Elvira | D49: Kjelsås | E49: =IF(F49<=4,Q49,(Q49-SUM(SMALL(R49:Y49,{1;2;3;4})))) -> 14 | F49: 2 | N49: dsq | O49: 27 | Q49: 14 | AB49: 0 | AC49: 0 | AD49: 0 | AG49: 0 | AH49: 0 | AI49: 0 | AL49: 0 | AM49: 0 | AN49: 0 | AQ49: 0 | AR49: 0 | AS49: 0 | AV49: 0 | AW49: 0 | AX49: 0 | BA49: 0 | BB49: 0 | BC49: 0 | BE49: dsq | BF49: 0 | BG49: 5 | BH49: 5 | BJ49: 27 | BK49: 4 | BL49: 5 | BM49: 9 | BO49: 44 | BP49: 0 | BQ49: 0 | BR49: 0 | BS49: 0 | BT49: 0 | BU49: 0 | BV49: 1 | BW49: 0 | BX49: 0
A50: 45 | B50: Løe | C50: Marie Furuseth | D50: Ullensaker | E50: =IF(F50<=4,Q50,(Q50-SUM(SMALL(R50:Y50,{1;2;3;4})))) -> 13 | F50: 1 | N50: 23 | Q50: 13 | AB50: 0 | AC50: 0 | AD50: 0 | AG50: 0 | AH50: 0 | AI50: 0 | AL50: 0 | AM50: 0 | AN50: 0 | AQ50: 0 | AR50: 0 | AS50: 0 | AV50: 0 | AW50: 0 | AX50: 0 | BA50: 0 | BB50: 0 | BC50: 0 | BE50: 23 | BF50: 8 | BG50: 5 | BH50: 13 | BK50: 0 | BL50: 0 | BM50: 0 | BO50: 45 | BP50: 0 | BQ50: 0 | BR50: 0 | BS50: 0 | BT50: 0 | BU50: 0 | BV50: 0 | BW50: 1 | BX50: 0
A51: 46 | B51: Rastad | C51: Julie Christine Høisæter | D51: Njård | E51: =IF(F51<=4,Q51,(Q51-SUM(SMALL(R51:Y51,{1;2;3;4})))) -> 11 | F51: 1 | J51: 25 | Q51: 11 | R51: =IF($F51>=5,IF(AB51="","",AB51),"") ->  | S51: =IF($F51>=5,IF(AG51="","",AG51),"") ->  | T51: =IF($F51>=5,IF(AL51="","",AL51),"") ->  | U51: =IF($F51>=5,IF(AQ51="","",AQ51),"") ->  | V51: =IF($F51>=5,IF(AV51="","",AV51),"") ->  | W51: =IF($F51>=5,IF(BA51="","",BA51),"") ->  | X51: =IF($F51>=5,IF(BF51="","",BF51),"") ->  | Y51: =IF($F51>=5,IF(BK51="","",BK51),"") ->  | AB51: 0 | AC51: 0 | AD51: 0 | AG51: 0 | AH51: 0 | AI51: 0 | AK51: 25 | AL51: 6 | AM51: 5 | AN51: 11 | AQ51: 0 | AR51: 0 | AS51: 0 | AV51: 0 | AW51: 0 | AX51: 0 | BA51: 0 | BB51: 0 | BC51: 0 | BF51: 0 | BG51: 0 | BH51: 0 | BK51: 0 | BL51: 0 | BM51: 0 | BO51: 46 | BP51: 0 | BQ51: 0 | BR51: =IF($F42=7,1,0) -> 0 | BS51: 0 | BT51: 0 | BU51: 0 | BV51: 0 | BW51: 0 | BX51: 1
A52: 47 | B52: Brodtkorp | C52: Ulla Amalie | D52: Heming | E52: =IF(F52<=4,Q52,(Q52-SUM(SMALL(R52:Y52,{1;2;3;4})))) -> 9 | F52: 1 | L52: 27 | Q52: 9 | R52: =IF($F52>=5,IF(AB52="","",AB52),"") ->  | S52: =IF($F52>=5,IF(AG52="","",AG52),"") ->  | T52: =IF($F52>=5,IF(AL52="","",AL52),"") ->  | U52: =IF($F52>=5,IF(AQ52="","",AQ52),"") ->  | V52: =IF($F52>=5,IF(AV52="","",AV52),"") ->  | W52: =IF($F52>=5,IF(BA52="","",BA52),"") ->  | X52: =IF($F52>=5,IF(BF52="","",BF52),"") ->  | Y52: =IF($F52>=5,IF(BK52="","",BK52),"") ->  | AB52: 0 | AC52: 0 | AD52: 0 | AG52: 0 | AH52: 0 | AI52: 0 | AL52: 0 | AM52: 0 | AN52: 0 | AQ52: 0 | AR52: 0 | AS52: 0 | AU52: 27 | AV52: 4 | AW52: 5 | AX52: 9 | BA52: 0 | BB52: 0 | BC52: 0 | BF52: 0 | BG52: 0 | BH52: 0 | BK52: 0 | BL52: 0 | BM52: 0 | BO52: 47 | BP52: 0 | BQ52: 0 | BR52: 0 | BS52: 0 | BT52: 0 | BU52: 0 | BV52: 0 | BW52: 0 | BX52: 1
A53: 48 | B53: Beck | C53: Mari | D53: Ullensaker | E53: =IF(F53<=4,Q53,(Q53-SUM(SMALL(R53:Y53,{1;2;3;4})))) -> 5 | F53: 1 | H53: dnf | Q53: 5 | R53: =IF($F53>=5,IF(AB53="","",AB53),"") ->  | S53: =IF($F53>=5,IF(AG53="","",AG53),"") ->  | T53: =IF($F53>=5,IF(AL53="","",AL53),"") ->  | U53: =IF($F53>=5,IF(AQ53="","",AQ53),"") ->  | V53: =IF($F53>=5,IF(AV53="","",AV53),"") ->  | W53: =IF($F53>=5,IF(BA53="","",BA53),"") ->  | X53: =IF($F53>=5,IF(BF53="","",BF53),"") ->  | Y53: =IF($F53>=5,IF(BK53="","",BK53),"") ->  | AA53: dnf | AB53: 0 | AC53: 5 | AD53: 5 | AG53: 0 | AH53: 0 | AI53: 0 | AL53: 0 | AM53: 0 | AN53: 0 | AQ53: 0 | AR53: 0 | AS53: 0 | AV53: 0 | AW53: 0 | AX53: 0 | BA53: 0 | BB53: 0 | BC53: 0 | BF53: 0 | BG53: 0 | BH53: 0 | BK53: 0 | BL53: 0 | BM53: 0 | BO53: 48 | BP53: 0 | BQ53: 0 | BR53: 0 | BS53: 0 | BT53: 0 | BU53: 0 | BV53: 0 | BW53: 0 | BX53: 1
A54: 48 | B54: Roos | C54: Elisabeth | D54: Try | E54: =IF(F54<=4,Q54,(Q54-SUM(SMALL(R54:Y54,{1;2;3;4})))) -> 5 | F54: 1 | L54: 31 | Q54: 5 | R54: =IF($F45>=5,IF(AB54="","",AB54),"") ->  | S54: =IF($F45>=5,IF(AG54="","",AG54),"") ->  | T54: =IF($F45>=5,IF(AL54="","",AL54),"") ->  | U54: =IF($F45>=5,IF(AQ54="","",AQ54),"") ->  | V54: =IF($F45>=5,IF(AR54="","",AR54),"") ->  | W54: =IF($F45>=5,IF(AV54="","",AV54),"") ->  | X54: =IF($F45>=5,IF(BA54="","",BA54),"") ->  | Y54: =IF($F45>=5,IF(BF54="","",BF54),"") ->  | AB54: 0 | AC54: 0 | AD54: 0 | AG54: 0 | AH54: 0 | AI54: 0 | AL54: 0 | AM54: 0 | AN54: 0 | AQ54: 0 | AR54: 0 | AS54: 0 | AU54: 31 | AV54: 0 | AW54: 5 | AX54: 5 | BA54: 0 | BB54: 0 | BC54: 0 | BF54: 0 | BG54: 0 | BH54: 0 | BK54: 0 | BL54: 0 | BM54: 0 | BO54: 49 | BP54: 0 | BQ54: 0 | BR54: 0 | BS54: 0 | BT54: 0 | BU54: 0 | BV54: 0 | BW54: 0 | BX54: 1
H55: =IF(AA55="","",AA55) ->  | I55: =IF(AF55="","",AF55) ->  | J55: =IF(AK55="","",AK55) ->  | K55: =IF(AP55="","",AP55) ->  | L55: =IF(AU55="","",AU55) ->  | M55: =IF(AZ55="","",AZ55) ->  | N55: =IF(BE55="","",BE55) ->  | O55: =IF(BJ55="","",BJ55) -> 

Sheet G12 2018
A1: Resultatliste Oslo Cup 2018 - Gutter 12 år
A2: ='Forside 2018'!A2 -> Etter 8 av 8 renn
H3: IRS Rennet | I3: Ljan Rennet | J3: Njård Rennet | K3: Ready Rennet | L3: Telenor Arena Cup | M3: Euro-tecfarten | N3: Oslo Alpinfestival SL | O3: Oslo Alpinfestival SSL | R3: IRS Rennet | S3: Ljan Rennet | T3: Njård Rennet | U3: Ready Rennet | V3: Telenor Arena Cup | W3: Euro-tecfarten | X3: Oslo Alpinfestival SL | Y3: Oslo Alpinfestival SSL | AA3: --------IRS Rennet---------- | AF3: ----------Ljan Rennet--------- | AK3: --------Njård Rennet---------- | AP3: --------Ready Rennet--------- | AU3: -----Telenor Arena Cup---- | AZ3: ------Euro-tecfarten-------- | BE3: ---Oslo Alpinfestival SL--- | BJ3: ---Oslo Alpinfestival SSL---
F4: Antall | H4: 2018-02-03 | I4: 2018-02-04 | J4: 2018-02-10 | K4: 2018-02-11 | L4: 2018-02-14 | M4: 2018-02-28 | N4: 2018-03-03 | O4: 2018-03-04 | Q4: Poeng | R4: 2018-02-03 | S4: 2018-02-04 | T4: 2018-02-10 | U4: 2018-02-11 | V4: 2018-02-14 | W4: 2018-02-28 | X4: 2018-03-03 | Y4: 2018-03-04 | AB4: --------Poeng-------- | AG4: --------Poeng-------- | AL4: -------Poeng--------- | AQ4: -------Poeng--------- | AV4: -------Poeng--------- | BA4: -------Poeng--------- | BF4: -------Poeng--------- | BK4: -------Poeng--------- | BQ4: Løpere med | BR4: Løpere med | BS4: Løpere med | BT4: Løpere med | BU4: Løpere med | BV4: Løpere med | BW4: Løpere med | BX4: Løpere med
A5: Plass | B5: Etternavn | C5: Fornavn | D5: Klubb | E5: Poeng | F5: renn | H5: ------------------------------Plassering i rennene--------------------------------- | Q5: brutto | R5: ----------------Resultatpoeng hvis mer enn 4 renn---------------- | AA5: Plass | AB5: Res. | AC5: Del. | AD5: Tot. | AF5: Plass | AG5: Res. | AH5: Del. | AI5: Tot. | AK5: Plass | AL5: Res. | AM5: Del. | AN5: Tot. | AP5: Plass | AQ5: Res. | AR5: Del. | AS5: Tot. | AU5: Plass | AV5: Res. | AW5: Del. | AX5: Tot. | AZ5: Plass | BA5: Res. | BB5: Del. | BC5: Tot. | BE5: Plass | BF5: Res. | BG5: Del. | BH5: Tot. | BJ5: Plass | BK5: Res. | BL5: Del. | BM5: Tot. | BO5: Plass | BP5: Poeng | BQ5: 8 renn | BR5: 7 renn | BS5: 6 renn | BT5: 5 renn | BU5: 4 renn | BV5: 3 renn | BW5: 2 renn | BX5: kun 1 renn
A6: =IF(E6<E5,BO6,A5) -> 1 | B6: Polmar | C6: Ola Skaar | D6: Heming | E6: =IF(F6<=4,Q6,(Q6-SUM(SMALL(R6:Y6,{1;2;3;4})))) -> 440 | F6: =(IF(AC6=5,1,0)+IF(AH6=5,1,0)+IF(AM6=5,1,0)+IF(AR6=5,1,0)+IF(AW6=5,1,0)+IF(BB6=5,1,0)+IF(BG6=5,1,0)+IF(BL6=5,1,0)) -> 8 | H6: =IF(AA6="","",AA6) -> 1 | I6: =IF(AF6="","",AF6) -> 9 | J6: =IF(AK6="","",AK6) -> 3 | K6: =IF(AP6="","",AP6) -> 1 | L6: =IF(AU6="","",AU6) -> 2 | M6: =IF(AZ6="","",AZ6) -> 4 | N6: =IF(BE6="","",BE6) -> 1 | O6: =IF(BJ6="","",BJ6) -> 1 | Q6: =AD6+AI6+AN6+AS6+AX6+BC6+BH6+BM6 -> 659 | R6: =IF($F6>=5,IF(AB6="","",AB6),"") -> 100 | S6: =IF($F6>=5,IF(AG6="","",AG6),"") -> 29 | T6: =IF($F6>=5,IF(AL6="","",AL6),"") -> 60 | U6: =IF($F6>=5,IF(AQ6="","",AQ6),"") -> 100 | V6: =IF($F6>=5,IF(AV6="","",AV6),"") -> 80 | W6: =IF($F6>=5,IF(BA6="","",BA6),"") -> 50 | X6: =IF($F6>=5,IF(BF6="","",BF6),"") -> 100 | Y6: =IF($F6>=5,IF(BK6="","",BK6),"") -> 100 | AA6: 1 | AB6: =IF(ISNUMBER(AA6),(VLOOKUP(AA6,$BO$6:$BP$50,2)),0) -> 100 | AC6: =IF(AA6<>"",5,0) -> 5 | AD6: =AB6+AC6 -> 105 | AF6: 9 | AG6: =IF(ISNUMBER(AF6),(VLOOKUP(AF6,$BO$6:$BP$50,2)),0) -> 29 | AH6: =IF(AF6<>"",5,0) -> 5 | AI6: =AG6+AH6 -> 34 | AK6: 3 | AL6: =IF(ISNUMBER(AK6),(VLOOKUP(AK6,$BO$6:$BP$50,2)),0) -> 60 | AM6: =IF(AK6<>"",5,0) -> 5 | AN6: =AL6+AM6 -> 65 | AP6: 1 | AQ6: =IF(ISNUMBER(AP6),(VLOOKUP(AP6,$BO$6:$BP$50,2)),0) -> 100 | AR6: =IF(AP6<>"",5,0) -> 5 | AS6: =AQ6+AR6 -> 105 | AU6: 2 | AV6: =IF(ISNUMBER(AU6),(VLOOKUP(AU6,$BO$6:$BP$50,2)),0) -> 80 | AW6: =IF(AU6<>"",5,0) -> 5 | AX6: =AV6+AW6 -> 85 | AZ6: 4 | BA6: =IF(ISNUMBER(AZ6),(VLOOKUP(AZ6,$BO$6:$BP$50,2)),0) -> 50 | BB6: =IF(AZ6<>"",5,0) -> 5 | BC6: =BA6+BB6 -> 55 | BE6: 1 | BF6: =IF(ISNUMBER(BE6),(VLOOKUP(BE6,$BO$6:$BP$50,2)),0) -> 100 | BG6: =IF(BE6<>"",5,0) -> 5 | BH6: =BF6+BG6 -> 105 | BJ6: 1 | BK6: =IF(ISNUMBER(BJ6),(VLOOKUP(BJ6,$BO$6:$BP$50,2)),0) -> 100 | BL6: =IF(BJ6<>"",5,0) -> 5 | BM6: =BK6+BL6 -> 105 | BO6: 1 | BP6: 100 | BQ6: =IF($F6=8,1,0) -> 1 | BR6: =IF($F6=7,1,0) -> 0 | BS6: =IF($F6=6,1,0) -> 0 | BT6: =IF($F6=5,1,0) -> 0 | BU6: =IF($F6=4,1,0) -> 0 | BV6: =IF($F6=3,1,0) -> 0 | BW6: =IF($F6=2,1,0) -> 0 | BX6: =IF($F6=1,1,0) -> 0
A7: 2 | B7: Rølles | C7: Axel Friis | D7: Ready | E7: =IF(F7<=4,Q7,(Q7-SUM(SMALL(R7:Y7,{1;2;3;4})))) -> 310 | F7: 8 | H7: 13 | I7: 4 | J7: 4 | K7: 3 | L7: 5 | M7: 2 | N7: 8 | O7: 2 | Q7: 457 | R7: 20 | S7: 50 | T7: 50 | U7: 60 | V7: 45 | W7: 80 | X7: 32 | Y7: 80 | AA7: 13 | AB7: 20 | AC7: 5 | AD7: 25 | AF7: 4 | AG7: 50 | AH7: 5 | AI7: 55 | AK7: 4 | AL7: 50 | AM7: 5 | AN7: 55 | AP7: 3 | AQ7: 60 | AR7: 5 | AS7: 65 | AU7: 5 | AV7: 45 | AW7: 5 | AX7: 50 | AZ7: 2 | BA7: 80 | BB7: 5 | BC7: 85 | BE7: 8 | BF7: 32 | BG7: 5 | BH7: 37 | BJ7: 2 | BK7: 80 | BL7: 5 | BM7: 85 | BO7: 2 | BP7: 80 | BQ7: =IF($F7=8,1,0) -> 1 | BR7: 0 | BS7: 0 | BT7: 0 | BU7: 0 | BV7: 0 | BW7: 0 | BX7: 0
A8: 3 | B8: Sundborn | C8: William Alexander | D8: Heming | E8: =IF(F8<=4,Q8,(Q8-SUM(SMALL(R8:Y8,{1;2;3;4})))) -> 300 | F8: 8 | H8: 2 | I8: dsq | J8: 5 | K8: 2 | L8: 4 | M8: 8 | N8: 4 | O8: 6 | Q8: 417 | R8: 80 | S8: 0 | T8: 45 | U8: 80 | V8: 50 | W8: 32 | X8: 50 | Y8: 40 | AA8: 2 | AB8: 80 | AC8: 5 | AD8: 85 | AF8: dsq | AG8: 0 | AH8: 5 | AI8: 5 | AK8: 5 | AL8: 45 | AM8: 5 | AN8: 50 | AP8: 2 | AQ8: 80 | AR8: 5 | AS8: 85 | AU8: 4 | AV8: 50 | AW8: 5 | AX8: 55 | AZ8: 8 | BA8: 32 | BB8: 5 | BC8: 37 | BE8: 4 | BF8: 50 | BG8: 5 | BH8: 55 | BJ8: 6 | BK8: 40 | BL8: 5 | BM8: 45 | BO8: 3 | BP8: 60 | BQ8: 1 | BR8: 0 | BS8: 0 | BT8: 0 | BU8: 0 | BV8: 0 | BW8: 0 | BX8: 0
A9: 4 | B9: Andersen | C9: Fredrik | D9: NERO | E9: =IF(F9<=4,Q9,(Q9-SUM(SMALL(R9:Y9,{1;2;3;4})))) -> 285 | F9: 5 | J9: 2 | L9: 3 | M9: 3 | N9: 3 | O9: 8 | Q9: 317 | R9: 0 | S9: 0 | T9: 80 | U9: 0 | V9: 60 | W9: 60 | X9: 60 | Y9: 32 | AB9: 0 | AC9: 0 | AD9: 0 | AG9: 0 | AH9: 0 | AI9: 0 | AK9: 2 | AL9: 80 | AM9: 5 | AN9: 85 | AQ9: 0 | AR9: 0 | AS9: 0 | AU9: 3 | AV9: 60 | AW9: 5 | AX9: 65 | AZ9: 3 | BA9: 60 | BB9: 5 | BC9: 65 | BE9: 3 | BF9: 60 | BG9: 5 | BH9: 65 | BJ9: 8 | BK9: 32 | BL9: 5 | BM9: 37 | BO9: 4 | BP9: 50 | BQ9: 0 | BR9: 0 | BS9: 0 | BT9: 1 | BU9: 0 | BV9: 0 | BW9: 0 | BX9: 0
A10: 5 | B10: Hiorth | C10: Felix | D10: Heming | E10: =IF(F10<=4,Q10,(Q10-SUM(SMALL(R10:Y10,{1;2;3;4})))) -> 275 | F10: 8 | H10: dsq | I10: 2 | J10: 6 | K10: 4 | L10: dsq | M10: 6 | N10: 5 | O10: 3 | Q10: 355 | R10: 0 | S10: 80 | T10: 40 | U10: 50 | V10: 0 | W10: 40 | X10: 45 | Y10: 60 | AA10: dsq | AB10: 0 | AC10: 5 | AD10: 5 | AF10: 2 | AG10: 80 | AH10: 5 | AI10: 85 | AK10: 6 | AL10: 40 | AM10: 5 | AN10: 45 | AP10: 4 | AQ10: 50 | AR10: 5 | AS10: 55 | AU10: dsq | AV10: 0 | AW10: 5 | AX10: 5 | AZ10: 6 | BA10: 40 | BB10: 5 | BC10: 45 | BE10: 5 | BF10: 45 | BG10: 5 | BH10: 50 | BJ10: 3 | BK10: 60 | BL10: 5 | BM10: 65 | BO10: 5 | BP10: 45 | BQ10: 1 | BR10: 0 | BS10: 0 | BT10: 0 | BU10: 0 | BV10: 0 | BW10: 0 | BX10: 0
A11: 6 | B11: Wroll-Evensen | C11: Mikkel | D11: Heming | E11: =IF(F11<=4,Q11,(Q11-SUM(SMALL(R11:Y11,{1;2;3;4})))) -> 270 | F11: 8 | H11: 4 | I11: 1 | J11: 7 | K11: 6 | L11: 9 | M11: 20 | N11: 6 | O11: 10 | Q11: 372 | R11: 50 | S11: 100 | T11: 36 | U11: 40 | V11: 29 | W11: 11 | X11: 40 | Y11: 26 | AA11: 4 | AB11: 50 | AC11: 5 | AD11: 55 | AF11: 1 | AG11: 100 | AH11: 5 | AI11: 105 | AK11: 7 | AL11: 36 | AM11: 5 | AN11: 41 | AP11: 6 | AQ11: 40 | AR11: 5 | AS11: 45 | AU11: 9 | AV11: 29 | AW11: 5 | AX11: 34 | AZ11: 20 | BA11: 11 | BB11: 5 | BC11: 16 | BE11: 6 | BF11: 40 | BG11: 5 | BH11: 45 | BJ11: 10 | BK11: 26 | BL11: 5 | BM11: 31 | BO11: 6 | BP11: 40 | BQ11: 1 | BR11: 0 | BS11: 0 | BT11: 0 | BU11: 0 | BV11: 0 | BW11: 0 | BX11: 0
A12: 7 | B12: Brevik | C12: Magnus | D12: Ljan | E12: =IF(F12<=4,Q12,(Q12-SUM(SMALL(R12:Y12,{1;2;3;4})))) -> 269 | F12: 8 | H12: 5 | I12: 3 | J12: 12 | K12: 11 | L12: 14 | M12: 1 | N12: dsq | O12: 27 | Q12: 313 | R12: 45 | S12: 60 | T12: 22 | U12: 24 | V12: 18 | W12: 100 | X12: 0 | Y12: 4 | AA12: 5 | AB12: 45 | AC12: 5 | AD12: 50 | AF12: 3 | AG12: 60 | AH12: 5 | AI12: 65 | AK12: 12 | AL12: 22 | AM12: 5 | AN12: 27 | AP12: 11 | AQ12: 24 | AR12: 5 | AS12: 29 | AU12: 14 | AV12: 18 | AW12: 5 | AX12: 23 | AZ12: 1 | BA12: 100 | BB12: 5 | BC12: 105 | BE12: dsq | BF12: 0 | BG12: 5 | BH12: 5 | BJ12: 27 | BK12: 4 | BL12: 5 | BM12: 9 | BO12: 7 | BP12: 36 | BQ12: 1 | BR12: 0 | BS12: 0 | BT12: 0 | BU12: 0 | BV12: 0 | BW12: 0 | BX12: 0
A13: 8 | B13: Spone | C13: Fabian | D13: Heming | E13: =IF(F13<=4,Q13,(Q13-SUM(SMALL(R13:Y13,{1;2;3;4})))) -> 260 | F13: 8 | H13: 6 | I13: 5 | J13: 10 | K13: 7 | L13: 16 | M13: 5 | N13: 2 | O13: 4 | Q13: 377 | R13: 40 | S13: 45 | T13: 26 | U13: 36 | V13: 15 | W13: 45 | X13: 80 | Y13: 50 | AA13: 6 | AB13: 40 | AC13: 5 | AD13: 45 | AF13: 5 | AG13: 45 | AH13: 5 | AI13: 50 | AK13: 10 | AL13: 26 | AM13: 5 | AN13: 31 | AP13: 7 | AQ13: 36 | AR13: 5 | AS13: 41 | AU13: 16 | AV13: 15 | AW13: 5 | AX13: 20 | AZ13: 5 | BA13: 45 | BB13: 5 | BC13: 50 | BE13: 2 | BF13: 80 | BG13: 5 | BH13: 85 | BJ13: 4 | BK13: 50 | BL13: 5 | BM13: 55 | BO13: 8 | BP13: 32 | BQ13: 1 | BR13: 0 | BS13: 0 | BT13: 0 | BU13: 0 | BV13: 0 | BW13: 0 | BX13: 0
A14: 9 | B14: Torpe | C14: Aleksander Berg | D14: Stabæk | E14: =IF(F14<=4,Q14,(Q14-SUM(SMALL(R14:Y14,{1;2;3;4})))) -> 210 | F14: 2 | J14: 1 | L14: 1 | Q14: 210 | AB14: 0 | AC14: 0 | AD14: 0 | AG14: 0 | AH14: 0 | AI14: 0 | AK14: 1 | AL14: 100 | AM14: 5 | AN14: 105 | AQ14: 0 | AR14: 0 | AS14: 0 | AU14: 1 | AV14: 100 | AW14: 5 | AX14: 105 | BA14: 0 | BB14: 0 | BC14: 0 | BF14: 0 | BG14: 0 | BH14: 0 | BK14: 0 | BL14: 0 | BM14: 0 | BO14: 9 | BP14: 29 | BQ14: 0 | BR14: 0 | BS14: 0 | BT14: 0 | BU14: 0 | BV14: 0 | BW14: 1 | BX14: 0
A15: 10 | B15: Halvorsen | C15: Mathias Nyhus | D15: Heming | E15: =IF(F15<=4,Q15,(Q15-SUM(SMALL(R15:Y15,{1;2;3;4})))) -> 182 | F15: 5 | H15: 14 | I15: 6 | J15: 8 | K15: 5 | L15: 6 | Q15: 200 | R15: 18 | S15: 40 | T15: 32 | U15: 45 | V15: 40 | W15: 0 | X15: 0 | Y15: 0 | AA15: 14 | AB15: 18 | AC15: 5 | AD15: 23 | AF15: 6 | AG15: 40 | AH15: 5 | AI15: 45 | AK15: 8 | AL15: 32 | AM15: 5 | AN15: 37 | AP15: 5 | AQ15: 45 | AR15: 5 | AS15: 50 | AU15: 6 | AV15: 40 | AW15: 5 | AX15: 45 | BA15: 0 | BB15: 0 | BC15: 0 | BF15: 0 | BG15: 0 | BH15: 0 | BK15: 0 | BL15: 0 | BM15: 0 | BO15: 10 | BP15: 26 | BQ15: 0 | BR15: 0 | BS15: 0 | BT15: 1 | BU15: 0 | BV15: 0 | BW15: 0 | BX15: 0
A16: =IF(E16<E15,BO17,A15) -> 12 | B16: Engell | C16: Martin | D16: Kjelsås | E16: =IF(F16<=4,Q16,(Q16-SUM(SMALL(R16:Y16,{1;2;3;4})))) -> 158 | F16: 7 | I16: dsq | J16: 39 | K16: 18 | L16: 12 | M16: 9 | N16: 7 | O16: 7 | Q16: 171 | R16: 0 | S16: 0 | T16: 0 | U16: 13 | V16: 22 | W16: 29 | X16: 36 | Y16: 36 | AB16: 0 | AC16: 0 | AD16: 0 | AF16: dsq | AG16: 0 | AH16: 5 | AI16: 5 | AK16: 39 | AL16: 0 | AM16: 5 | AN16: 5 | AP16: 18 | AQ16: 13 | AR16: 5 | AS16: 18 | AU16: 12 | AV16: 22 | AW16: 5 | AX16: 27 | AZ16: 9 | BA16: 29 | BB16: 5 | BC16: 34 | BE16: 7 | BF16: 36 | BG16: 5 | BH16: 41 | BJ16: 7 | BK16: 36 | BL16: 5 | BM16: 41 | BO16: 11 | BP16: 24 | BQ16: 0 | BR16: 1 | BS16: 0 | BT16: 0 | BU16: 0 | BV16: 0 | BW16: 0 | BX16: 0
A17: =IF(E17<E16,BO18,A16) -> 13 | B17: Dannevig | C17: Torbjørn | D17: Ready | E17: =IF(F17<=4,Q17,(Q17-SUM(SMALL(R17:Y17,{1;2;3;4})))) -> 144 | F17: 6 | H17: 9 | I17: dsq | K17: 13 | M17: 13 | N17: 17 | O17: 5 | Q17: 158 | R17: 29 | S17: 0 | T17: 0 | U17: 20 | V17: 0 | W17: 20 | X17: 14 | Y17: 45 | AA17: 9 | AB17: 29 | AC17: 5 | AD17: 34 | AF17: dsq | AG17: 0 | AH17: 5 | AI17: 5 | AL17: 0 | AM17: 0 | AN17: 0 | AP17: 13 | AQ17: 20 | AR17: 5 | AS17: 25 | AV17: 0 | AW17: 0 | AX17: 0 | AZ17: 13 | BA17: 20 | BB17: 5 | BC17: 25 | BE17: 17 | BF17: 14 | BG17: 5 | BH17: 19 | BJ17: 5 | BK17: 45 | BL17: 5 | BM17: 50 | BO17: 12 | BP17: 22 | BQ17: 0 | BR17: 0 | BS17: 1 | BT17: 0 | BU17: 0 | BV17: 0 | BW17: 0 | BX17: 0
A18: =IF(E18<E17,BO19,A17) -> 14 | B18: Rygh | C18: Ole Marius | D18: Ready | E18: =IF(F18<=4,Q18,(Q18-SUM(SMALL(R18:Y18,{1;2;3;4})))) -> 134 | F18: 5 | H18: 8 | L18: 11 | M18: 11 | N18: dsq | O18: 9 | Q18: 134 | R18: 32 | S18: 0 | T18: 0 | U18: 0 | V18: 24 | W18: 24 | X18: 0 | Y18: 29 | AA18: 8 | AB18: 32 | AC18: 5 | AD18: 37 | AG18: 0 | AH18: 0 | AI18: 0 | AL18: 0 | AM18: 0 | AN18: 0 | AQ18: 0 | AR18: 0 | AS18: 0 | AU18: 11 | AV18: 24 | AW18: 5 | AX18: 29 | AZ18: 11 | BA18: 24 | BB18: 5 | BC18: 29 | BE18: dsq | BF18: 0 | BG18: 5 | BH18: 5 | BJ18: 9 | BK18: 29 | BL18: 5 | BM18: 34 | BO18: 13 | BP18: 20 | BQ18: 0 | BR18: =IF($F17=7,1,0) -> 0 | BS18: =IF($F17=6,1,0) -> 1 | BT18: =IF($F17=5,1,0) -> 0 | BU18: =IF($F17=4,1,0) -> 0 | BV18: =IF($F17=3,1,0) -> 0 | BW18: =IF($F17=2,1,0) -> 0 | BX18: =IF($F17=1,1,0) -> 0
A19: =IF(E19<E18,BO19,A18) -> 14 | B19: Lødemel | C19: Espen Alexander | D19: Heming | E19: =IF(F19<=4,Q19,(Q19-SUM(SMALL(R19:Y19,{1;2;3;4})))) -> 131 | F19: 5 | J19: 9 | K19: 9 | L19: 10 | N19: 12 | O19: 13 | Q19: 151 | R19: 0 | S19: 0 | T19: 29 | U19: 29 | V19: 26 | W19: 0 | X19: 22 | Y19: 20 | AB19: 0 | AC19: 0 | AD19: 0 | AG19: 0 | AH19: 0 | AI19: 0 | AK19: 9 | AL19: 29 | AM19: 5 | AN19: 34 | AP19: 9 | AQ19: 29 | AR19: 5 | AS19: 34 | AU19: 10 | AV19: 26 | AW19: 5 | AX19: 31 | BA19: 0 | BB19: 0 | BC19: 0 | BE19: 12 | BF19: 22 | BG19: 5 | BH19: 27 | BJ19: 13 | BK19: 20 | BL19: 5 | BM19: 25 | BO19: 14 | BP19: 18 | BQ19: 0 | BR19: =IF($F18=7,1,0) -> 0 | BS19: =IF($F18=6,1,0) -> 0 | BT19: =IF($F18=5,1,0) -> 1 | BU19: =IF($F18=4,1,0) -> 0 | BV19: =IF($F18=3,1,0) -> 0 | BW19: =IF($F18=2,1,0) -> 0 | BX19: =IF($F18=1,1,0) -> 0
A20: =IF(E20<E19,BO20,A19) -> 15 | B20: Strauss | C20: Mikkel Bro | D20: Ready | E20: =IF(F20<=4,Q20,(Q20-SUM(SMALL(R20:Y20,{1;2;3;4})))) -> 130 | F20: 7 | H20: 10 | J20: 16 | K20: 14 | L20: 18 | M20: 7 | N20: dsq | O20: 25 | Q20: 149 | R20: 26 | S20: 0 | T20: 15 | U20: 18 | V20: 13 | W20: 36 | X20: 0 | Y20: 6 | AA20: 10 | AB20: 26 | AC20: 5 | AD20: 31 | AG20: 0 | AH20: 0 | AI20: 0 | AK20: 16 | AL20: 15 | AM20: 5 | AN20: 20 | AP20: 14 | AQ20: 18 | AR20: 5 | AS20: 23 | AU20: 18 | AV20: 13 | AW20: 5 | AX20: 18 | AZ20: 7 | BA20: 36 | BB20: 5 | BC20: 41 | BE20: dsq | BF20: 0 | BG20: 5 | BH20: 5 | BJ20: 25 | BK20: 6 | BL20: 5 | BM20: 11 | BO20: 15 | BP20: 16 | BQ20: 0 | BR20: =IF($F19=7,1,0) -> 0 | BS20: =IF($F19=6,1,0) -> 0 | BT20: =IF($F19=5,1,0) -> 1 | BU20: =IF($F19=4,1,0) -> 0 | BV20: =IF($F19=3,1,0) -> 0 | BW20: =IF($F19=2,1,0) -> 0 | BX20: =IF($F19=1,1,0) -> 0
A21: =IF(E21<E20,BO22,A20) -> 17 | B21: Kihle | C21: Jacob | D21: Kjelsås | E21: =IF(F21<=4,Q21,(Q21-SUM(SMALL(R21:Y21,{1;2;3;4})))) -> 123 | F21: 7 | I21: 7 | J21: 18 | K21: 23 | L21: 38 | M21: 22 | N21: 10 | O21: 18 | Q21: 140 | R21: 0 | S21: 36 | T21: 13 | U21: 8 | V21: 0 | W21: 9 | X21: 26 | Y21: 13 | AB21: 0 | AC21: 0 | AD21: 0 | AF21: 7 | AG21: 36 | AH21: 5 | AI21: 41 | AK21: 18 | AL21: 13 | AM21: 5 | AN21: 18 | AP21: 23 | AQ21: 8 | AR21: 5 | AS21: 13 | AU21: 38 | AV21: 0 | AW21: 5 | AX21: 5 | AZ21: 22 | BA21: 9 | BB21: 5 | BC21: 14 | BE21: 10 | BF21: 26 | BG21: 5 | BH21: 31 | BJ21: 18 | BK21: 13 | BL21: 5 | BM21: 18 | BO21: 16 | BP21: 15 | BQ21: 0 | BR21: =IF($F19=7,1,0) -> 0 | BS21: =IF($F19=6,1,0) -> 0 | BT21: =IF($F19=5,1,0) -> 1 | BU21: =IF($F19=4,1,0) -> 0 | BV21: =IF($F19=3,1,0) -> 0 | BW21: =IF($F19=2,1,0) -> 0 | BX21: =IF($F19=1,1,0) -> 0
A22: =IF(E22<E21,BO23,A21) -> 18 | B22: Oksvik | C22: Sander August Lein | D22: IRS | E22: =IF(F22<=4,Q22,(Q22-SUM(SMALL(R22:Y22,{1;2;3;4})))) -> 120 | F22: 4 | H22: 3 | I22: dsq | L22: 20 | N22: 9 | Q22: 120 | AA22: 3 | AB22: 60 | AC22: 5 | AD22: 65 | AF22: dsq | AG22: 0 | AH22: 5 | AI22: 5 | AL22: 0 | AM22: 0 | AN22: 0 | AQ22: 0 | AR22: 0 | AS22: 0 | AU22: 20 | AV22: 11 | AW22: 5 | AX22: 16 | BA22: 0 | BB22: 0 | BC22: 0 | BE22: 9 | BF22: 29 | BG22: 5 | BH22: 34 | BK22: 0 | BL22: 0 | BM22: 0 | BO22: 17 | BP22: 14 | BQ22: 0 | BR22: 1 | BS22: 0 | BT22: 0 | BU22: 0 | BV22: 0 | BW22: 0 | BX22: 0
A23: =IF(E23<E22,BO24,A22) -> 19 | B23: Lødemel | C23: Nikolai | D23: Heming | E23: =IF(F23<=4,Q23,(Q23-SUM(SMALL(R23:Y23,{1;2;3;4})))) -> 117 | F23: 5 | J23: 13 | K23: 10 | L23: 13 | N23: 11 | O23: 12 | Q23: 137 | R23: 0 | S23: 0 | T23: 20 | U23: 26 | V23: 20 | W23: 0 | X23: 24 | Y23: 22 | AB23: 0 | AC23: 0 | AD23: 0 | AG23: 0 | AH23: 0 | AI23: 0 | AK23: 13 | AL23: 20 | AM23: 5 | AN23: 25 | AP23: 10 | AQ23: 26 | AR23: 5 | AS23: 31 | AU23: 13 | AV23: 20 | AW23: 5 | AX23: 25 | BA23: 0 | BB23: 0 | BC23: 0 | BE23: 11 | BF23: 24 | BG23: 5 | BH23: 29 | BJ23: 12 | BK23: 22 | BL23: 5 | BM23: 27 | BO23: 18 | BP23: 13 | BQ23: 0 | BR23: 1 | BS23: 0 | BT23: 0 | BU23: 0 | BV23: 0 | BW23: 0 | BX23: 0
A24: =IF(E24<E23,BO25,A23) -> 20 | B24: Reiersen | C24: Fredrik Sannes | D24: Ready | E24: =IF(F24<=4,Q24,(Q24-SUM(SMALL(R24:Y24,{1;2;3;4})))) -> 115 | F24: 8 | H24: 11 | I24: 14 | J24: 37 | K24: 20 | L24: 21 | M24: 16 | N24: 14 | O24: 17 | Q24: 150 | R24: 24 | S24: 18 | T24: 0 | U24: 11 | V24: 10 | W24: 15 | X24: 18 | Y24: 14 | AA24: 11 | AB24: 24 | AC24: 5 | AD24: 29 | AF24: 14 | AG24: 18 | AH24: 5 | AI24: 23 | AK24: 37 | AL24: 0 | AM24: 5 | AN24: 5 | AP24: 20 | AQ24: 11 | AR24: 5 | AS24: 16 | AU24: 21 | AV24: 10 | AW24: 5 | AX24: 15 | AZ24: 16 | BA24: 15 | BB24: 5 | BC24: 20 | BE24: 14 | BF24: 18 | BG24: 5 | BH24: 23 | BJ24: 17 | BK24: 14 | BL24: 5 | BM24: 19 | BO24: 19 | BP24: 12 | BQ24: 1 | BR24: 0 | BS24: 0 | BT24: 0 | BU24: 1 | BV24: 0 | BW24: 0 | BX24: 0
A25: =IF(E25<E24,BO25,A24) -> 20 | B25: Cock | C25: William | D25: Heming | E25: =IF(F25<=4,Q25,(Q25-SUM(SMALL(R25:Y25,{1;2;3;4})))) -> 112 | F25: 6 | H25: 12 | J25: 14 | K25: 12 | L25: 19 | N25: 13 | O25: 22 | Q25: 133 | R25: 22 | S25: 0 | T25: 18 | U25: 22 | V25: 12 | W25: 0 | X25: 20 | Y25: 9 | AA25: 12 | AB25: 22 | AC25: 5 | AD25: 27 | AG25: 0 | AH25: 0 | AI25: 0 | AK25: 14 | AL25: 18 | AM25: 5 | AN25: 23 | AP25: 12 | AQ25: 22 | AR25: 5 | AS25: 27 | AU25: 19 | AV25: 12 | AW25: 5 | AX25: 17 | BA25: 0 | BB25: 0 | BC25: 0 | BE25: 13 | BF25: 20 | BG25: 5 | BH25: 25 | BJ25: 22 | BK25: 9 | BL25: 5 | BM25: 14 | BO25: 20 | BP25: 11 | BQ25: 0 | BR25: 0 | BS25: 0 | BT25: 1 | BU25: 0 | BV25: 0 | BW25: 0 | BX25: 0
A26: =IF(E26<E25,BO26,A25) -> 21 | B26: Graff-Sponheim | C26: Felix Leonard | D26: Heming | E26: =IF(F26<=4,Q26,(Q26-SUM(SMALL(R26:Y26,{1;2;3;4})))) -> 104 | F26: 6 | H26: 7 | J26: 17 | K26: 28 | L26: 15 | N26: 23 | O26: dsq | Q26: 107 | R26: 36 | S26: 0 | T26: 14 | U26: 3 | V26: 16 | W26: 0 | X26: 8 | Y26: 0 | AA26: 7 | AB26: 36 | AC26: 5 | AD26: 41 | AG26: 0 | AH26: 0 | AI26: 0 | AK26: 17 | AL26: 14 | AM26: 5 | AN26: 19 | AP26: 28 | AQ26: 3 | AR26: 5 | AS26: 8 | AU26: 15 | AV26: 16 | AW26: 5 | AX26: 21 | BA26: 0 | BB26: 0 | BC26: 0 | BE26: 23 | BF26: 8 | BG26: 5 | BH26: 13 | BJ26: dsq | BK26: 0 | BL26: 5 | BM26: 5 | BO26: 21 | BP26: 10 | BQ26: 0 | BR26: 0 | BS26: 0 | BT26: 0 | BU26: 0 | BV26: 0 | BW26: 0 | BX26: 0
A27: =IF(E27<E26,BO28,A26) -> 23 | B27: Gaarder | C27: Oskar Jølle | D27: HSIL | E27: =IF(F27<=4,Q27,(Q27-SUM(SMALL(R27:Y27,{1;2;3;4})))) -> 93 | F27: 5 | J27: 20 | L27: 29 | M27: 14 | N27: 16 | O27: 11 | Q27: 95 | R27: 0 | S27: 0 | T27: 11 | U27: 0 | V27: 2 | W27: 18 | X27: 15 | Y27: 24 | AB27: 0 | AC27: 0 | AD27: 0 | AG27: 0 | AH27: 0 | AI27: 0 | AK27: 20 | AL27: 11 | AM27: 5 | AN27: 16 | AQ27: 0 | AR27: 0 | AS27: 0 | AU27: 29 | AV27: 2 | AW27: 5 | AX27: 7 | AZ27: 14 | BA27: 18 | BB27: 5 | BC27: 23 | BE27: 16 | BF27: 15 | BG27: 5 | BH27: 20 | BJ27: 11 | BK27: 24 | BL27: 5 | BM27: 29 | BO27: 22 | BP27: 9 | BQ27: 0 | BR27: 0 | BS27: 1 | BT27: 0 | BU27: 0 | BV27: 0 | BW27: 0 | BX27: 0
A28: 24 | B28: Svensen | C28: Felix Granum | D28: Ljan | E28: =IF(F28<=4,Q28,(Q28-SUM(SMALL(R28:Y28,{1;2;3;4})))) -> 92 | F28: 8 | H28: dsq | I28: 13 | J28: 23 | K28: 17 | L28: 27 | M28: 21 | N28: dsq | O28: dnf | Q28: 96 | R28: 0 | S28: 20 | T28: 8 | U28: 14 | V28: 4 | W28: 10 | X28: 0 | Y28: 0 | AA28: dsq | AB28: 0 | AC28: 5 | AD28: 5 | AF28: 13 | AG28: 20 | AH28: 5 | AI28: 25 | AK28: 23 | AL28: 8 | AM28: 5 | AN28: 13 | AP28: 17 | AQ28: 14 | AR28: 5 | AS28: 19 | AU28: 27 | AV28: 4 | AW28: 5 | AX28: 9 | AZ28: 21 | BA28: 10 | BB28: 5 | BC28: 15 | BE28: dsq | BF28: 0 | BG28: 5 | BH28: 5 | BJ28: dnf | BK28: 0 | BL28: 5 | BM28: 5 | BO28: 23 | BP28: 8 | BQ28: 1 | BR28: =IF($F23=7,1,0) -> 0 | BS28: =IF($F23=6,1,0) -> 0 | BT28: =IF($F23=5,1,0) -> 1 | BU28: =IF($F23=4,1,0) -> 0 | BV28: =IF($F23=3,1,0) -> 0 | BW28: =IF($F23=2,1,0) -> 0 | BX28: =IF($F23=1,1,0) -> 0
A29: 25 | B29: Lacoste | C29: Felix Trudeng | D29: Ready | E29: =IF(F29<=4,Q29,(Q29-SUM(SMALL(R29:Y29,{1;2;3;4})))) -> 88 | F29: 8 | H29: 17 | I29: dsq | J29: 26 | K29: 19 | L29: 26 | M29: 19 | N29: dsq | O29: 21 | Q29: 98 | R29: 14 | S29: 0 | T29: 5 | U29: 12 | V29: 5 | W29: 12 | X29: 0 | Y29: 10 | AA29: 17 | AB29: 14 | AC29: 5 | AD29: 19 | AF29: dsq | AG29: 0 | AH29: 5 | AI29: 5 | AK29: 26 | AL29: 5 | AM29: 5 | AN29: 10 | AP29: 19 | AQ29: 12 | AR29: 5 | AS29: 17 | AU29: 26 | AV29: 5 | AW29: 5 | AX29: 10 | AZ29: 19 | BA29: 12 | BB29: 5 | BC29: 17 | BE29: dsq | BF29: 0 | BG29: 5 | BH29: 5 | BJ29: 21 | BK29: 10 | BL29: 5 | BM29: 15 | BO29: 24 | BP29: 7 | BQ29: 1 | BR29: =IF($F24=7,1,0) -> 0 | BS29: =IF($F24=6,1,0) -> 0 | BT29: =IF($F24=5,1,0) -> 0 | BU29: =IF($F24=4,1,0) -> 0 | BV29: =IF($F24=3,1,0) -> 0 | BW29: =IF($F24=2,1,0) -> 0 | BX29: =IF($F24=1,1,0) -> 0
A30: 26 | B30: Hovind | C30: Adrian R. Nuila | D30: Ljan | E30: =IF(F30<=4,Q30,(Q30-SUM(SMALL(R30:Y30,{1;2;3;4})))) -> 84 | F30: 6 | H30: 16 | I30: 11 | J30: 30 | L30: dsq | N30: 21 | O30: 26 | Q30: 85 | R30: 15 | S30: 24 | T30: 1 | U30: 0 | V30: 0 | W30: 0 | X30: 10 | Y30: 5 | AA30: 16 | AB30: 15 | AC30: 5 | AD30: 20 | AF30: 11 | AG30: 24 | AH30: 5 | AI30: 29 | AK30: 30 | AL30: 1 | AM30: 5 | AN30: 6 | AQ30: 0 | AR30: 0 | AS30: 0 | AU30: dsq | AV30: 0 | AW30: 5 | AX30: 5 | BA30: 0 | BB30: 0 | BC30: 0 | BE30: 21 | BF30: 10 | BG30: 5 | BH30: 15 | BJ30: 26 | BK30: 5 | BL30: 5 | BM30: 10 | BO30: 25 | BP30: 6 | BQ30: 0 | BR30: =IF($F25=7,1,0) -> 0 | BS30: =IF($F25=6,1,0) -> 1 | BT30: =IF($F25=5,1,0) -> 0 | BU30: =IF($F25=4,1,0) -> 0 | BV30: =IF($F25=3,1,0) -> 0 | BW30: =IF($F25=2,1,0) -> 0 | BX30: =IF($F25=1,1,0) -> 0
A31: 27 | B31: Arnesen | C31: Lukas | D31: Heming | E31: =IF(F31<=4,Q31,(Q31-SUM(SMALL(R31:Y31,{1;2;3;4})))) -> 81 | F31: 6 | I31: 12 | J31: 33 | K31: 16 | L31: dsq | M31: 17 | O31: dsq | Q31: 81 | R31: 0 | S31: 22 | T31: 0 | U31: 15 | V31: 0 | W31: 14 | X31: 0 | Y31: 0 | AB31: 0 | AC31: 0 | AD31: 0 | AF31: 12 | AG31: 22 | AH31: 5 | AI31: 27 | AK31: 33 | AL31: 0 | AM31: 5 | AN31: 5 | AP31: 16 | AQ31: 15 | AR31: 5 | AS31: 20 | AU31: dsq | AV31: 0 | AW31: 5 | AX31: 5 | AZ31: 17 | BA31: 14 | BB31: 5 | BC31: 19 | BF31: 0 | BG31: 0 | BH31: 0 | BJ31: dsq | BK31: 0 | BL31: 5 | BM31: 5 | BO31: 26 | BP31: 5 | BQ31: 0 | BR31: =IF($F25=7,1,0) -> 0 | BS31: =IF($F25=6,1,0) -> 1 | BT31: =IF($F25=5,1,0) -> 0 | BU31: =IF($F25=4,1,0) -> 0 | BV31: =IF($F25=3,1,0) -> 0 | BW31: =IF($F25=2,1,0) -> 0 | BX31: =IF($F25=1,1,0) -> 0
A32: 28 | B32: Skirstad | C32: Jacob | D32: Ready | E32: =IF(F32<=4,Q32,(Q32-SUM(SMALL(R32:Y32,{1;2;3;4})))) -> 80 | F32: 6 | I32: dsq | J32: 22 | L32: 22 | M32: 15 | N32: dsq | O32: 15 | Q32: 80 | R32: 0 | S32: 0 | T32: 9 | U32: 0 | V32: 9 | W32: 16 | X32: 0 | Y32: 16 | AB32: 0 | AC32: 0 | AD32: 0 | AF32: dsq | AG32: 0 | AH32: 5 | AI32: 5 | AK32: 22 | AL32: 9 | AM32: 5 | AN32: 14 | AQ32: 0 | AR32: 0 | AS32: 0 | AU32: 22 | AV32: 9 | AW32: 5 | AX32: 14 | AZ32: 15 | BA32: 16 | BB32: 5 | BC32: 21 | BE32: dsq | BF32: 0 | BG32: 5 | BH32: 5 | BJ32: 15 | BK32: 16 | BL32: 5 | BM32: 21 | BO32: 27 | BP32: 4 | BQ32: 0 | BR32: =IF($F26=7,1,0) -> 0 | BS32: =IF($F26=6,1,0) -> 1 | BT32: =IF($F26=5,1,0) -> 0 | BU32: =IF($F26=4,1,0) -> 0 | BV32: =IF($F26=3,1,0) -> 0 | BW32: =IF($F26=2,1,0) -> 0 | BX32: =IF($F26=1,1,0) -> 0
A33: 29 | B33: Astad | C33: Sjur | D33: Kjelsås | E33: =IF(F33<=4,Q33,(Q33-SUM(SMALL(R33:Y33,{1;2;3;4})))) -> 78 | F33: 5 | I33: 10 | J33: 25 | K33: 21 | N33: dsq | O33: 20 | Q33: 78 | R33: 0 | S33: 26 | T33: 6 | U33: 10 | V33: 0 | W33: 0 | X33: 0 | Y33: 11 | AB33: 0 | AC33: 0 | AD33: 0 | AF33: 10 | AG33: 26 | AH33: 5 | AI33: 31 | AK33: 25 | AL33: 6 | AM33: 5 | AN33: 11 | AP33: 21 | AQ33: 10 | AR33: 5 | AS33: 15 | AV33: 0 | AW33: 0 | AX33: 0 | BA33: 0 | BB33: 0 | BC33: 0 | BE33: dsq | BF33: 0 | BG33: 5 | BH33: 5 | BJ33: 20 | BK33: 11 | BL33: 5 | BM33: 16 | BO33: 28 | BP33: 3 | BQ33: 0 | BR33: 0 | BS33: 0 | BT33: 1 | BU33: 0 | BV33: 0 | BW33: 0 | BX33: 0
A34: 30 | B34: Ekjord | C34: Oskar Gedde-Dahl | D34: Heming | E34: =IF(F34<=4,Q34,(Q34-SUM(SMALL(R34:Y34,{1;2;3;4})))) -> 71 | F34: 3 | J34: 11 | K34: 8 | L34: dnf | Q34: 71 | AB34: 0 | AC34: 0 | AD34: 0 | AG34: 0 | AH34: 0 | AI34: 0 | AK34: 11 | AL34: 24 | AM34: 5 | AN34: 29 | AP34: 8 | AQ34: 32 | AR34: 5 | AS34: 37 | AU34: dnf | AV34: 0 | AW34: 5 | AX34: 5 | BA34: 0 | BB34: 0 | BC34: 0 | BF34: 0 | BG34: 0 | BH34: 0 | BK34: 0 | BL34: 0 | BM34: 0 | BO34: 29 | BP34: 2 | BQ34: 0 | BR34: 0 | BS34: 0 | BT34: 0 | BU34: 0 | BV34: 0 | BW34: 0 | BX34: 0
A35: 30 | B35: Larsen | C35: Bendik Stangebye | D35: Njård | E35: =IF(F35<=4,Q35,(Q35-SUM(SMALL(R35:Y35,{1;2;3;4})))) -> 71 | F35: 6 | H35: 19 | I35: 15 | J35: 27 | K35: 24 | L35: 35 | M35: 25 | Q35: 75 | R35: 12 | S35: 16 | T35: 4 | U35: 7 | V35: 0 | W35: 6 | X35: 0 | Y35: 0 | AA35: 19 | AB35: 12 | AC35: 5 | AD35: 17 | AF35: 15 | AG35: 16 | AH35: 5 | AI35: 21 | AK35: 27 | AL35: 4 | AM35: 5 | AN35: 9 | AP35: 24 | AQ35: 7 | AR35: 5 | AS35: 12 | AU35: 35 | AV35: 0 | AW35: 5 | AX35: 5 | AZ35: 25 | BA35: 6 | BB35: 5 | BC35: 11 | BF35: 0 | BG35: 0 | BH35: 0 | BK35: 0 | BL35: 0 | BM35: 0 | BO35: 30 | BP35: 1 | BQ35: 0 | BR35: =IF($F26=7,1,0) -> 0 | BS35: =IF($F26=6,1,0) -> 1 | BT35: =IF($F26=5,1,0) -> 0 | BU35: =IF($F26=4,1,0) -> 0 | BV35: =IF($F26=3,1,0) -> 0 | BW35: =IF($F26=2,1,0) -> 0 | BX35: =IF($F26=1,1,0) -> 0
A36: 32 | B36: Lydersen | C36: Morten Dyrstad | D36: Kjelsås | E36: =IF(F36<=4,Q36,(Q36-SUM(SMALL(R36:Y36,{1;2;3;4})))) -> 70 | F36: 4 | L36: 25 | M36: 18 | N36: 15 | O36: 16 | Q36: 70 | AB36: 0 | AC36: 0 | AD36: 0 | AG36: 0 | AH36: 0 | AI36: 0 | AL36: 0 | AM36: 0 | AN36: 0 | AQ36: 0 | AR36: 0 | AS36: 0 | AU36: 25 | AV36: 6 | AW36: 5 | AX36: 11 | AZ36: 18 | BA36: 13 | BB36: 5 | BC36: 18 | BE36: 15 | BF36: 16 | BG36: 5 | BH36: 21 | BJ36: 16 | BK36: 15 | BL36: 5 | BM36: 20 | BO36: 31 | BP36: 0 | BQ36: 0 | BR36: 0 | BS36: 0 | BT36: 1 | BU36: 0 | BV36: 0 | BW36: 0 | BX36: 0
A37: 33 | B37: Sandengen | C37: Falk Willian | D37: Njård | E37: =IF(F37<=4,Q37,(Q37-SUM(SMALL(R37:Y37,{1;2;3;4})))) -> 64 | F37: 7 | H37: 22 | I37: 16 | J37: 31 | K37: 31 | M37: dsq | N37: 27 | O37: 30 | Q37: 64 | R37: 9 | S37: 15 | T37: 0 | U37: 0 | V37: 0 | W37: 0 | X37: 4 | Y37: 1 | AA37: 22 | AB37: 9 | AC37: 5 | AD37: 14 | AF37: 16 | AG37: 15 | AH37: 5 | AI37: 20 | AK37: 31 | AL37: 0 | AM37: 5 | AN37: 5 | AP37: 31 | AQ37: 0 | AR37: 5 | AS37: 5 | AV37: 0 | AW37: 0 | AX37: 0 | AZ37: dsq | BA37: 0 | BB37: 5 | BC37: 5 | BE37: 27 | BF37: 4 | BG37: 5 | BH37: 9 | BJ37: 30 | BK37: 1 | BL37: 5 | BM37: 6 | BO37: 32 | BP37: 0 | BQ37: 0 | BR37: 0 | BS37: 0 | BT37: 0 | BU37: 0 | BV37: 0 | BW37: 0 | BX37: 0
A38: 34 | B38: Espe | C38: Alexander | D38: Heming | E38: =IF(F38<=4,Q38,(Q38-SUM(SMALL(R38:Y38,{1;2;3;4})))) -> 60 | F38: =(IF(AC38=5,1,0)+IF(AH38=5,1,0)+IF(AM38=5,1,0)+IF(AR38=5,1,0)+IF(AW38=5,1,0)+IF(BB38=5,1,0)+IF(BG38=5,1,0)+IF(BL38=5,1,0)) -> 3 | H38: =IF(AA38="","",AA38) ->  | I38: =IF(AF38="","",AF38) ->  | J38: =IF(AK38="","",AK38) ->  | K38: =IF(AP38="","",AP38) ->  | L38: =IF(AU38="","",AU38) -> 17 | M38: =IF(AZ38="","",AZ38) ->  | N38: =IF(BE38="","",BE38) -> 18 | O38: =IF(BJ38="","",BJ38) -> 14 | Q38: =AD38+AI38+AN38+AS38+AX38+BC38+BH38+BM38 -> 60 | R38: =IF($F38>=5,IF(AB38="","",AB38),"") ->  | S38: =IF($F38>=5,IF(AG38="","",AG38),"") ->  | T38: =IF($F38>=5,IF(AL38="","",AL38),"") ->  | U38: =IF($F38>=5,IF(AQ38="","",AQ38),"") ->  | V38: =IF($F38>=5,IF(AV38="","",AV38),"") ->  | W38: =IF($F38>=5,IF(BA38="","",BA38),"") ->  | X38: =IF($F38>=5,IF(BF38="","",BF38),"") ->  | Y38: =IF($F38>=5,IF(BK38="","",BK38),"") ->  | AB38: =IF(ISNUMBER(AA38),(VLOOKUP(AA38,$BO$6:$BP$50,2)),0) -> 0 | AC38: =IF(AA38<>"",5,0) -> 0 | AD38: =AB38+AC38 -> 0 | AG38: =IF(ISNUMBER(AF38),(VLOOKUP(AF38,$BO$6:$BP$50,2)),0) -> 0 | AH38: =IF(AF38<>"",5,0) -> 0 | AI38: =AG38+AH38 -> 0 | AL38: =IF(ISNUMBER(AK38),(VLOOKUP(AK38,$BO$6:$BP$50,2)),0) -> 0 | AM38: =IF(AK38<>"",5,0) -> 0 | AN38: =AL38+AM38 -> 0 | AQ38: =IF(ISNUMBER(AP38),(VLOOKUP(AP38,$BO$6:$BP$50,2)),0) -> 0 | AR38: =IF(AP38<>"",5,0) -> 0 | AS38: =AQ38+AR38 -> 0 | AU38: 17 | AV38: =IF(ISNUMBER(AU38),(VLOOKUP(AU38,$BO$6:$BP$50,2)),0) -> 14 | AW38: =IF(AU38<>"",5,0) -> 5 | AX38: =AV38+AW38 -> 19 | BA38: =IF(ISNUMBER(AZ38),(VLOOKUP(AZ38,$BO$6:$BP$50,2)),0) -> 0 | BB38: =IF(AZ38<>"",5,0) -> 0 | BC38: =BA38+BB38 -> 0 | BE38: 18 | BF38: =IF(ISNUMBER(BE38),(VLOOKUP(BE38,$BO$6:$BP$50,2)),0) -> 13 | BG38: =IF(BE38<>"",5,0) -> 5 | BH38: =BF38+BG38 -> 18 | BJ38: 14 | BK38: =IF(ISNUMBER(BJ38),(VLOOKUP(BJ38,$BO$6:$BP$50,2)),0) -> 18 | BL38: =IF(BJ38<>"",5,0) -> 5 | BM38: =BK38+BL38 -> 23 | BO38: 33 | BP38: 0 | BQ38: 0 | BR38: 0 | BS38: 0 | BT38: 0 | BU38: 0 | BV38: 0 | BW38: 0 | BX38: 0
A39: 35 | B39: Hellerud | C39: Lars | D39: Ullensaker | E39: =IF(F39<=4,Q39,(Q39-SUM(SMALL(R39:Y39,{1;2;3;4})))) -> 54 | F39: 6 | H39: 23 | I39: dsq | K39: 26 | L39: 28 | M39: 23 | O39: 29 | Q39: 56 | R39: 8 | S39: 0 | T39: 0 | U39: 5 | V39: 3 | W39: 8 | X39: 0 | Y39: 2 | AA39: 23 | AB39: 8 | AC39: 5 | AD39: 13 | AF39: dsq | AG39: 0 | AH39: 5 | AI39: 5 | AL39: 0 | AM39: 0 | AN39: 0 | AP39: 26 | AQ39: 5 | AR39: 5 | AS39: 10 | AU39: 28 | AV39: 3 | AW39: 5 | AX39: 8 | AZ39: 23 | BA39: 8 | BB39: 5 | BC39: 13 | BF39: 0 | BG39: 0 | BH39: 0 | BJ39: 29 | BK39: 2 | BL39: 5 | BM39: 7 | BO39: 34 | BP39: 0 | BQ39: 0 | BR39: 0 | BS39: 1 | BT39: 0 | BU39: 0 | BV39: 0 | BW39: 0 | BX39: 0
A40: 36 | B40: Enoksen | C40: Elias | D40: IRS | E40: =IF(F40<=4,Q40,(Q40-SUM(SMALL(R40:Y40,{1;2;3;4})))) -> 50 | F40: 4 | H40: 15 | K40: 25 | N40: dsq | O40: 23 | Q40: 50 | AA40: 15 | AB40: 16 | AC40: 5 | AD40: 21 | AG40: 0 | AH40: 0 | AI40: 0 | AL40: 0 | AM40: 0 | AN40: 0 | AP40: 25 | AQ40: 6 | AR40: 5 | AS40: 11 | AV40: 0 | AW40: 0 | AX40: 0 | BA40: 0 | BB40: 0 | BC40: 0 | BE40: dsq | BF40: 0 | BG40: 5 | BH40: 5 | BJ40: 23 | BK40: 8 | BL40: 5 | BM40: 13 | BO40: 35 | BP40: 0 | BQ40: 0 | BR40: 0 | BS40: 1 | BT40: 0 | BU40: 0 | BV40: 0 | BW40: 0 | BX40: 0
A41: 37 | B41: Horntvedt | C41: Oliver Ragnar | D41: Ljan | E41: =IF(F41<=4,Q41,(Q41-SUM(SMALL(R41:Y41,{1;2;3;4})))) -> 48 | F41: 5 | H41: 20 | I41: dsq | L41: dnf | N41: 22 | O41: 28 | Q41: 48 | R41: 11 | S41: 0 | T41: 0 | U41: 0 | V41: 0 | W41: 0 | X41: 9 | Y41: 3 | AA41: 20 | AB41: 11 | AC41: 5 | AD41: 16 | AF41: dsq | AG41: 0 | AH41: 5 | AI41: 5 | AL41: 0 | AM41: 0 | AN41: 0 | AQ41: 0 | AR41: 0 | AS41: 0 | AU41: dnf | AV41: 0 | AW41: 5 | AX41: 5 | BA41: 0 | BB41: 0 | BC41: 0 | BE41: 22 | BF41: 9 | BG41: 5 | BH41: 14 | BJ41: 28 | BK41: 3 | BL41: 5 | BM41: 8 | BO41: 36 | BP41: 0 | BQ41: 0 | BR41: 0 | BS41: 1 | BT41: 0 | BU41: 0 | BV41: 0 | BW41: 0 | BX41: 0
A42: 38 | B42: Trondsen | C42: Kristian Arnstad | D42: Heming | E42: =IF(F42<=4,Q42,(Q42-SUM(SMALL(R42:Y42,{1;2;3;4})))) -> 46 | F42: 2 | J42: 21 | M42: 10 | Q42: 46 | AB42: 0 | AC42: 0 | AD42: 0 | AG42: 0 | AH42: 0 | AI42: 0 | AK42: 21 | AL42: 10 | AM42: 5 | AN42: 15 | AQ42: 0 | AR42: 0 | AS42: 0 | AV42: 0 | AW42: 0 | AX42: 0 | AZ42: 10 | BA42: 26 | BB42: 5 | BC42: 31 | BF42: 0 | BG42: 0 | BH42: 0 | BK42: 0 | BL42: 0 | BM42: 0 | BO42: 37 | BP42: 0 | BQ42: 0 | BR42: 0 | BS42: 0 | BT42: 1 | BU42: 0 | BV42: 0 | BW42: 0 | BX42: 0
A43: 38 | B43: Christiansen | C43: Arthur Åstasund | D43: IRS | E43: =IF(F43<=4,Q43,(Q43-SUM(SMALL(R43:Y43,{1;2;3;4})))) -> 46 | F43: 3 | H43: 18 | N43: 20 | O43: 24 | Q43: 46 | AA43: 18 | AB43: 13 | AC43: 5 | AD43: 18 | AG43: 0 | AH43: 0 | AI43: 0 | AL43: 0 | AM43: 0 | AN43: 0 | AQ43: 0 | AR43: 0 | AS43: 0 | AV43: 0 | AW43: 0 | AX43: 0 | BA43: 0 | BB43: 0 | BC43: 0 | BE43: 20 | BF43: 11 | BG43: 5 | BH43: 16 | BJ43: 24 | BK43: 7 | BL43: 5 | BM43: 12 | BO43: 38 | BP43: 0 | BQ43: 0 | BR43: 0 | BS43: 0 | BT43: 0 | BU43: 0 | BV43: 1 | BW43: 0 | BX43: 0
A44: 40 | B44: Sundal | C44: Nicolay Neuberth | D44: HSIL | E44: =IF(F44<=4,Q44,(Q44-SUM(SMALL(R44:Y44,{1;2;3;4})))) -> 45 | F44: 5 | J44: 28 | L44: 32 | M44: 26 | N44: dsq | O44: 19 | Q44: 45 | R44: 0 | S44: 0 | T44: 3 | U44: 0 | V44: 0 | W44: 5 | X44: 0 | Y44: 12 | AB44: 0 | AC44: 0 | AD44: 0 | AG44: 0 | AH44: 0 | AI44: 0 | AK44: 28 | AL44: 3 | AM44: 5 | AN44: 8 | AQ44: 0 | AR44: 0 | AS44: 0 | AU44: 32 | AV44: 0 | AW44: 5 | AX44: 5 | AZ44: 26 | BA44: 5 | BB44: 5 | BC44: 10 | BE44: dsq | BF44: 0 | BG44: 5 | BH44: 5 | BJ44: 19 | BK44: 12 | BL44: 5 | BM44: 17 | BO44: 39 | BP44: 0 | BQ44: 0 | BR44: 0 | BS44: 1 | BT44: 0 | BU44: 0 | BV44: 0 | BW44: 0 | BX44: 0
A45: 41 | B45: Yngland | C45: Teo Borge | D45: Stabæk | E45: =IF(F45<=4,Q45,(Q45-SUM(SMALL(R45:Y45,{1;2;3;4})))) -> 41 | F45: 1 | L45: 7 | Q45: 41 | AB45: 0 | AC45: 0 | AD45: 0 | AG45: 0 | AH45: 0 | AI45: 0 | AL45: 0 | AM45: 0 | AN45: 0 | AQ45: 0 | AR45: 0 | AS45: 0 | AU45: 7 | AV45: 36 | AW45: 5 | AX45: 41 | BA45: 0 | BB45: 0 | BC45: 0 | BF45: 0 | BG45: 0 | BH45: 0 | BK45: 0 | BL45: 0 | BM45: 0 | BO45: 40 | BP45: 0 | BQ45: 0 | BR45: 0 | BS45: 0 | BT45: 0 | BU45: 1 | BV45: 0 | BW45: 0 | BX45: 0
A46: 42 | B46: Linna | C46: Simon | D46: Heming | E46: =IF(F46<=4,Q46,(Q46-SUM(SMALL(R46:Y46,{1;2;3;4})))) -> 38 | F46: 2 | J46: 19 | K46: 15 | Q46: 38 | AB46: 0 | AC46: 0 | AD46: 0 | AG46: 0 | AH46: 0 | AI46: 0 | AK46: 19 | AL46: 12 | AM46: 5 | AN46: 17 | AP46: 15 | AQ46: 16 | AR46: 5 | AS46: 21 | AV46: 0 | AW46: 0 | AX46: 0 | BA46: 0 | BB46: 0 | BC46: 0 | BF46: 0 | BG46: 0 | BH46: 0 | BK46: 0 | BL46: 0 | BM46: 0 | BO46: 41 | BP46: 0 | BQ46: 0 | BR46: 1 | BS46: 0 | BT46: 0 | BU46: 0 | BV46: 0 | BW46: 0 | BX46: 0
A47: 42 | B47: Ulrichsen | C47: Daniel Krüger | D47: Ready | E47: =IF(F47<=4,Q47,(Q47-SUM(SMALL(R47:Y47,{1;2;3;4})))) -> 38 | F47: 3 | J47: 29 | K47: 22 | N47: 19 | Q47: 38 | AB47: 0 | AC47: 0 | AD47: 0 | AG47: 0 | AH47: 0 | AI47: 0 | AK47: 29 | AL47: 2 | AM47: 5 | AN47: 7 | AP47: 22 | AQ47: 9 | AR47: 5 | AS47: 14 | AV47: 0 | AW47: 0 | AX47: 0 | BA47: 0 | BB47: 0 | BC47: 0 | BE47: 19 | BF47: 12 | BG47: 5 | BH47: 17 | BK47: 0 | BL47: 0 | BM47: 0 | BO47: 42 | BP47: 0 | BQ47: 0 | BR47: 0 | BS47: 0 | BT47: 0 | BU47: 0 | BV47: 1 | BW47: 0 | BX47: 0
A48: 42 | B48: Meland | C48: Jonas | D48: HSIL | E48: =IF(F48<=4,Q48,(Q48-SUM(SMALL(R48:Y48,{1;2;3;4})))) -> 38 | F48: 3 | L48: 30 | M48: 12 | O48: dsq | Q48: 38 | AB48: 0 | AC48: 0 | AD48: 0 | AG48: 0 | AH48: 0 | AI48: 0 | AL48: 0 | AM48: 0 | AN48: 0 | AQ48: 0 | AR48: 0 | AS48: 0 | AU48: 30 | AV48: 1 | AW48: 5 | AX48: 6 | AZ48: 12 | BA48: 22 | BB48: 5 | BC48: 27 | BF48: 0 | BG48: 0 | BH48: 0 | BJ48: dsq | BK48: 0 | BL48: 5 | BM48: 5 | BO48: 43 | BP48: 0 | BQ48: 0 | BR48: 0 | BS48: 1 | BT48: 0 | BU48: 0 | BV48: 0 | BW48: 0 | BX48: 0
A49: 45 | B49: Dyrstad | C49: Morten | D49: Kjelsås | E49: =IF(F49<=4,Q49,(Q49-SUM(SMALL(R49:Y49,{1;2;3;4})))) -> 37 | F49: 1 | I49: 8 | Q49: 37 | AB49: 0 | AC49: 0 | AD49: 0 | AF49: 8 | AG49: 32 | AH49: 5 | AI49: 37 | AL49: 0 | AM49: 0 | AN49: 0 | AQ49: 0 | AR49: 0 | AS49: 0 | AV49: 0 | AW49: 0 | AX49: 0 | BA49: 0 | BB49: 0 | BC49: 0 | BF49: 0 | BG49: 0 | BH49: 0 | BK49: 0 | BL49: 0 | BM49: 0 | BO49: 44 | BP49: 0 | BQ49: 0 | BR49: 0 | BS49: 0 | BT49: 0 | BU49: 1 | BV49: 0 | BW49: 0 | BX49: 0
A50: 45 | B50: Noer | C50: Kristoffer | D50: Rælingen | E50: =IF(F50<=4,Q50,(Q50-SUM(SMALL(R50:Y50,{1;2;3;4})))) -> 37 | F50: 1 | L50: 8 | Q50: 37 | AB50: 0 | AC50: 0 | AD50: 0 | AG50: 0 | AH50: 0 | AI50: 0 | AL50: 0 | AM50: 0 | AN50: 0 | AQ50: 0 | AR50: 0 | AS50: 0 | AU50: 8 | AV50: 32 | AW50: 5 | AX50: 37 | BA50: 0 | BB50: 0 | BC50: 0 | BF50: 0 | BG50: 0 | BH50: 0 | BK50: 0 | BL50: 0 | BM50: 0 | BO50: 45 | BP50: 0 | BQ50: 0 | BR50: 0 | BS50: 0 | BT50: 1 | BU50: 0 | BV50: 0 | BW50: 0 | BX50: 0
A51: 47 | B51: Andersen | C51: Oscar | D51: IRS | E51: =IF(F51<=4,Q51,(Q51-SUM(SMALL(R51:Y51,{1;2;3;4})))) -> 35 | F51: 4 | H51: 21 | K51: 29 | N51: 28 | O51: 33 | Q51: 35 | AA51: 21 | AB51: 10 | AC51: 5 | AD51: 15 | AG51: 0 | AH51: 0 | AI51: 0 | AL51: 0 | AM51: 0 | AN51: 0 | AP51: 29 | AQ51: 2 | AR51: 5 | AS51: 7 | AV51: 0 | AW51: 0 | AX51: 0 | BA51: 0 | BB51: 0 | BC51: 0 | BE51: 28 | BF51: 3 | BG51: 5 | BH51: 8 | BJ51: 33 | BK51: 0 | BL51: 5 | BM51: 5 | BO51: 46 | BP51: 0 | BQ51: 0 | BR51: 0 | BS51: 0 | BT51: 0 | BU51: 0 | BV51: 0 | BW51: 1 | BX51: 0
A52: 48 | B52: Pavolas | C52: Paulius | D52: HSIL | E52: =IF(F52<=4,Q52,(Q52-SUM(SMALL(R52:Y52,{1;2;3;4})))) -> 32 | F52: 4 | L52: 37 | M52: 24 | N52: 26 | O52: 31 | Q52: 32 | AB52: 0 | AC52: 0 | AD52: 0 | AG52: 0 | AH52: 0 | AI52: 0 | AL52: 0 | AM52: 0 | AN52: 0 | AQ52: 0 | AR52: 0 | AS52: 0 | AU52: 37 | AV52: 0 | AW52: 5 | AX52: 5 | AZ52: 24 | BA52: 7 | BB52: 5 | BC52: 12 | BE52: 26 | BF52: 5 | BG52: 5 | BH52: 10 | BJ52: 31 | BK52: 0 | BL52: 5 | BM52: 5 | BO52: 47 | BP52: 0 | BQ52: 0 | BR52: 0 | BS52: 0 | BT52: 0 | BU52: 0 | BV52: 1 | BW52: 0 | BX52: 0
A53: 49 | B53: Heide | C53: William Weedon | D53: Heming | E53: =IF(F53<=4,Q53,(Q53-SUM(SMALL(R53:Y53,{1;2;3;4})))) -> 26 | F53: 2 | J53: 15 | L53: dnf | Q53: 26 | AB53: 0 | AC53: 0 | AD53: 0 | AG53: 0 | AH53: 0 | AI53: 0 | AK53: 15 | AL53: 16 | AM53: 5 | AN53: 21 | AQ53: 0 | AR53: 0 | AS53: 0 | AU53: dnf | AV53: 0 | AW53: 5 | AX53: 5 | BA53: 0 | BB53: 0 | BC53: 0 | BF53: 0 | BG53: 0 | BH53: 0 | BK53: 0 | BL53: 0 | BM53: 0 | BO53: 48 | BP53: 0 | BQ53: 0 | BR53: 0 | BS53: 0 | BT53: 1 | BU53: 0 | BV53: 0 | BW53: 0 | BX53: 0
A54: 50 | B54: Skinningsrud | C54: Kristoffer | D54: Kjelsås | E54: =IF(F54<=4,Q54,(Q54-SUM(SMALL(R54:Y54,{1;2;3;4})))) -> 21 | F54: 3 | M54: 27 | N54: 29 | O54: 32 | Q54: 21 | AB54: 0 | AC54: 0 | AD54: 0 | AG54: 0 | AH54: 0 | AI54: 0 | AL54: 0 | AM54: 0 | AN54: 0 | AQ54: 0 | AR54: 0 | AS54: 0 | AV54: 0 | AW54: 0 | AX54: 0 | AZ54: 27 | BA54: 4 | BB54: 5 | BC54: 9 | BE54: 29 | BF54: 2 | BG54: 5 | BH54: 7 | BJ54: 32 | BK54: 0 | BL54: 5 | BM54: 5 | BO54: 49 | BP54: 0 | BQ54: 0 | BR54: 0 | BS54: 0 | BT54: 0 | BU54: 0 | BV54: 0 | BW54: 0 | BX54: 1
A55: 50 | B55: Aase | C55: Sondre Lia | D55: HSIL | E55: =IF(F55<=4,Q55,(Q55-SUM(SMALL(R55:Y55,{1;2;3;4})))) -> 21 | F55: 3 | M55: dsq | N55: 25 | O55: 35 | Q55: 21 | AB55: 0 | AC55: 0 | AD55: 0 | AG55: 0 | AH55: 0 | AI55: 0 | AL55: 0 | AM55: 0 | AN55: 0 | AQ55: 0 | AR55: 0 | AS55: 0 | AV55: 0 | AW55: 0 | AX55: 0 | AZ55: dsq | BA55: 0 | BB55: 5 | BC55: 5 | BE55: 25 | BF55: 6 | BG55: 5 | BH55: 11 | BJ55: 35 | BK55: 0 | BL55: 5 | BM55: 5 | BO55: 50 | BP55: 0 | BQ55: 0 | BR55: 0 | BS55: 0 | BT55: 0 | BU55: 0 | BV55: 0 | BW55: 1 | BX55: 0
A56: 52 | B56: Nyman | C56: Carl Axel | D56: Kjelsås | E56: =IF(F56<=4,Q56,(Q56-SUM(SMALL(R56:Y56,{1;2;3;4})))) -> 19 | F56: 1 | I56: 17 | Q56: 19 | AB56: 0 | AC56: 0 | AD56: 0 | AF56: 17 | AG56: 14 | AH56: 5 | AI56: 19 | AL56: 0 | AM56: 0 | AN56: 0 | AQ56: 0 | AR56: 0 | AS56: 0 | AV56: 0 | AW56: 0 | AX56: 0 | BA56: 0 | BB56: 0 | BC56: 0 | BF56: 0 | BG56: 0 | BH56: 0 | BK56: 0 | BL56: 0 | BM56: 0 | BO56: 51 | BP56: 0 | BQ56: 0 | BR56: 0 | BS56: 0 | BT56: 0 | BU56: 0 | BV56: 1 | BW56: 0 | BX56: 0
A57: 53 | B57: Ring | C57: Simon Lae | D57: Njård | E57: =IF(F57<=4,Q57,(Q57-SUM(SMALL(R57:Y57,{1;2;3;4})))) -> 16 | F57: 3 | J57: 38 | K57: 30 | L57: 36 | Q57: 16 | AB57: 0 | AC57: 0 | AD57: 0 | AG57: 0 | AH57: 0 | AI57: 0 | AK57: 38 | AL57: 0 | AM57: 5 | AN57: 5 | AP57: 30 | AQ57: 1 | AR57: 5 | AS57: 6 | AU57: 36 | AV57: 0 | AW57: 5 | AX57: 5 | BA57: 0 | BB57: 0 | BC57: 0 | BF57: 0 | BG57: 0 | BH57: 0 | BK57: 0 | BL57: 0 | BM57: 0 | BO57: 52 | BP57: 0 | BQ57: 0 | BR57: 0 | BS57: 0 | BT57: 0 | BU57: 0 | BV57: 1 | BW57: 0 | BX57: 0
A58: 54 | B58: Eriksson | C58: Peder | D58: Try | E58: =IF(F58<=4,Q58,(Q58-SUM(SMALL(R58:Y58,{1;2;3;4})))) -> 14 | F58: 2 | I58: dsq | K58: 27 | Q58: 14 | AB58: 0 | AC58: 0 | AD58: 0 | AF58: dsq | AG58: 0 | AH58: 5 | AI58: 5 | AL58: 0 | AM58: 0 | AN58: 0 | AP58: 27 | AQ58: 4 | AR58: 5 | AS58: 9 | AV58: 0 | AW58: 0 | AX58: 0 | BA58: 0 | BB58: 0 | BC58: 0 | BF58: 0 | BG58: 0 | BH58: 0 | BK58: 0 | BL58: 0 | BM58: 0 | BO58: 53 | BP58: 0 | BQ58: 0 | BR58: 0 | BS58: 0 | BT58: 0 | BU58: 0 | BV58: 0 | BW58: 0 | BX58: 1
A59: 55 | B59: Bjørge | C59: Sander Sebastian | D59: Rælingen | E59: =IF(F59<=4,Q59,(Q59-SUM(SMALL(R59:Y59,{1;2;3;4})))) -> 13 | F59: 1 | L59: 23 | Q59: 13 | AB59: 0 | AC59: 0 | AD59: 0 | AG59: 0 | AH59: 0 | AI59: 0 | AL59: 0 | AM59: 0 | AN59: 0 | AQ59: 0 | AR59: 0 | AS59: 0 | AU59: 23 | AV59: 8 | AW59: 5 | AX59: 13 | BA59: 0 | BB59: 0 | BC59: 0 | BF59: 0 | BG59: 0 | BH59: 0 | BK59: 0 | BL59: 0 | BM59: 0 | BO59: 54 | BP59: 0 | BQ59: 0 | BR59: 0 | BS59: 0 | BT59: 0 | BU59: 0 | BV59: 0 | BW59: 0 | BX59: 1
A60: 56 | B60: Vodal | C60: Christian Folkenborg | D60: Heming | E60: =IF(F60<=4,Q60,(Q60-SUM(SMALL(R60:Y60,{1;2;3;4})))) -> 12 | F60: 1 | J60: 24 | Q60: 12 | AB60: 0 | AC60: 0 | AD60: 0 | AG60: 0 | AH60: 0 | AI60: 0 | AK60: 24 | AL60: 7 | AM60: 5 | AN60: 12 | AQ60: 0 | AR60: 0 | AS60: 0 | AV60: 0 | AW60: 0 | AX60: 0 | BA60: 0 | BB60: 0 | BC60: 0 | BF60: 0 | BG60: 0 | BH60: 0 | BK60: 0 | BL60: 0 | BM60: 0 | BO60: 55 | BP60: 0 | BQ60: 0 | BR60: 0 | BS60: 0 | BT60: 0 | BU60: 1 | BV60: 0 | BW60: 0 | BX60: 0
A61: 56 | B61: Amundsen | C61: Axel Røsberg | D61: Heming | E61: =IF(F61<=4,Q61,(Q61-SUM(SMALL(R61:Y61,{1;2;3;4})))) -> 12 | F61: 1 | L61: 24 | Q61: 12 | AB61: 0 | AC61: 0 | AD61: 0 | AG61: 0 | AH61: 0 | AI61: 0 | AL61: 0 | AM61: 0 | AN61: 0 | AQ61: 0 | AR61: 0 | AS61: 0 | AU61: 24 | AV61: 7 | AW61: 5 | AX61: 12 | BA61: 0 | BB61: 0 | BC61: 0 | BF61: 0 | BG61: 0 | BH61: 0 | BK61: 0 | BL61: 0 | BM61: 0 | BO61: 56 | BP61: 0 | BQ61: 0 | BR61: 0 | BS61: 0 | BT61: 0 | BU61: 1 | BV61: 0 | BW61: 0 | BX61: 0
A62: 56 | B62: Forberg | C62: Ludvig | D62: Heming | E62: =IF(F62<=4,Q62,(Q62-SUM(SMALL(R62:Y62,{1;2;3;4})))) -> 12 | F62: 1 | N62: 24 | Q62: 12 | AB62: 0 | AC62: 0 | AD62: 0 | AG62: 0 | AH62: 0 | AI62: 0 | AL62: 0 | AM62: 0 | AN62: 0 | AQ62: 0 | AR62: 0 | AS62: 0 | AV62: 0 | AW62: 0 | AX62: 0 | BA62: 0 | BB62: 0 | BC62: 0 | BE62: 24 | BF62: 7 | BG62: 5 | BH62: 12 | BK62: 0 | BL62: 0 | BM62: 0 | BO62: 57 | BP62: 0 | BQ62: 0 | BR62: 0 | BS62: 0 | BT62: 0 | BU62: 0 | BV62: 0 | BW62: 1 | BX62: 0
A63: 59 | B63: Bjørkaa De Riz | C63: Nias | D63: Kjelsås | E63: =IF(F63<=4,Q63,(Q63-SUM(SMALL(R63:Y63,{1;2;3;4})))) -> 11 | F63: 2 | N63: 30 | O63: 34 | Q63: 11 | AB63: 0 | AC63: 0 | AD63: 0 | AG63: 0 | AH63: 0 | AI63: 0 | AL63: 0 | AM63: 0 | AN63: 0 | AQ63: 0 | AR63: 0 | AS63: 0 | AV63: 0 | AW63: 0 | AX63: 0 | BA63: 0 | BB63: 0 | BC63: 0 | BE63: 30 | BF63: 1 | BG63: 5 | BH63: 6 | BJ63: 34 | BK63: 0 | BL63: 5 | BM63: 5 | BO63: 58 | BP63: 0 | BQ63: 0 | BR63: 0 | BS63: 0 | BT63: 0 | BU63: 0 | BV63: 1 | BW63: 0 | BX63: 0
A64: 60 | B64: Bergh | C64: Odin | D64: Ljan | E64: =IF(F64<=4,Q64,(Q64-SUM(SMALL(R64:Y64,{1;2;3;4})))) -> 5 | F64: 1 | I64: dsq | Q64: 5 | AB64: 0 | AC64: 0 | AD64: 0 | AF64: dsq | AG64: 0 | AH64: 5 | AI64: 5 | AL64: 0 | AM64: 0 | AN64: 0 | AQ64: 0 | AR64: 0 | AS64: 0 | AV64: 0 | AW64: 0 | AX64: 0 | BA64: 0 | BB64: 0 | BC64: 0 | BF64: 0 | BG64: 0 | BH64: 0 | BK64: 0 | BL64: 0 | BM64: 0 | BO64: 59 | BP64: 0 | BQ64: 0 | BR64: 0 | BS64: 0 | BT64: 0 | BU64: 0 | BV64: 1 | BW64: 0 | BX64: 0
A65: 60 | B65: Ofstad | C65: Lukas | D65: Ljan | E65: =IF(F65<=4,Q65,(Q65-SUM(SMALL(R65:Y65,{1;2;3;4})))) -> 5 | F65: 1 | I65: dsq | Q65: 5 | AB65: 0 | AC65: 0 | AD65: 0 | AF65: dsq | AG65: 0 | AH65: 5 | AI65: 5 | AL65: 0 | AM65: 0 | AN65: 0 | AQ65: 0 | AR65: 0 | AS65: 0 | AV65: 0 | AW65: 0 | AX65: 0 | BA65: 0 | BB65: 0 | BC65: 0 | BF65: 0 | BG65: 0 | BH65: 0 | BK65: 0 | BL65: 0 | BM65: 0 | BO65: 60 | BP65: 0 | BQ65: 0 | BR65: 0 | BS65: 0 | BT65: 0 | BU65: 0 | BV65: 0 | BW65: 0 | BX65: 1
A66: 60 | B66: Skard | C66: Edvard | D66: Ljan | E66: =IF(F66<=4,Q66,(Q66-SUM(SMALL(R66:Y66,{1;2;3;4})))) -> 5 | F66: 1 | I66: dsq | Q66: 5 | AB66: 0 | AC66: 0 | AD66: 0 | AF66: dsq | AG66: 0 | AH66: 5 | AI66: 5 | AL66: 0 | AM66: 0 | AN66: 0 | AQ66: 0 | AR66: 0 | AS66: 0 | AV66: 0 | AW66: 0 | AX66: 0 | BA66: 0 | BB66: 0 | BC66: 0 | BF66: 0 | BG66: 0 | BH66: 0 | BK66: 0 | BL66: 0 | BM66: 0 | BO66: 61 | BP66: 0 | BQ66: 0 | BR66: 0 | BS66: 0 | BT66: 0 | BU66: 0 | BV66: 1 | BW66: 0 | BX66: 0
A67: 60 | B67: Lad | C67: Lukas Ofstad | D67: Ljan | E67: =IF(F67<=4,Q67,(Q67-SUM(SMALL(R67:Y67,{1;2;3;4})))) -> 5 | F67: 1 | J67: 32 | Q67: 5 | AB67: 0 | AC67: 0 | AD67: 0 | AG67: 0 | AH67: 0 | AI67: 0 | AK67: 32 | AL67: 0 | AM67: 5 | AN67: 5 | AQ67: 0 | AR67: 0 | AS67: 0 | AV67: 0 | AW67: 0 | AX67: 0 | BA67: 0 | BB67: 0 | BC67: 0 | BF67: 0 | BG67: 0 | BH67: 0 | BK67: 0 | BL67: 0 | BM67: 0 | BO67: 62 | BP67: 0 | BQ67: 0 | BR67: 0 | BS67: 0 | BT67: 0 | BU67: 0 | BV67: 0 | BW67: 1 | BX67: 0
A68: 60 | B68: Vedal | C68: Kristoffer | E68: =IF(F68<=4,Q68,(Q68-SUM(SMALL(R68:Y68,{1;2;3;4})))) -> 5 | F68: 1 | L68: 31 | Q68: 5 | AB68: 0 | AC68: 0 | AD68: 0 | AG68: 0 | AH68: 0 | AI68: 0 | AL68: 0 | AM68: 0 | AN68: 0 | AQ68: 0 | AR68: 0 | AS68: 0 | AU68: 31 | AV68: 0 | AW68: 5 | AX68: 5 | BA68: 0 | BB68: 0 | BC68: 0 | BF68: 0 | BG68: 0 | BH68: 0 | BK68: 0 | BL68: 0 | BM68: 0 | BO68: 63 | BP68: 0 | BQ68: 0 | BR68: 0 | BS68: 0 | BT68: 0 | BU68: 0 | BV68: 0 | BW68: 0 | BX68: 1
A69: 60 | B69: Axelsen | C69: Kristian | E69: =IF(F69<=4,Q69,(Q69-SUM(SMALL(R69:Y69,{1;2;3;4})))) -> 5 | F69: 1 | L69: 33 | Q69: 5 | AB69: 0 | AC69: 0 | AD69: 0 | AG69: 0 | AH69: 0 | AI69: 0 | AL69: 0 | AM69: 0 | AN69: 0 | AQ69: 0 | AR69: 0 | AS69: 0 | AU69: 33 | AV69: 0 | AW69: 5 | AX69: 5 | BA69: 0 | BB69: 0 | BC69: 0 | BF69: 0 | BG69: 0 | BH69: 0 | BK69: 0 | BL69: 0 | BM69: 0 | BO69: 64 | BP69: 0 | BQ69: 0 | BR69: 0 | BS69: 0 | BT69: 0 | BU69: 0 | BV69: 0 | BW69: 0 | BX69: 1
A70: 60 | B70: Bergh-Jørgensen | C70: Jesper | D70: Ullensaker | E70: =IF(F70<=4,Q70,(Q70-SUM(SMALL(R70:Y70,{1;2;3;4})))) -> 5 | F70: 1 | L70: 34 | Q70: 5 | AB70: =IF(ISNUMBER(AA70),(VLOOKUP(AA70,$BO$6:$BP$50,2)),0) -> 0 | AC70: 0 | AD70: =AB70+AC70 -> 0 | AG70: =IF(ISNUMBER(AF70),(VLOOKUP(AF70,$BO$6:$BP$50,2)),0) -> 0 | AH70: 0 | AI70: =AG70+AH70 -> 0 | AL70: =IF(ISNUMBER(AK70),(VLOOKUP(AK70,$BO$6:$BP$50,2)),0) -> 0 | AM70: 0 | AN70: =AL70+AM70 -> 0 | AQ70: =IF(ISNUMBER(AP70),(VLOOKUP(AP70,$BO$6:$BP$50,2)),0) -> 0 | AR70: 0 | AS70: =AQ70+AR70 -> 0 | AU70: 34 | AV70: =IF(ISNUMBER(AU70),(VLOOKUP(AU70,$BO$6:$BP$50,2)),0) -> 0 | AW70: 5 | AX70: =AV70+AW70 -> 5 | BA70: =IF(ISNUMBER(AZ70),(VLOOKUP(AZ70,$BO$6:$BP$50,2)),0) -> 0 | BB70: 0 | BC70: =BA70+BB70 -> 0 | BF70: =IF(ISNUMBER(BE70),(VLOOKUP(BE70,$BO$6:$BP$50,2)),0) -> 0 | BG70: 0 | BH70: =BF70+BG70 -> 0 | BK70: =IF(ISNUMBER(BJ70),(VLOOKUP(BJ70,$BO$6:$BP$50,2)),0) -> 0 | BL70: 0 | BM70: =BK70+BL70 -> 0 | BO70: 65 | BP70: 0 | BQ70: 0 | BR70: 0 | BS70: 0 | BT70: 0 | BU70: 0 | BV70: 0 | BW70: 0 | BX70: 1
A71: 60 | B71: Furuseth | C71: Nikolai Mathias | D71: Ullensaker | E71: =IF(F71<=4,Q71,(Q71-SUM(SMALL(R71:Y71,{1;2;3;4})))) -> 5 | F71: 1 | L71: dnf | Q71: 5 | AB71: 0 | AC71: 0 | AD71: 0 | AG71: 0 | AH71: 0 | AI71: 0 | AL71: 0 | AM71: 0 | AN71: 0 | AQ71: 0 | AR71: 0 | AS71: 0 | AU71: dnf | AV71: 0 | AW71: 5 | AX71: 5 | BA71: 0 | BB71: 0 | BC71: 0 | BF71: 0 | BG71: 0 | BH71: 0 | BK71: 0 | BL71: 0 | BM71: 0 | BO71: 66 | BP71: 0 | BQ71: =IF($F71=8,1,0) -> 0 | BR71: 0 | BS71: 0 | BT71: 0 | BU71: 0 | BV71: 0 | BW71: 0 | BX71: 1
A72: 0 | E72: =IF(F72<=4,Q72,(Q72-SUM(SMALL(R72:Y72,{1;2;3;4})))) -> 0 | F72: 0 | Q72: 0 | AB72: 0 | AC72: 0 | AD72: 0 | AG72: 0 | AH72: 0 | AI72: 0 | AL72: 0 | AM72: 0 | AN72: 0 | AQ72: 0 | AR72: 0 | AS72: 0 | AV72: 0 | AW72: 0 | AX72: 0 | BA72: 0 | BB72: 0 | BC72: 0 | BF72: 0 | BG72: 0 | BH72: 0 | BK72: 0 | BL72: 0 | BM72: 0 | BO72: 67 | BP72: 0 | BQ72: 0 | BR72: 0 | BS72: 0 | BT72: 0 | BU72: 0 | BV72: 0 | BW72: 1 | BX72: 0
